Service,Expense Subtype,Merchant Name,Expense Invoice Date,Total Expense
D1300G-FINANCE & INVESTMENT,IT Services,GOOGLE,01-Jan-2019,13.20
D1300G-FINANCE & INVESTMENT,IT Services,NATIONBUILDER,01-Jan-2019,177.82
D1200G-RESIDENT SERVICES (GF),Consultancy-Business,CANVAS EVENTS LTD,01-Jan-2019,108.00
D1200G-RESIDENT SERVICES (GF),Travel/Subsistence,OYSTER ONLINE,02-Jan-2019,30.00
D1200G-RESIDENT SERVICES (GF),Financial Services,THE HOME OFFICE,02-Jan-2019,205.00
D1100G-ADULTS & HEALTH,Furniture-Domestic Furniture,BACK IN ACTION,02-Jan-2019,708.00
D1200G-RESIDENT SERVICES (GF),Taxi Fares,SW2 TO SW9 RETURN,02-Jan-2019,35.00
D1200G-RESIDENT SERVICES (GF),IT Software,ADOBE  CREATIVE CLOUD,02-Jan-2019,83.24
D1200G-RESIDENT SERVICES (GF),Taxi Fares,JULIET TILL 30 DEC,02-Jan-2019,240.00
D1200G-RESIDENT SERVICES (GF),Education-Library Books,AMZN Mktp UK,02-Jan-2019,15.78
D1300G-FINANCE & INVESTMENT,Travel/Subsistence,TRAINLINE,02-Jan-2019,70.17
D1200G-RESIDENT SERVICES (GF),Taxi Fares,SE23 TO TW3,02-Jan-2019,95.00
D1200G-RESIDENT SERVICES (GF),Facilities-Advertising,WH SMITH,02-Jan-2019,6.19
D1200G-RESIDENT SERVICES (GF),Facilities-Advertising,EXPRESS NEWS,02-Jan-2019,96.40
D1200G-RESIDENT SERVICES (GF),Financial Services,WWW.ICO.GOV.UK,02-Jan-2019,40.00
D1200G-RESIDENT SERVICES (GF),Taxi Fares,10 DAYS SCHOOL PICK UP,02-Jan-2019,250.00
D1200G-RESIDENT SERVICES (GF),Travel/Subsistence,OYSTER ONLINE,02-Jan-2019,60.00
D1200G-RESIDENT SERVICES (GF),Travel/Subsistence,OYSTER ONLINE,02-Jan-2019,30.00
D1200G-RESIDENT SERVICES (GF),Travel/Subsistence,OYSTER AUTO-TOP UP,02-Jan-2019,20.00
D1200G-RESIDENT SERVICES (GF),Catering Food & Drink,TESCO STORE 2143,02-Jan-2019,35.98
D1200G-RESIDENT SERVICES (GF),Taxi Fares,HA8 SE17 RETURN,02-Jan-2019,180.00
D1200G-RESIDENT SERVICES (GF),Travel/Subsistence,OYSTER AUTO-TOP UP,02-Jan-2019,60.00
D1200G-RESIDENT SERVICES (GF),Catering Food & Drink,MARKS&SPENCER PLC SACA,02-Jan-2019,20.00
D1200G-RESIDENT SERVICES (GF),Travel/Subsistence,OYSTER AUTO-TOP UP,02-Jan-2019,20.00
D1800G-RESIDENT SERVICES (HRA),Building-General,TOOLSTATION LTD,03-Jan-2019,6.03
D1200G-RESIDENT SERVICES (GF),Education-Library Books,AMZN Mktp UK,03-Jan-2019,23.62
D1300G-FINANCE & INVESTMENT,Accommodation,IBIS STYLES LEEDS CITY CE,03-Jan-2019,80.00
D1200G-RESIDENT SERVICES (GF),Furniture-Domestic Furniture,ARGOS DIRECT,03-Jan-2019,-37.00
D1200G-RESIDENT SERVICES (GF),Education-Library Books,Amazon.co.uk,03-Jan-2019,21.36
D1350G-CHIEF EXECUTIVE DIRECTORATE,Domestic Goods-Other,WWW.TROPHIESANDMEDALS.,03-Jan-2019,77.99
D1300G-FINANCE & INVESTMENT,IT Services,AWS EMEA,03-Jan-2019,144.29
D1100G-ADULTS & HEALTH,Legal Services-Other,HMCOURTS-SERVICE.G,03-Jan-2019,150.00
D1200G-RESIDENT SERVICES (GF),Cycles Purchase,SP * ONESTOP EUROPE LT,03-Jan-2019,358.20
D1200G-RESIDENT SERVICES (GF),Taxi Fares,WWW.ADDISONLEE.COM,03-Jan-2019,20.15
D1200G-RESIDENT SERVICES (GF),Domestic Goods-Other,CURRYS SUPERSTORE,03-Jan-2019,299.00
D1100G-ADULTS & HEALTH,Catering Food & Drink,TESCO-STORES 6567,03-Jan-2019,32.94
D1400G-CHILDREN'S SERVICES,Travel/Subsistence,OYSTER ONLINE,03-Jan-2019,30.00
D1200G-RESIDENT SERVICES (GF),Facilities-Market Research,Amazon Prime,03-Jan-2019,7.99
D1200G-RESIDENT SERVICES (GF),Legal Services-Other,HMCOURTS-SERVICE.G,03-Jan-2019,"1,133.00"
D1200G-RESIDENT SERVICES (GF),Facilities-Market Research,Amazon Prime,03-Jan-2019,7.99
D1300G-FINANCE & INVESTMENT,Financial Services,LAND REGISTRY,03-Jan-2019,6.00
D1300G-FINANCE & INVESTMENT,IT Services,NATIONBUILDER,03-Jan-2019,98.82
D1300G-FINANCE & INVESTMENT,IT Services,PANTHEON SYSTEMS INC,04-Jan-2019,28.56
D1200G-RESIDENT SERVICES (GF),Education-Library Books,AMZN Mktp UK,04-Jan-2019,9.21
D1200G-RESIDENT SERVICES (GF),Mail Services-Postage,THE POST OFFICE,04-Jan-2019,6.00
D1400G-CHILDREN'S SERVICES,Travel/Subsistence,OYSTER ONLINE,04-Jan-2019,30.00
D1100G-ADULTS & HEALTH,Education-Library Books,AMZN MKTP UK,04-Jan-2019,30.00
D1300G-FINANCE & INVESTMENT,Financial Services,LAND REGISTRY,04-Jan-2019,9.00
D1200G-RESIDENT SERVICES (GF),Furniture-Domestic Furniture,ARGOS DIRECT,04-Jan-2019,-762.99
D1200G-RESIDENT SERVICES (GF),Travel/Subsistence,OYSTER ONLINE,04-Jan-2019,40.00
D1200G-RESIDENT SERVICES (GF),Travel/Subsistence,OYSTER AUTO-TOP UP,04-Jan-2019,20.00
D1200G-RESIDENT SERVICES (GF),Facilities-Storage,SAFESTORE LIMITED,04-Jan-2019,556.91
D1200G-RESIDENT SERVICES (GF),Mail Services-Postage,POST OFFICE SELF SERVI,04-Jan-2019,19.38
D1200G-RESIDENT SERVICES (GF),Travel/Subsistence,OYSTER ONLINE,04-Jan-2019,30.00
D1200G-RESIDENT SERVICES (GF),Travel/Subsistence,OYSTER AUTO-TOP UP,04-Jan-2019,20.00
D1200G-RESIDENT SERVICES (GF),Domestic Goods-Other,WWW.ARGOS.CO.UK,04-Jan-2019,856.94
D1200G-RESIDENT SERVICES (GF),Travel/Subsistence,OYSTER AUTO-TOP UP,04-Jan-2019,20.00
D1200G-RESIDENT SERVICES (GF),Travel/Subsistence,OYSTER AUTO-TOP UP,04-Jan-2019,20.00
D1200G-RESIDENT SERVICES (GF),Travel/Subsistence,TRAINLINE,04-Jan-2019,71.50
D1100G-ADULTS & HEALTH,Education-Library Books,AMZN MKTP UK,05-Jan-2019,53.08
D1200G-RESIDENT SERVICES (GF),Travel/Subsistence,OYSTER AUTO-TOP UP,05-Jan-2019,40.00
D1200G-RESIDENT SERVICES (GF),Travel/Subsistence,OYSTER AUTO-TOP UP,05-Jan-2019,20.00
D1200G-RESIDENT SERVICES (GF),Travel/Subsistence,OYSTER AUTO-TOP UP,05-Jan-2019,20.00
D1200G-RESIDENT SERVICES (GF),Travel/Subsistence,OYSTER AUTO-TOP UP,05-Jan-2019,20.00
D1200G-RESIDENT SERVICES (GF),Education-Other,Amazon Prime,05-Jan-2019,7.99
D1800G-RESIDENT SERVICES (HRA),Facilities-Market Research,Amazon Prime,05-Jan-2019,7.99
D1400G-CHILDREN'S SERVICES,Travel/Subsistence,OYSTER AUTO-TOP UP,05-Jan-2019,40.00
D1200G-RESIDENT SERVICES (GF),Travel/Subsistence,OYSTER AUTO-TOP UP,06-Jan-2019,20.00
D1100G-ADULTS & HEALTH,Education-Library Books,AMZN MKTP UK,06-Jan-2019,4.66
D1200G-RESIDENT SERVICES (GF),Facilities-Market Research,Amazon Prime,06-Jan-2019,7.99
D1200G-RESIDENT SERVICES (GF),Travel/Subsistence,OYSTER AUTO-TOP UP,06-Jan-2019,40.00
D1300G-FINANCE & INVESTMENT,Facilities-Advertising,FACEBK U7KKPJ66M2,06-Jan-2019,12.38
D1200G-RESIDENT SERVICES (GF),Travel/Subsistence,OYSTER AUTO-TOP UP,06-Jan-2019,40.00
D1200G-RESIDENT SERVICES (GF),Travel/Subsistence,OYSTER AUTO-TOP UP,06-Jan-2019,20.00
D1300G-FINANCE & INVESTMENT,Domestic Goods-Other,WWW.ARGOS.CO.UK,07-Jan-2019,469.94
D1100G-ADULTS & HEALTH,Travel/Subsistence,VIRGIN TRAINS,07-Jan-2019,91.80
D1200G-RESIDENT SERVICES (GF),Travel/Subsistence,OYSTER ONLINE,07-Jan-2019,30.00
D1200G-RESIDENT SERVICES (GF),Travel/Subsistence,OYSTER AUTO-TOP UP,07-Jan-2019,20.00
D1200G-RESIDENT SERVICES (GF),Building-Timber,HOMEBASE 247,07-Jan-2019,36.00
D1200G-RESIDENT SERVICES (GF),Facilities-Market Research,AMAZON PRIME,07-Jan-2019,79.00
D1100G-ADULTS & HEALTH,Catering Food & Drink,TESCO STORES 5999,07-Jan-2019,59.19
D1100G-ADULTS & HEALTH,Education-Library Books,AMZN MKTP UK,07-Jan-2019,13.21
D1100G-ADULTS & HEALTH,Accommodation,HOTEL IBIS,07-Jan-2019,246.05
D1100G-ADULTS & HEALTH,Catering Food & Drink,ICELAND,07-Jan-2019,21.09
D1200G-RESIDENT SERVICES (GF),Accommodation,ENTERPRISE,07-Jan-2019,101.72
D1200G-RESIDENT SERVICES (GF),Domestic Goods-Other,WWW.ARGOS.CO.UK,07-Jan-2019,"1,563.90"
D1200G-RESIDENT SERVICES (GF),Stationery,WH SMITH,07-Jan-2019,6.73
D1200G-RESIDENT SERVICES (GF),Financial Services,GRO HM PASSPORT OFFICE,07-Jan-2019,144.00
D1200G-RESIDENT SERVICES (GF),Travel/Subsistence,TRAINLINE,07-Jan-2019,18.87
D1200G-RESIDENT SERVICES (GF),Education-Library Books,AMZN Mktp UK,07-Jan-2019,10.66
D1200G-RESIDENT SERVICES (GF),Education-Library Books,AMAZON.CO.UK,07-Jan-2019,50.12
D1100G-ADULTS & HEALTH,Financial Services,MORLEY COLLEGE LTD,07-Jan-2019,130.00
D1200G-RESIDENT SERVICES (GF),Catering Food & Drink,SAINSBURYS S/MKTS,07-Jan-2019,5.85
D1100G-ADULTS & HEALTH,Catering Food & Drink,TESCO STORE 2764,08-Jan-2019,97.21
D1200G-RESIDENT SERVICES (GF),Arts & Leisure Services,RHS LONDON,08-Jan-2019,35.00
D1200G-RESIDENT SERVICES (GF),Cleaning-Laundry Service,S.I.S.T DRY CLEANERS L,08-Jan-2019,45.00
D1200G-RESIDENT SERVICES (GF),Catering Food & Drink,TESCO STORE 2143,08-Jan-2019,20.00
D1200G-RESIDENT SERVICES (GF),Travel/Subsistence,OYSTER ONLINE,08-Jan-2019,60.00
D1200G-RESIDENT SERVICES (GF),Travel/Subsistence,OYSTER ONLINE,08-Jan-2019,10.00
D1200G-RESIDENT SERVICES (GF),Taxi Fares,SW9TOSW19TOCR7,08-Jan-2019,70.00
D1200G-RESIDENT SERVICES (GF),Taxi Fares,SE5 TO SE25 K,08-Jan-2019,40.00
D1200G-RESIDENT SERVICES (GF),Building-Timber,HOMEBASE LTD 066,08-Jan-2019,168.00
D1100G-ADULTS & HEALTH,Catering Food & Drink,SEABREEZE FISH MONGERS,08-Jan-2019,60.00
D1300G-FINANCE & INVESTMENT,Travel/Subsistence,EAST MIDLANDS TRAINS,08-Jan-2019,15.00
D1200G-RESIDENT SERVICES (GF),IT Software-Customised,HOTJAR,08-Jan-2019,99.04
D1200G-RESIDENT SERVICES (GF),Building-Tools,MACHINE MART WEB,08-Jan-2019,99.00
D1100G-ADULTS & HEALTH,Catering Food & Drink,ICELAND,08-Jan-2019,95.88
D1100G-ADULTS & HEALTH,Building-Others,TESCO STORE 2764,08-Jan-2019,16.05
D1200G-RESIDENT SERVICES (GF),Domestic Goods-Other,ARGOS RETAIL GROUP,08-Jan-2019,44.98
D1200G-RESIDENT SERVICES (GF),Books/Publications/Resources,WHICH,08-Jan-2019,10.75
D1100G-ADULTS & HEALTH,Legal Services-Other,HMCOURTS-SERVICE.G,08-Jan-2019,225.00
D1200G-RESIDENT SERVICES (GF),Building-Timber,HOMEBASE LTD 066,08-Jan-2019,17.98
D1100G-ADULTS & HEALTH,Catering Food & Drink,MN WEST NORWOOD HALAL,08-Jan-2019,85.06
D1200G-RESIDENT SERVICES (GF),Travel/Subsistence,YOURPARKINGSPACE.CO.UK,08-Jan-2019,25.00
D1200G-RESIDENT SERVICES (GF),Travel/Subsistence,TRAINLINE,08-Jan-2019,47.09
D1300G-FINANCE & INVESTMENT,Stationery,CLEAR PRINTS DIGITAL,09-Jan-2019,70.00
D1400G-CHILDREN'S SERVICES,Catering Food & Drink,ICELAND,09-Jan-2019,11.50
D1200G-RESIDENT SERVICES (GF),Travel/Subsistence,AUTO TOP-UP ARREARS,09-Jan-2019,20.00
D1200G-RESIDENT SERVICES (GF),Travel/Subsistence,OYSTER AUTO-TOP UP,09-Jan-2019,60.00
D1200G-RESIDENT SERVICES (GF),Catering Food & Drink,TESCO STORE 2143,09-Jan-2019,1.50
D1200G-RESIDENT SERVICES (GF),Travel/Subsistence,TRAINLINE,09-Jan-2019,22.12
D1200G-RESIDENT SERVICES (GF),Travel/Subsistence,OYSTER AUTO-TOP UP,09-Jan-2019,100.00
D1200G-RESIDENT SERVICES (GF),Financial Services,LONDON BRGH OF LAMBETH,09-Jan-2019,40.00
D1200G-RESIDENT SERVICES (GF),Utilities,WWW.EDF-ENERGY.COM,09-Jan-2019,"1,668.22"
D1200G-RESIDENT SERVICES (GF),Education-Library Books,AMZN MKTP UK,09-Jan-2019,26.00
D1350G-CHIEF EXECUTIVE DIRECTORATE,Catering Food & Drink,TESCO STORE 2143,09-Jan-2019,105.00
D1100G-ADULTS & HEALTH,Furniture-Domestic Furniture,BACK SHOP,09-Jan-2019,10.00
D1400G-CHILDREN'S SERVICES,Catering Food & Drink,MARKS&SPENCER PLC SACA,09-Jan-2019,20.90
D1400G-CHILDREN'S SERVICES,Catering Food & Drink,JAMAICA SPICE BAKERY L,09-Jan-2019,16.00
D1200G-RESIDENT SERVICES (GF),Travel/Subsistence,OYSTER AUTO-TOP UP,09-Jan-2019,40.00
D1200G-RESIDENT SERVICES (GF),Accommodation,PREMIER INN 44537425,09-Jan-2019,79.50
D1200G-RESIDENT SERVICES (GF),Accommodation,HOTEL IBIS,09-Jan-2019,98.00
D1200G-RESIDENT SERVICES (GF),Travel/Subsistence,OYSTER AUTO-TOP UP,09-Jan-2019,20.00
D1200G-RESIDENT SERVICES (GF),Catering Food & Drink,TESCO STORE 2143,09-Jan-2019,7.71
D1200G-RESIDENT SERVICES (GF),Stationery,AMAZON.CO.UK,09-Jan-2019,15.42
D1200G-RESIDENT SERVICES (GF),Travel/Subsistence,OYSTER ONLINE,09-Jan-2019,148.30
D1200G-RESIDENT SERVICES (GF),Education-Other,CITY OF WESTMINSTER CO,09-Jan-2019,190.00
D1200G-RESIDENT SERVICES (GF),Education-Library Books,Amazon.co.uk,09-Jan-2019,6.29
D1200G-RESIDENT SERVICES (GF),Sports Equipment,J D SPORTS 651,10-Jan-2019,150.00
D1200G-RESIDENT SERVICES (GF),Education-Library Books,AMZN Mktp UK,10-Jan-2019,8.00
D1200G-RESIDENT SERVICES (GF),Building-General,A&S  HOMECARE LTD,10-Jan-2019,16.99
D1200G-RESIDENT SERVICES (GF),Building-Timber,WWW.SELCOBW.COM,10-Jan-2019,452.51
D1200G-RESIDENT SERVICES (GF),Cemetery & Crematorium,AMZN MKTP UK,10-Jan-2019,24.51
D1200G-RESIDENT SERVICES (GF),Travel/Subsistence,OYSTER AUTO-TOP UP,10-Jan-2019,20.00
D1200G-RESIDENT SERVICES (GF),Travel/Subsistence,OYSTER AUTO-TOP UP,10-Jan-2019,60.00
D1200G-RESIDENT SERVICES (GF),Travel/Subsistence,OYSTER AUTO-TOP UP,10-Jan-2019,40.00
D1200G-RESIDENT SERVICES (GF),Travel/Subsistence,OYSTER AUTO-TOP UP,10-Jan-2019,20.00
D1200G-RESIDENT SERVICES (GF),Education-Library Books,AMAZON.CO.UK,10-Jan-2019,7.74
D1200G-RESIDENT SERVICES (GF),Building-Timber,SELCO OLD KENT ROA,10-Jan-2019,47.99
D1200G-RESIDENT SERVICES (GF),Accommodation,AMZN DIGITAL,10-Jan-2019,11.69
D1200G-RESIDENT SERVICES (GF),Travel/Subsistence,OYSTER AUTO-TOP UP,10-Jan-2019,20.00
D1200G-RESIDENT SERVICES (GF),Travel/Subsistence,TRAINLINE,10-Jan-2019,171.67
D1200G-RESIDENT SERVICES (GF),Education-Library Books,Amazon.co.uk,10-Jan-2019,6.29
D1200G-RESIDENT SERVICES (GF),Financial Services,HM COURTS & TRIBUN,10-Jan-2019,140.00
D1300G-FINANCE & INVESTMENT,Domestic Goods-Other,WWW.ARGOS.CO.UK,10-Jan-2019,349.93
D1100G-ADULTS & HEALTH,Legal Services-Other,HMCOURTS-SERVICE.G,10-Jan-2019,225.00
D1200G-RESIDENT SERVICES (GF),Furniture-Domestic Furniture,WAYFAIR #2615964128,10-Jan-2019,249.97
D1200G-RESIDENT SERVICES (GF),Domestic Goods-Other,WWW.ARGOS.CO.UK,10-Jan-2019,109.99
D1200G-RESIDENT SERVICES (GF),Travel/Subsistence,OYSTER AUTO-TOP UP,10-Jan-2019,20.00
D1200G-RESIDENT SERVICES (GF),Taxi Fares,SE19 SE5 PLUS WAITING,11-Jan-2019,80.00
D1200G-RESIDENT SERVICES (GF),Taxi Fares,SE11 TO ME10,11-Jan-2019,100.00
D1200G-RESIDENT SERVICES (GF),Travel/Subsistence,OYSTER AUTO-TOP UP,11-Jan-2019,20.00
D1200G-RESIDENT SERVICES (GF),Catering Food & Drink,SAINSBURY'S SMKT,11-Jan-2019,14.65
D1200G-RESIDENT SERVICES (GF),Education-Library Books,AMZN MKTP UK,11-Jan-2019,18.48
D1200G-RESIDENT SERVICES (GF),Travel/Subsistence,OYSTER ONLINE,11-Jan-2019,-40.00
D1300G-FINANCE & INVESTMENT,Travel/Subsistence,TFL ROAD CHARGE,11-Jan-2019,11.50
D1200G-RESIDENT SERVICES (GF),Furniture-Domestic Furniture,WWW.IKEA.COM,11-Jan-2019,195.00
D1300G-FINANCE & INVESTMENT,Domestic Goods-Other,WWW.ARGOS.CO.UK,11-Jan-2019,66.94
D1100G-ADULTS & HEALTH,Domestic Goods-Other,WWW.NHONLINE.CO.UK,11-Jan-2019,237.92
D1200G-RESIDENT SERVICES (GF),Travel/Subsistence,AUTO TOP-UP ARREARS,11-Jan-2019,20.00
D1200G-RESIDENT SERVICES (GF),Education-Library Books,AMZN Mktp UK,11-Jan-2019,5.82
D1200G-RESIDENT SERVICES (GF),Education-Library Books,AMZN Mktp UK,11-Jan-2019,32.27
D1200G-RESIDENT SERVICES (GF),Mail Services-Postage,POST OFFICE SELF SERVI,11-Jan-2019,49.56
D1200G-RESIDENT SERVICES (GF),Travel/Subsistence,OYSTER AUTO-TOP UP,11-Jan-2019,20.00
D1200G-RESIDENT SERVICES (GF),Domestic Goods-Other,WWW.JOHNLEWIS.COM,11-Jan-2019,48.49
D1200G-RESIDENT SERVICES (GF),Travel/Subsistence,TRAINLINE,11-Jan-2019,27.20
D1200G-RESIDENT SERVICES (GF),Books/Publications/Resources,LONDIS,11-Jan-2019,142.50
D1200G-RESIDENT SERVICES (GF),Education-Library Books,CLAPHAM BOOKS,11-Jan-2019,79.90
D1400G-CHILDREN'S SERVICES,Travel/Subsistence,OYSTER AUTO-TOP UP,11-Jan-2019,40.00
D1200G-RESIDENT SERVICES (GF),Horticultural-Other,MAJOR EQUIPMENT LTD,11-Jan-2019,56.35
D1200G-RESIDENT SERVICES (GF),Travel/Subsistence,OYSTER AUTO-TOP UP,11-Jan-2019,20.00
D1200G-RESIDENT SERVICES (GF),Travel/Subsistence,OYSTER ONLINE,11-Jan-2019,30.00
D1200G-RESIDENT SERVICES (GF),Financial Services,HM PASSPORT OFFICE,11-Jan-2019,85.00
D1200G-RESIDENT SERVICES (GF),Travel/Subsistence,OYSTER AUTO-TOP UP,11-Jan-2019,20.00
D1200G-RESIDENT SERVICES (GF),Taxi Fares,CIVIC TO SW16,11-Jan-2019,20.00
D1200G-RESIDENT SERVICES (GF),Travel/Subsistence,OYSTER AUTO-TOP UP,11-Jan-2019,60.00
D1200G-RESIDENT SERVICES (GF),Travel/Subsistence,OYSTER AUTO-TOP UP,11-Jan-2019,40.00
D1200G-RESIDENT SERVICES (GF),Travel/Subsistence,OYSTER AUTO-TOP UP,12-Jan-2019,20.00
D1200G-RESIDENT SERVICES (GF),Travel/Subsistence,OYSTER AUTO-TOP UP,12-Jan-2019,20.00
D1200G-RESIDENT SERVICES (GF),Travel/Subsistence,OYSTER AUTO-TOP UP,12-Jan-2019,20.00
D1200G-RESIDENT SERVICES (GF),Travel/Subsistence,OYSTER AUTO-TOP UP,12-Jan-2019,40.00
D1200G-RESIDENT SERVICES (GF),Consultancy-Business,BLS*MONDAY.COM,12-Jan-2019,148.80
D1200G-RESIDENT SERVICES (GF),Travel/Subsistence,OYSTER AUTO-TOP UP,12-Jan-2019,20.00
D1200G-RESIDENT SERVICES (GF),Accommodation,QUEEN ANNE HOUSE,12-Jan-2019,65.00
D1200G-RESIDENT SERVICES (GF),Domestic Goods-Other,AMAZON.CO.UK,13-Jan-2019,17.99
D1200G-RESIDENT SERVICES (GF),Travel/Subsistence,OYSTER AUTO-TOP UP,13-Jan-2019,40.00
D1200G-RESIDENT SERVICES (GF),Education-Library Books,Amazon.co.uk,13-Jan-2019,9.99
D1200G-RESIDENT SERVICES (GF),Travel/Subsistence,OYSTER AUTO-TOP UP,13-Jan-2019,20.00
D1200G-RESIDENT SERVICES (GF),Travel/Subsistence,OYSTER AUTO-TOP UP,13-Jan-2019,60.00
D1200G-RESIDENT SERVICES (GF),Travel/Subsistence,OYSTER AUTO-TOP UP,13-Jan-2019,60.00
D1300G-FINANCE & INVESTMENT,Utilities,WWW.BRITISHGAS.CO.,14-Jan-2019,"-5,187.58"
D1800G-RESIDENT SERVICES (HRA),IT Software,WWW.STAMPS4U.CO.UK,14-Jan-2019,5.95
D1200G-RESIDENT SERVICES (GF),Travel/Subsistence,OYSTER AUTO-TOP UP,14-Jan-2019,20.00
D1200G-RESIDENT SERVICES (GF),Education-Library Books,AMZN MKTP UK,14-Jan-2019,33.21
D1100G-ADULTS & HEALTH,Catering Food & Drink,TESCO STORES 5999,14-Jan-2019,93.92
D1200G-RESIDENT SERVICES (GF),Domestic Goods-Other,WWW.ARGOS.CO.UK,14-Jan-2019,378.93
D1200G-RESIDENT SERVICES (GF),Facilities-Printing,Amazon.co.uk,14-Jan-2019,25.48
D1350G-CHIEF EXECUTIVE DIRECTORATE,Domestic Goods-Other,AMAZON.CO.UK,14-Jan-2019,150.00
D1800G-RESIDENT SERVICES (HRA),IT Software,STAMPS4U.CO.UK,14-Jan-2019,72.50
D1200G-RESIDENT SERVICES (GF),Travel/Subsistence,OYSTER AUTO-TOP UP,14-Jan-2019,40.00
D1200G-RESIDENT SERVICES (GF),IT Software,PAYPAL,14-Jan-2019,158.99
D1200G-RESIDENT SERVICES (GF),Facilities-Printing,Amazon.co.uk,14-Jan-2019,35.43
D1200G-RESIDENT SERVICES (GF),Facilities-Printing,Amazon.co.uk,14-Jan-2019,130.31
D1200G-RESIDENT SERVICES (GF),Education-Library Books,AMZN Mktp UK,14-Jan-2019,20.58
D1100G-ADULTS & HEALTH,Catering Food & Drink,WWW.ICELAND.CO.UK,14-Jan-2019,169.06
D1100G-ADULTS & HEALTH,Catering Food & Drink,ICELAND,14-Jan-2019,1.55
D1200G-RESIDENT SERVICES (GF),Education-Library Books,Amazon.co.uk,14-Jan-2019,18.98
D1200G-RESIDENT SERVICES (GF),Education-Library Books,AMZN Mktp UK,14-Jan-2019,10.28
D1200G-RESIDENT SERVICES (GF),Education-Other,AMZN Mktp UK,14-Jan-2019,4.45
D1350G-CHIEF EXECUTIVE DIRECTORATE,Travel/Subsistence,LUL TICKET MACHINE,14-Jan-2019,50.00
D1300G-FINANCE & INVESTMENT,Financial Services,LAND REGISTRY,14-Jan-2019,3.00
D1800G-RESIDENT SERVICES (HRA),Books/Publications/Resources,WWW.INSIDEHG.CO.UK R/T,14-Jan-2019,64.50
D1100G-ADULTS & HEALTH,Legal Services-Other,HMCOURTS-SERVICE.G,14-Jan-2019,75.00
D1100G-ADULTS & HEALTH,Facilities-Design & Photography,ON AIR MEDIA GROUP,14-Jan-2019,"3,000.00"
D1100G-ADULTS & HEALTH,Catering Food & Drink,SAINSBURYS S/MKTS,14-Jan-2019,12.00
D1200G-RESIDENT SERVICES (GF),Education-Library Books,AMZN Mktp UK,14-Jan-2019,21.35
D1200G-RESIDENT SERVICES (GF),Travel/Subsistence,OYSTER ONLINE,14-Jan-2019,30.00
D1200G-RESIDENT SERVICES (GF),Facilities-Market Research,WAYFAIR #2313578144,14-Jan-2019,242.82
D1200G-RESIDENT SERVICES (GF),Education-Library Books,Amazon.co.uk,15-Jan-2019,11.97
D1100G-ADULTS & HEALTH,Legal Services-Other,HMCOURTS-SERVICE.G,15-Jan-2019,225.00
D1200G-RESIDENT SERVICES (GF),Travel/Subsistence,OYSTER ONLINE,15-Jan-2019,60.00
D1200G-RESIDENT SERVICES (GF),Furniture-Domestic Furniture,WWW.IKEA.COM,15-Jan-2019,155.00
D1350G-CHIEF EXECUTIVE DIRECTORATE,IT Software,GOVERNMENT EVENTS,15-Jan-2019,386.58
D1200G-RESIDENT SERVICES (GF),Taxi Fares,SW1V TO SW17 2DAYS,15-Jan-2019,140.00
D1200G-RESIDENT SERVICES (GF),Taxi Fares,5 DAYS SE2SE11SW2,15-Jan-2019,590.00
D1200G-RESIDENT SERVICES (GF),Taxi Fares,SE19 TOSE5 WAITING RET,15-Jan-2019,80.00
D1200G-RESIDENT SERVICES (GF),Education-Library Books,AMZN Mktp UK,15-Jan-2019,56.30
D1200G-RESIDENT SERVICES (GF),Travel/Subsistence,OYSTER ONLINE,15-Jan-2019,30.00
D1200G-RESIDENT SERVICES (GF),Facilities-Advertising,EXPRESS NEWS,15-Jan-2019,151.00
D1350G-CHIEF EXECUTIVE DIRECTORATE,Accommodation,PREMIER INN 44537210,15-Jan-2019,83.50
D1800G-RESIDENT SERVICES (HRA),Catering Food & Drink,ZEPBROOK LIMITED,15-Jan-2019,82.90
D1200G-RESIDENT SERVICES (GF),Travel/Subsistence,OYSTER ONLINE,15-Jan-2019,140.00
D1200G-RESIDENT SERVICES (GF),Travel/Subsistence,TRAINLINE,15-Jan-2019,16.29
D1200G-RESIDENT SERVICES (GF),Building-Timber,SCREWFIX DIRECT,15-Jan-2019,136.74
D1350G-CHIEF EXECUTIVE DIRECTORATE,Travel/Subsistence,TRAINLINE,15-Jan-2019,64.68
D1200G-RESIDENT SERVICES (GF),Travel/Subsistence,OYSTER AUTO-TOP UP,16-Jan-2019,20.00
D1200G-RESIDENT SERVICES (GF),Education-Library Books,Amazon.co.uk,16-Jan-2019,14.49
D1200G-RESIDENT SERVICES (GF),Facilities-Market Research,MAILCHIMP,16-Jan-2019,71.58
D1200G-RESIDENT SERVICES (GF),Travel/Subsistence,OYSTER ONLINE,16-Jan-2019,60.00
D1200G-RESIDENT SERVICES (GF),Travel/Subsistence,OYSTER AUTO-TOP UP,16-Jan-2019,60.00
D1200G-RESIDENT SERVICES (GF),Education-Other,AMZN MKTP UK AMAZON.CO.UK,16-Jan-2019,-37.21
D1200G-RESIDENT SERVICES (GF),Building-Timber,WWW.SELCOBW.COM,16-Jan-2019,174.01
D1100G-ADULTS & HEALTH,Catering Food & Drink,LIDL UK LONDON,16-Jan-2019,12.56
D1200G-RESIDENT SERVICES (GF),Travel/Subsistence,OYSTER AUTO-TOP UP,16-Jan-2019,20.00
D1200G-RESIDENT SERVICES (GF),Domestic Goods-Other,WWW.ARGOS.CO.UK,16-Jan-2019,-378.93
D1200G-RESIDENT SERVICES (GF),Travel/Subsistence,TRAINLINE,16-Jan-2019,57.05
D1200G-RESIDENT SERVICES (GF),Education-Library Books,AMZN Mktp UK,16-Jan-2019,2.81
D1200G-RESIDENT SERVICES (GF),Education-Other,LION PICTURE FRAMING S,16-Jan-2019,403.11
D1300G-FINANCE & INVESTMENT,Domestic Goods-Other,WWW.ARGOS.CO.UK,16-Jan-2019,456.93
D1400G-CHILDREN'S SERVICES,Travel/Subsistence,OYSTER AUTO-TOP UP,16-Jan-2019,20.00
D1200G-RESIDENT SERVICES (GF),Travel/Subsistence,OYSTER ONLINE,16-Jan-2019,30.00
D1200G-RESIDENT SERVICES (GF),Travel/Subsistence,OYSTER ONLINE,16-Jan-2019,100.00
D1350G-CHIEF EXECUTIVE DIRECTORATE,Domestic Goods-Other,WWW.TROPHIESANDMEDALS.,16-Jan-2019,17.99
D1300G-FINANCE & INVESTMENT,Financial Services,LAND REGISTRY,16-Jan-2019,9.00
D1200G-RESIDENT SERVICES (GF),Building-General,MACKAYS HARDWARE,16-Jan-2019,89.00
D1200G-RESIDENT SERVICES (GF),Building-Timber,SCREWFIX BRIXTON,16-Jan-2019,78.98
D1200G-RESIDENT SERVICES (GF),Travel/Subsistence,OYSTER ONLINE,16-Jan-2019,-158.30
D1800G-RESIDENT SERVICES (HRA),Travel/Subsistence,SE BRIXTON TO,16-Jan-2019,115.30
D1800G-RESIDENT SERVICES (HRA),Travel/Subsistence,LUL TICKET MACHINE,16-Jan-2019,50.00
D1200G-RESIDENT SERVICES (GF),Domestic Goods-Other,HERNE HILL ELECTRICALS,16-Jan-2019,200.00
D1200G-RESIDENT SERVICES (GF),Domestic Goods-Other,HERNE HILL ELECTRICALS,16-Jan-2019,200.00
D1200G-RESIDENT SERVICES (GF),Domestic Goods-Other,WWW.ARGOS.CO.UK,16-Jan-2019,-498.00
D1200G-RESIDENT SERVICES (GF),Education-Library Books,Amazon.co.uk,16-Jan-2019,11.47
D1200G-RESIDENT SERVICES (GF),Education-Library Books,Amazon.co.uk,16-Jan-2019,20.79
D1800G-RESIDENT SERVICES (HRA),IT Software,WWW.STAMPS4U.CO.UK,17-Jan-2019,-5.95
D1400G-CHILDREN'S SERVICES,Travel/Subsistence,OYSTER AUTO-TOP UP,17-Jan-2019,40.00
D1200G-RESIDENT SERVICES (GF),Building-Timber,SCREWFIX DIRECT,17-Jan-2019,113.96
D1200G-RESIDENT SERVICES (GF),Travel/Subsistence,OYSTER AUTO-TOP UP,17-Jan-2019,20.00
D1200G-RESIDENT SERVICES (GF),Travel/Subsistence,TRAINLINE,17-Jan-2019,124.28
D1200G-RESIDENT SERVICES (GF),Facilities-Advertising,FACEBK E6EHCK2DE2,17-Jan-2019,20.00
D1200G-RESIDENT SERVICES (GF),Education-Other,ARGOS,17-Jan-2019,59.99
D1200G-RESIDENT SERVICES (GF),Taxi Fares,LAST JOURNE,17-Jan-2019,40.00
D1200G-RESIDENT SERVICES (GF),Travel/Subsistence,OYSTER AUTO-TOP UP,17-Jan-2019,40.00
D1200G-RESIDENT SERVICES (GF),Travel/Subsistence,OYSTER AUTO-TOP UP,17-Jan-2019,40.00
D1200G-RESIDENT SERVICES (GF),Taxi Fares,JULIET TILL 13 JAN,17-Jan-2019,240.00
D1300G-FINANCE & INVESTMENT,Financial Services,LAND REGISTRY,17-Jan-2019,3.00
D1200G-RESIDENT SERVICES (GF),Travel/Subsistence,OYSTER AUTO-TOP UP,17-Jan-2019,80.00
D1200G-RESIDENT SERVICES (GF),Travel/Subsistence,OYSTER AUTO-TOP UP,17-Jan-2019,20.00
D1800G-RESIDENT SERVICES (HRA),Financial Services,LONDON BRGH OF LAMBETH,17-Jan-2019,30.00
D1800G-RESIDENT SERVICES (HRA),Facilities-Printing,NEVEX PRINTING,17-Jan-2019,50.00
D1100G-ADULTS & HEALTH,Domestic Goods-Other,WWW.ARGOS.CO.UK,17-Jan-2019,262.94
D1200G-RESIDENT SERVICES (GF),Travel/Subsistence,OYSTER AUTO-TOP UP,17-Jan-2019,40.00
D1300G-FINANCE & INVESTMENT,Facilities-Advertising,EXPRESS NEWS,17-Jan-2019,50.00
D1200G-RESIDENT SERVICES (GF),Domestic Goods-Other,MOTHERCARE DIRECT-E-CO,17-Jan-2019,140.00
D1200G-RESIDENT SERVICES (GF),Travel/Subsistence,OYSTER AUTO-TOP UP,18-Jan-2019,40.00
D1200G-RESIDENT SERVICES (GF),Domestic Goods-Other,WWW.ARGOS.CO.UK,18-Jan-2019,81.94
D1200G-RESIDENT SERVICES (GF),Travel/Subsistence,OYSTER AUTO-TOP UP,18-Jan-2019,20.00
D1100G-ADULTS & HEALTH,Financial Services,NATWEST BANK  /,18-Jan-2019,50.00
D1100G-ADULTS & HEALTH,Catering Food & Drink,TESCO STORE 2764,18-Jan-2019,6.80
D1200G-RESIDENT SERVICES (GF),Travel/Subsistence,OYSTER ONLINE,18-Jan-2019,30.00
D1200G-RESIDENT SERVICES (GF),Accommodation,Hotel on Booking.com,18-Jan-2019,50.00
D1200G-RESIDENT SERVICES (GF),Travel/Subsistence,OYSTER AUTO-TOP UP,18-Jan-2019,20.00
D1200G-RESIDENT SERVICES (GF),Accommodation,AIRBNB * HMXQSZX933,18-Jan-2019,487.33
D1200G-RESIDENT SERVICES (GF),Financial Services,NATIONALITY DIRECTORAT,18-Jan-2019,80.00
D1200G-RESIDENT SERVICES (GF),Horticultural-Other,WWW.PRESTIGEFLOWERS.CO.U,18-Jan-2019,29.29
D1100G-ADULTS & HEALTH,Conference Expenses,WWW.ADASS.ORG.UK,18-Jan-2019,499.00
D1200G-RESIDENT SERVICES (GF),Consultancy-Other,TVLICENSING.CO.UK,18-Jan-2019,150.50
D1200G-RESIDENT SERVICES (GF),Education-Library Books,AMZN Mktp UK,18-Jan-2019,11.49
D1200G-RESIDENT SERVICES (GF),Travel/Subsistence,OYSTER AUTO-TOP UP,18-Jan-2019,60.00
D1200G-RESIDENT SERVICES (GF),Travel/Subsistence,OYSTER AUTO-TOP UP,18-Jan-2019,20.00
D1200G-RESIDENT SERVICES (GF),Education-Library Books,AMZN Mktp UK,18-Jan-2019,19.98
D1200G-RESIDENT SERVICES (GF),Travel/Subsistence,OYSTER AUTO-TOP UP,18-Jan-2019,60.00
D1200G-RESIDENT SERVICES (GF),Travel/Subsistence,OYSTER AUTO-TOP UP,18-Jan-2019,40.00
D1400G-CHILDREN'S SERVICES,Travel/Subsistence,OYSTER AUTO-TOP UP,18-Jan-2019,40.00
D1200G-RESIDENT SERVICES (GF),Travel/Subsistence,OYSTER AUTO-TOP UP,18-Jan-2019,60.00
D1200G-RESIDENT SERVICES (GF),Education-Library Books,AMZN Mktp UK,18-Jan-2019,10.98
D1200G-RESIDENT SERVICES (GF),Education-Library Books,CENTRAL SOURCE LTD,18-Jan-2019,107.96
D1800G-RESIDENT SERVICES (HRA),Travel/Subsistence,LUL TICKET MACHINE,18-Jan-2019,30.00
D1200G-RESIDENT SERVICES (GF),Education-Library Books,AMZN Mktp UK,18-Jan-2019,24.99
D1200G-RESIDENT SERVICES (GF),Furniture-Domestic Furniture,WAYFAIR #2627634918,18-Jan-2019,429.99
D1400G-CHILDREN'S SERVICES,Travel/Subsistence,OYSTER AUTO-TOP UP,18-Jan-2019,20.00
D1100G-ADULTS & HEALTH,Catering Food & Drink,TESCO STORE 2764,18-Jan-2019,120.99
D1200G-RESIDENT SERVICES (GF),Catering Food & Drink,TESCO STORE 2143,18-Jan-2019,50.00
D1200G-RESIDENT SERVICES (GF),Travel/Subsistence,OYSTER ONLINE,18-Jan-2019,30.00
D1200G-RESIDENT SERVICES (GF),Education-Library Books,AMZN Mktp UK,18-Jan-2019,6.51
D1200G-RESIDENT SERVICES (GF),Catering Food & Drink,MARKS&SPENCER PLC,18-Jan-2019,48.00
D1200G-RESIDENT SERVICES (GF),Furniture-Office Furniture,DEMCO EUROPE,18-Jan-2019,795.00
D1200G-RESIDENT SERVICES (GF),Travel/Subsistence,OYSTER AUTO-TOP UP,19-Jan-2019,40.00
D1200G-RESIDENT SERVICES (GF),Travel/Subsistence,OYSTER AUTO-TOP UP,19-Jan-2019,40.00
D1200G-RESIDENT SERVICES (GF),Catering Food & Drink,LIDL UK LONDON,19-Jan-2019,4.27
D1200G-RESIDENT SERVICES (GF),Travel/Subsistence,OYSTER AUTO-TOP UP,19-Jan-2019,60.00
D1200G-RESIDENT SERVICES (GF),Travel/Subsistence,OYSTER AUTO-TOP UP,19-Jan-2019,40.00
D1200G-RESIDENT SERVICES (GF),Education-Library Books,AMZN Mktp UK,19-Jan-2019,2.53
D1200G-RESIDENT SERVICES (GF),Travel/Subsistence,OYSTER AUTO-TOP UP,19-Jan-2019,20.00
D1200G-RESIDENT SERVICES (GF),Education-Library Books,AMZN Mktp UK,19-Jan-2019,39.32
D1200G-RESIDENT SERVICES (GF),Travel/Subsistence,OYSTER AUTO-TOP UP,19-Jan-2019,40.00
D1200G-RESIDENT SERVICES (GF),Travel/Subsistence,OYSTER AUTO-TOP UP,20-Jan-2019,20.00
D1200G-RESIDENT SERVICES (GF),Travel/Subsistence,OYSTER AUTO-TOP UP,20-Jan-2019,40.00
D1300G-FINANCE & INVESTMENT,IT Software,ADOBE  CREATIVE CLOUD,20-Jan-2019,141.60
D1200G-RESIDENT SERVICES (GF),Education-Library Books,AMZN Mktp UK,20-Jan-2019,115.81
D1200G-RESIDENT SERVICES (GF),Travel/Subsistence,OYSTER AUTO-TOP UP,20-Jan-2019,40.00
D1800G-RESIDENT SERVICES (HRA),Facilities-Market Research,AMAZON PRIME,21-Jan-2019,7.99
D1800G-RESIDENT SERVICES (HRA),Building-Timber,B & Q 1009,21-Jan-2019,26.49
D1100G-ADULTS & HEALTH,Domestic Goods-Other,WWW.ARGOS.CO.UK,21-Jan-2019,258.95
D1200G-RESIDENT SERVICES (GF),Catering Food & Drink,TESCO STORE 2143,21-Jan-2019,38.66
D1350G-CHIEF EXECUTIVE DIRECTORATE,Travel/Subsistence,LUL TICKET MACHINE,21-Jan-2019,50.00
D1100G-ADULTS & HEALTH,Accommodation,CASH ADVANCE FEE,21-Jan-2019,2.95
D1100G-ADULTS & HEALTH,Catering Food & Drink,WWW.ICELAND.CO.UK,21-Jan-2019,133.76
D1800G-RESIDENT SERVICES (HRA),Works-Construction/Materials,LOCKSMITHS AT THE TOOL,21-Jan-2019,140.00
D1100G-ADULTS & HEALTH,Catering Food & Drink,SAINSBURYS S/MKTS,21-Jan-2019,11.50
D1200G-RESIDENT SERVICES (GF),Building-Timber,ACRE LANE BUILDERS,21-Jan-2019,35.93
D1200G-RESIDENT SERVICES (GF),Taxi Fares,SW19 TO SE21,21-Jan-2019,30.00
D1200G-RESIDENT SERVICES (GF),Facilities-Advertising,EXPRESS NEWS,21-Jan-2019,60.00
D1200G-RESIDENT SERVICES (GF),Mail Services-Postage,POST OFFICE COUNTER,21-Jan-2019,12.12
D1100G-ADULTS & HEALTH,Catering Food & Drink,TESCO STORES 4342,21-Jan-2019,78.30
D1200G-RESIDENT SERVICES (GF),Books/Publications/Resources,Sainsburys Bank CASH,21-Jan-2019,170.00
D1800G-RESIDENT SERVICES (HRA),Consultancy-Other,TVLICENSING.CO.UK,21-Jan-2019,150.50
D1100G-ADULTS & HEALTH,Catering Food & Drink,TESCO STORES 5999,21-Jan-2019,44.83
D1100G-ADULTS & HEALTH,Catering Food & Drink,SAINSBURY'S,21-Jan-2019,10.90
D1200G-RESIDENT SERVICES (GF),Travel/Subsistence,OYSTER AUTO-TOP UP,21-Jan-2019,20.00
D1200G-RESIDENT SERVICES (GF),Education-Library Books,AMZN MKTP UK AMAZON.CO.UK,21-Jan-2019,-12.12
D1200G-RESIDENT SERVICES (GF),Travel/Subsistence,OYSTER ONLINE,21-Jan-2019,30.00
D1200G-RESIDENT SERVICES (GF),Travel/Subsistence,OYSTER ONLINE,21-Jan-2019,30.00
D1200G-RESIDENT SERVICES (GF),Catering Food & Drink,TESCO STORES-2143,21-Jan-2019,8.04
D1800G-RESIDENT SERVICES (HRA),Building-Timber,B & Q 1037,22-Jan-2019,56.36
D1200G-RESIDENT SERVICES (GF),Catering Food & Drink,TESCO STORE 2572,22-Jan-2019,200.00
D1200G-RESIDENT SERVICES (GF),Education-Library Books,AMZN Mktp UK,22-Jan-2019,19.99
D1200G-RESIDENT SERVICES (GF),Domestic Goods-Other,WWW.JOHNLEWIS.COM,22-Jan-2019,14.74
D1200G-RESIDENT SERVICES (GF),Utilities,BRITISH GAS OTP,22-Jan-2019,200.88
D1800G-RESIDENT SERVICES (HRA),Building-Timber,SCREWFIX BERMONDSEY,22-Jan-2019,11.98
D1800G-RESIDENT SERVICES (HRA),Taxi Fares,GREYHOUND CARS LTD,22-Jan-2019,15.40
D1100G-ADULTS & HEALTH,Accommodation,BURNSIDE,22-Jan-2019,65.00
D1200G-RESIDENT SERVICES (GF),Travel/Subsistence,OYSTER ONLINE,22-Jan-2019,30.00
D1200G-RESIDENT SERVICES (GF),Education-Library Books,AMZN Mktp UK,22-Jan-2019,8.88
D1200G-RESIDENT SERVICES (GF),Books/Publications/Resources,CASH ADVANCE FEE,22-Jan-2019,5.02
D1800G-RESIDENT SERVICES (HRA),Consultancy-Business,FORTRESS MASTER LOCKSMITH,22-Jan-2019,59.00
D1200G-RESIDENT SERVICES (GF),Travel/Subsistence,OYSTER ONLINE,22-Jan-2019,30.00
D1200G-RESIDENT SERVICES (GF),Education-Library Books,AMZN MKTP UK,22-Jan-2019,19.29
D1200G-RESIDENT SERVICES (GF),Education-Library Books,AMAZON.CO.UK,22-Jan-2019,32.20
D1800G-RESIDENT SERVICES (HRA),Building-Timber,C BREWER & SONS,22-Jan-2019,160.00
D1800G-RESIDENT SERVICES (HRA),IT Software-Customised,SurveyMonkey,22-Jan-2019,408.00
D1200G-RESIDENT SERVICES (GF),Travel/Subsistence,LUL TICKET MACHINE,22-Jan-2019,30.00
D1200G-RESIDENT SERVICES (GF),Facilities-Printing,AMZ,22-Jan-2019,-35.43
D1200G-RESIDENT SERVICES (GF),Education-Musical Instruments,AMZN Mktp UK,22-Jan-2019,11.56
D1200G-RESIDENT SERVICES (GF),Education-Other,AMZN Mktp UK,22-Jan-2019,23.96
D1100G-ADULTS & HEALTH,Legal Services-Other,HMCOURTS-SERVICE.G,23-Jan-2019,75.00
D1200G-RESIDENT SERVICES (GF),Travel/Subsistence,OYSTER ONLINE,23-Jan-2019,60.00
D1200G-RESIDENT SERVICES (GF),Domestic Goods-Other,ARGOS RETAIL GROUP,23-Jan-2019,44.99
D1200G-RESIDENT SERVICES (GF),Education-Library Books,AMZN MKTP UK AMAZON.CO.UK,23-Jan-2019,-18.48
D1400G-CHILDREN'S SERVICES,Travel/Subsistence,OYSTER AUTO-TOP UP,23-Jan-2019,20.00
D1200G-RESIDENT SERVICES (GF),Travel/Subsistence,OYSTER ONLINE,23-Jan-2019,-30.00
D1200G-RESIDENT SERVICES (GF),Education-Library Books,AMZN Mktp UK,23-Jan-2019,44.99
D1200G-RESIDENT SERVICES (GF),Travel/Subsistence,OYSTER AUTO-TOP UP,23-Jan-2019,20.00
D1200G-RESIDENT SERVICES (GF),Education-Library Books,AMZN MKTP UK,23-Jan-2019,25.54
D1800G-RESIDENT SERVICES (HRA),Cycles Purchase,HALFORDS 0716,23-Jan-2019,25.00
D1800G-RESIDENT SERVICES (HRA),Education-Library Books,AMZN Mktp UK,23-Jan-2019,19.46
D1200G-RESIDENT SERVICES (GF),Building-Timber,SCREWFIX DIRECT,23-Jan-2019,84.32
D1200G-RESIDENT SERVICES (GF),Travel/Subsistence,OYSTER AUTO-TOP UP,23-Jan-2019,40.00
D1200G-RESIDENT SERVICES (GF),Mail Services-Postage,THE POST OFFICE,23-Jan-2019,8.50
D1200G-RESIDENT SERVICES (GF),Facilities-Printing,Amazon.co.uk,23-Jan-2019,10.64
D1200G-RESIDENT SERVICES (GF),Education-Library Books,AMZN Mktp UK,23-Jan-2019,9.99
D1100G-ADULTS & HEALTH,Education-Library Books,AMZN MKTP UK,23-Jan-2019,3.30
D1200G-RESIDENT SERVICES (GF),Domestic Goods-Other,WWW.ALIBABA.COM,23-Jan-2019,"2,071.21"
D1200G-RESIDENT SERVICES (GF),Domestic Goods-Other,WWW.ARGOS.CO.UK,23-Jan-2019,53.93
D1200G-RESIDENT SERVICES (GF),Travel/Subsistence,OYSTER ONLINE,23-Jan-2019,-30.00
D1800G-RESIDENT SERVICES (HRA),Consultancy-Business,WP-WWW.OYEZFORMSLINK.C,23-Jan-2019,146.84
D1200G-RESIDENT SERVICES (GF),Cycles Purchase,HALFORDS 0895,23-Jan-2019,3.50
D1200G-RESIDENT SERVICES (GF),Travel/Subsistence,OYSTER AUTO-TOP UP,23-Jan-2019,120.00
D1200G-RESIDENT SERVICES (GF),Education-Library Books,AMAZON.CO.UK,23-Jan-2019,17.99
D1200G-RESIDENT SERVICES (GF),Education-Library Books,Amazon.co.uk,23-Jan-2019,44.29
D1200G-RESIDENT SERVICES (GF),Education-Musical Instruments,AMZN Mktp UK,23-Jan-2019,12.54
D1350G-CHIEF EXECUTIVE DIRECTORATE,Travel/Subsistence,TRAINLINE,23-Jan-2019,74.80
D1100G-ADULTS & HEALTH,Domestic Goods-Other,WWW.ARGOS.CO.UK,23-Jan-2019,197.93
D1200G-RESIDENT SERVICES (GF),Travel/Subsistence,OYSTER AUTO-TOP UP,23-Jan-2019,40.00
D1200G-RESIDENT SERVICES (GF),Education-Library Books,AMAZON.CO.UK,23-Jan-2019,26.58
D1200G-RESIDENT SERVICES (GF),Education-Musical Instruments,AMZN Mktp UK,23-Jan-2019,21.00
D1100G-ADULTS & HEALTH,Catering Food & Drink,TESCO STORE 2445,24-Jan-2019,143.32
D1200G-RESIDENT SERVICES (GF),Travel/Subsistence,OYSTER AUTO-TOP UP,24-Jan-2019,20.00
D1200G-RESIDENT SERVICES (GF),Domestic Goods-Other,ARGOS LTD,24-Jan-2019,9.99
D1200G-RESIDENT SERVICES (GF),Horticultural-Other,GREENSHEILDS JCB,24-Jan-2019,35.20
D1200G-RESIDENT SERVICES (GF),Travel/Subsistence,TFL AUTOSETTLEMENT,24-Jan-2019,20.00
D1200G-RESIDENT SERVICES (GF),Domestic Goods-Other,CURRYS ONLINE,24-Jan-2019,199.00
D1200G-RESIDENT SERVICES (GF),Furniture-Soft Furnishings,SP * SOFA CLUB,24-Jan-2019,478.00
D1200G-RESIDENT SERVICES (GF),Domestic Goods-Other,WWW.ARGOS.CO.UK,24-Jan-2019,739.97
D1300G-FINANCE & INVESTMENT,Domestic Goods-Other,CANFORD AUDIO PLC,24-Jan-2019,81.60
D1400G-CHILDREN'S SERVICES,Travel/Subsistence,OYSTER AUTO-TOP UP,24-Jan-2019,20.00
D1200G-RESIDENT SERVICES (GF),Travel/Subsistence,OYSTER ONLINE,24-Jan-2019,20.00
D1200G-RESIDENT SERVICES (GF),Education-Library Books,AMZN Mktp UK,24-Jan-2019,17.05
D1300G-FINANCE & INVESTMENT,Facilities-Printing,METROPOLIS BUS PUBLISH,24-Jan-2019,"2,397.60"
D1100G-ADULTS & HEALTH,Catering Food & Drink,ICELAND,24-Jan-2019,23.00
D1200G-RESIDENT SERVICES (GF),Travel/Subsistence,OYSTER AUTO-TOP UP,24-Jan-2019,40.00
D1200G-RESIDENT SERVICES (GF),Domestic Goods-Other,WWW.ARGOS.CO.UK,24-Jan-2019,256.94
D1200G-RESIDENT SERVICES (GF),Travel/Subsistence,TRAINLINE,24-Jan-2019,260.15
D1800G-RESIDENT SERVICES (HRA),Education-Library Books,AMZN Mktp UK,24-Jan-2019,123.90
D1200G-RESIDENT SERVICES (GF),Consultancy-Business,FORTRESS MASTER LOCKSMITH,24-Jan-2019,108.00
D1200G-RESIDENT SERVICES (GF),Travel/Subsistence,TRAINLINE,24-Jan-2019,43.22
D1200G-RESIDENT SERVICES (GF),Travel/Subsistence,OYSTER AUTO-TOP UP,24-Jan-2019,40.00
D1100G-ADULTS & HEALTH,Taxi Fares,WWW.ADDISONLEE.COM,24-Jan-2019,10.20
D1200G-RESIDENT SERVICES (GF),Facilities-Printing,Amazon.co.uk,24-Jan-2019,182.52
D1200G-RESIDENT SERVICES (GF),Domestic Goods-Other,MOTHERCARE DIRECT-MOTO,24-Jan-2019,-140.00
D1200G-RESIDENT SERVICES (GF),Healthcare Services,SQ *ATCO,24-Jan-2019,60.00
D1200G-RESIDENT SERVICES (GF),Travel/Subsistence,OYSTER AUTO-TOP UP,24-Jan-2019,120.00
D1300G-FINANCE & INVESTMENT,Domestic Goods-Other,WWW.BETTERLIFEHEALTHCA,24-Jan-2019,434.78
D1300G-FINANCE & INVESTMENT,IT Services,123 REG R/T,24-Jan-2019,23.99
D1200G-RESIDENT SERVICES (GF),Domestic Goods-Other,IZ *E-Tek Zone,24-Jan-2019,25.00
D1200G-RESIDENT SERVICES (GF),Financial Services,LAND REGISTRY,24-Jan-2019,3.00
D1200G-RESIDENT SERVICES (GF),Domestic Goods-Other,ARGOS RETAIL GROUP,24-Jan-2019,50.00
D1200G-RESIDENT SERVICES (GF),Travel/Subsistence,OYSTER AUTO-TOP UP,24-Jan-2019,60.00
D1200G-RESIDENT SERVICES (GF),Education-Library Books,AMZN Mktp UK,25-Jan-2019,332.12
D1200G-RESIDENT SERVICES (GF),Travel/Subsistence,OYSTER AUTO-TOP UP,25-Jan-2019,60.00
D1200G-RESIDENT SERVICES (GF),Education-Library Books,AMZN Mktp UK,25-Jan-2019,4.83
D1200G-RESIDENT SERVICES (GF),Facilities-Printing,AMZ,25-Jan-2019,-0.01
D1800G-RESIDENT SERVICES (HRA),IT Software,STAMPS4U.CO.UK,25-Jan-2019,-72.50
D1400G-CHILDREN'S SERVICES,Travel/Subsistence,OYSTER AUTO-TOP UP,25-Jan-2019,40.00
D1800G-RESIDENT SERVICES (HRA),Domestic Goods-Other,Le Premier Shoe Care,25-Jan-2019,32.85
D1100G-ADULTS & HEALTH,Accommodation,LONDON CRYSTAL PALACE HOT,25-Jan-2019,443.65
D1200G-RESIDENT SERVICES (GF),Travel/Subsistence,TFL PENALTY CHARGE,25-Jan-2019,240.00
D1200G-RESIDENT SERVICES (GF),Domestic Goods-Other,WWW.ARGOS.CO.UK,25-Jan-2019,299.99
D1200G-RESIDENT SERVICES (GF),Travel/Subsistence,OYSTER AUTO-TOP UP,25-Jan-2019,20.00
D1200G-RESIDENT SERVICES (GF),Travel/Subsistence,OYSTER AUTO-TOP UP,25-Jan-2019,40.00
D1200G-RESIDENT SERVICES (GF),Travel/Subsistence,OYSTER AUTO-TOP UP,25-Jan-2019,40.00
D1800G-RESIDENT SERVICES (HRA),Travel/Subsistence,LUL TICKET MACHINE,25-Jan-2019,30.00
D1100G-ADULTS & HEALTH,Legal Services-Other,HMCOURTS-SERVICE.G,25-Jan-2019,75.00
D1200G-RESIDENT SERVICES (GF),Travel/Subsistence,OYSTER ONLINE,25-Jan-2019,50.00
D1100G-ADULTS & HEALTH,Financial Services,NATIONWIDE /W0270Z,25-Jan-2019,400.00
D1200G-RESIDENT SERVICES (GF),Travel/Subsistence,OYSTER AUTO-TOP UP,25-Jan-2019,40.00
D1200G-RESIDENT SERVICES (GF),Education-Other,AMZN Mktp UK,25-Jan-2019,199.95
D1100G-ADULTS & HEALTH,Education-Other,VIRTUAL COLLEGE LIMITE,25-Jan-2019,72.00
D1200G-RESIDENT SERVICES (GF),Travel/Subsistence,OYSTER AUTO-TOP UP,25-Jan-2019,20.00
D1800G-RESIDENT SERVICES (HRA),Education-Library Books,AMZN Mktp UK,25-Jan-2019,18.24
D1100G-ADULTS & HEALTH,Education-Supplies,WWW.IDCARDCENTRE.CO.UK,25-Jan-2019,934.14
D1200G-RESIDENT SERVICES (GF),Travel/Subsistence,OYSTER AUTO-TOP UP,26-Jan-2019,20.00
D1200G-RESIDENT SERVICES (GF),Travel/Subsistence,OYSTER AUTO-TOP UP,26-Jan-2019,40.00
D1200G-RESIDENT SERVICES (GF),Travel/Subsistence,OYSTER AUTO-TOP UP,26-Jan-2019,60.00
D1200G-RESIDENT SERVICES (GF),Travel/Subsistence,OYSTER AUTO-TOP UP,26-Jan-2019,40.00
D1400G-CHILDREN'S SERVICES,Travel/Subsistence,OYSTER AUTO-TOP UP,26-Jan-2019,20.00
D1200G-RESIDENT SERVICES (GF),Travel/Subsistence,OYSTER AUTO-TOP UP,26-Jan-2019,40.00
D1200G-RESIDENT SERVICES (GF),Accommodation,TRAVELODGE GB0860,27-Jan-2019,72.45
D1100G-ADULTS & HEALTH,Education-Library Books,AMZN MKTP UK,27-Jan-2019,81.25
D1200G-RESIDENT SERVICES (GF),Travel/Subsistence,OYSTER AUTO-TOP UP,27-Jan-2019,80.00
D1200G-RESIDENT SERVICES (GF),Travel/Subsistence,OYSTER AUTO-TOP UP,27-Jan-2019,20.00
D1200G-RESIDENT SERVICES (GF),Travel/Subsistence,OYSTER AUTO-TOP UP,27-Jan-2019,60.00
D1400G-CHILDREN'S SERVICES,Travel/Subsistence,OYSTER AUTO-TOP UP,27-Jan-2019,20.00
D1100G-ADULTS & HEALTH,Catering Food & Drink,TESCO STORES 5999,28-Jan-2019,47.20
D1300G-FINANCE & INVESTMENT,Financial Services,LAND REGISTRY,28-Jan-2019,9.00
D1200G-RESIDENT SERVICES (GF),Accommodation,PREMIER INN44014610,28-Jan-2019,54.00
D1200G-RESIDENT SERVICES (GF),Education-Library Books,AMZN Mktp UK,28-Jan-2019,69.11
D1350G-CHIEF EXECUTIVE DIRECTORATE,Catering Food & Drink,TESCO STORES-2143,28-Jan-2019,4.46
D1100G-ADULTS & HEALTH,Catering Food & Drink,ICELAND,28-Jan-2019,6.55
D1200G-RESIDENT SERVICES (GF),Education-Library Books,WATERSTONES.COM,28-Jan-2019,10.74
D1200G-RESIDENT SERVICES (GF),Taxi Fares,SE1 TO IG1 7 SEATER,28-Jan-2019,70.00
D1350G-CHIEF EXECUTIVE DIRECTORATE,Travel/Subsistence,TRAINLINE,28-Jan-2019,65.39
D1250G-SUSTAINABLE GROWTH & OPPORTUNITY,Travel/Subsistence,LUL TICKET MACHINE,28-Jan-2019,60.00
D1200G-RESIDENT SERVICES (GF),Furniture-Domestic Furniture,WAYFAIR #2634026558,28-Jan-2019,113.99
D1100G-ADULTS & HEALTH,Financial Services,CASH ADVANCE FEE,28-Jan-2019,11.80
D1200G-RESIDENT SERVICES (GF),Travel/Subsistence,OYSTER ONLINE,28-Jan-2019,20.00
D1200G-RESIDENT SERVICES (GF),Education-Library Books,AMAZON.CO.UK,28-Jan-2019,13.89
D1100G-ADULTS & HEALTH,Education-Library Books,AMZN MKTP UK,28-Jan-2019,16.79
D1400G-CHILDREN'S SERVICES,Catering Food & Drink,TESCO STORES-2143,28-Jan-2019,41.55
D1200G-RESIDENT SERVICES (GF),Building-Timber,B & Q 1009,28-Jan-2019,63.42
D1200G-RESIDENT SERVICES (GF),Facilities-Printing,Amazon.co.uk,28-Jan-2019,13.44
D1100G-ADULTS & HEALTH,Education-Library Books,AMZN MKTP UK,28-Jan-2019,42.23
D1200G-RESIDENT SERVICES (GF),Building-Timber,SELCO TRADING CTR,28-Jan-2019,29.40
D1200G-RESIDENT SERVICES (GF),Works-Construction,PP*NULIFEBUILD,28-Jan-2019,260.00
D1800G-RESIDENT SERVICES (HRA),Domestic Goods-Other,PRICE BUSTERS - EC,29-Jan-2019,13.95
D1200G-RESIDENT SERVICES (GF),Building-Tools,5960 VAUXHALL,29-Jan-2019,100.00
D1100G-ADULTS & HEALTH,Domestic Goods-Other,HOLLAND & BARRETT,29-Jan-2019,6.58
D1200G-RESIDENT SERVICES (GF),Environmental Services-Cleansing,MOLLY MAID EDINBURUGH,29-Jan-2019,"1,000.00"
D1200G-RESIDENT SERVICES (GF),Education-Library Books,AMZN Mktp UK,29-Jan-2019,131.56
D1350G-CHIEF EXECUTIVE DIRECTORATE,Mail Services-Postage,THE POST OFFICE,29-Jan-2019,117.50
D1800G-RESIDENT SERVICES (HRA),Legal Services-Other,HMCOURTS-SERVICE.G,29-Jan-2019,500.00
D1400G-CHILDREN'S SERVICES,Catering Food & Drink,TESCO STORES-2143,29-Jan-2019,15.48
D1200G-RESIDENT SERVICES (GF),Taxi Fares,HA8 TO SM5 PLUS ESCORT,29-Jan-2019,130.00
D1200G-RESIDENT SERVICES (GF),Taxi Fares,SW9 TO SM5,29-Jan-2019,50.00
D1200G-RESIDENT SERVICES (GF),Travel/Subsistence,TFL AUTOSETTLEMENT,29-Jan-2019,20.00
D1200G-RESIDENT SERVICES (GF),Travel/Subsistence,TRAINLINE,29-Jan-2019,21.81
D1200G-RESIDENT SERVICES (GF),Education-Library Books,AMZN Mktp UK,29-Jan-2019,109.95
D1200G-RESIDENT SERVICES (GF),Education-Other,WWW.E-PAYCOBALT.COM,29-Jan-2019,40.00
D1200G-RESIDENT SERVICES (GF),Travel/Subsistence,AUTO TOP-UP ARREARS,29-Jan-2019,20.00
D1200G-RESIDENT SERVICES (GF),Haulage,STEVE FRIEZE REMOVALS,29-Jan-2019,250.00
D1200G-RESIDENT SERVICES (GF),Financial Services,IPS DURHAM CONTACT CTR,29-Jan-2019,175.50
D1300G-FINANCE & INVESTMENT,Travel/Subsistence,VIRGIN TRAINS,29-Jan-2019,202.40
D1200G-RESIDENT SERVICES (GF),Travel/Subsistence,OYSTER ONLINE,29-Jan-2019,60.00
D1200G-RESIDENT SERVICES (GF),Taxi Fares,BR1 TO HA0 RETURN,29-Jan-2019,140.00
D1200G-RESIDENT SERVICES (GF),Domestic Goods-Other,AMAZON.CO.UK,29-Jan-2019,4.98
D1200G-RESIDENT SERVICES (GF),Facilities-Printing,GUINNESS NORTHERN,29-Jan-2019,530.58
D1200G-RESIDENT SERVICES (GF),Education-Library Books,Amazon.co.uk,29-Jan-2019,13.00
D1200G-RESIDENT SERVICES (GF),Education-Library Books,AMAZON.CO.UK,29-Jan-2019,12.46
D1200G-RESIDENT SERVICES (GF),Building-General,LEYLAND SDM CLAPHAM HIGH,29-Jan-2019,76.55
D1200G-RESIDENT SERVICES (GF),Travel/Subsistence,OYSTER ONLINE,29-Jan-2019,90.00
D1200G-RESIDENT SERVICES (GF),Taxi Fares,SE20 TO SW9,29-Jan-2019,20.00
D1400G-CHILDREN'S SERVICES,Clothing-Other,SAFETYSUPPL,29-Jan-2019,27.16
D1200G-RESIDENT SERVICES (GF),Building-Roofing,TARA FABRICATIONS,29-Jan-2019,125.00
D1100G-ADULTS & HEALTH,Building-Others,AMZN Mktp UK,29-Jan-2019,4.74
D1200G-RESIDENT SERVICES (GF),Domestic Goods-Other,CURRYS SUPERSTORE,29-Jan-2019,110.00
D1200G-RESIDENT SERVICES (GF),Building-General,LEYLAND SDM CLAPHAM HIGH,29-Jan-2019,150.92
D1200G-RESIDENT SERVICES (GF),Facilities-Advertising,WOODSIDE STORES,29-Jan-2019,50.00
D1200G-RESIDENT SERVICES (GF),Building-Tools,5960 VAUXHALL,29-Jan-2019,100.00
D1100G-ADULTS & HEALTH,Catering Food & Drink,TESCO STORE 2143,29-Jan-2019,4.59
D1200G-RESIDENT SERVICES (GF),Travel/Subsistence,OYSTER ONLINE,29-Jan-2019,30.00
D1200G-RESIDENT SERVICES (GF),Taxi Fares,SW2 TO SE6,29-Jan-2019,40.00
D1200G-RESIDENT SERVICES (GF),Taxi Fares,POLICE STAT N9 RETURN,29-Jan-2019,150.00
D1200G-RESIDENT SERVICES (GF),Education-Library Books,AMZN Mktp UK,29-Jan-2019,96.04
D1400G-CHILDREN'S SERVICES,Catering Food & Drink,TESCO STORES-2143,30-Jan-2019,8.50
D1200G-RESIDENT SERVICES (GF),Stationery,AMZN Mktp UK,30-Jan-2019,33.72
D1200G-RESIDENT SERVICES (GF),Stationery,AMZN MKTP UK,30-Jan-2019,14.99
D1200G-RESIDENT SERVICES (GF),Travel/Subsistence,OYSTER AUTO-TOP UP,30-Jan-2019,60.00
D1200G-RESIDENT SERVICES (GF),Travel/Subsistence,OYSTER ONLINE,30-Jan-2019,40.00
D1200G-RESIDENT SERVICES (GF),Education-Library Books,AMAZON.CO.UK,30-Jan-2019,6.25
D1100G-ADULTS & HEALTH,Facilities-Reprographics,PAYPAL,30-Jan-2019,245.75
D1200G-RESIDENT SERVICES (GF),Education-Library Books,AMZN MKTP UK,30-Jan-2019,7.28
D1100G-ADULTS & HEALTH,Accommodation,PREMIER INN44024365,30-Jan-2019,216.00
D1200G-RESIDENT SERVICES (GF),Travel/Subsistence,OYSTER AUTO-TOP UP,30-Jan-2019,40.00
D1200G-RESIDENT SERVICES (GF),Catering Food & Drink,TESCO STORE 2143,30-Jan-2019,13.58
D1200G-RESIDENT SERVICES (GF),Education-Library Books,AMZN Mktp UK,30-Jan-2019,4.39
D1200G-RESIDENT SERVICES (GF),Travel/Subsistence,OYSTER ONLINE,30-Jan-2019,30.00
D1200G-RESIDENT SERVICES (GF),Education-Other,FORTRESS MASTER LOCKSMITH,30-Jan-2019,7.00
D1200G-RESIDENT SERVICES (GF),Travel/Subsistence,ZIPCAR,30-Jan-2019,181.20
D1200G-RESIDENT SERVICES (GF),Cemetery & Crematorium,AMZN Mktp UK,30-Jan-2019,3.29
D1200G-RESIDENT SERVICES (GF),Accommodation,EASYJET,30-Jan-2019,366.63
D1200G-RESIDENT SERVICES (GF),Travel/Subsistence,OYSTER ONLINE,30-Jan-2019,150.00
D1200G-RESIDENT SERVICES (GF),Education-Library Books,Amazon.co.uk,30-Jan-2019,64.14
D1200G-RESIDENT SERVICES (GF),Education-Other,HALFORDS 0716,30-Jan-2019,5.80
D1800G-RESIDENT SERVICES (HRA),Travel/Subsistence,LUL TICKET MACHINE,30-Jan-2019,30.00
D1400G-CHILDREN'S SERVICES,Catering Food & Drink,NANDOS BRIXTON,30-Jan-2019,230.70
D1100G-ADULTS & HEALTH,Accommodation,LONDON CRYSTAL PALACE HOT,30-Jan-2019,715.30
D1200G-RESIDENT SERVICES (GF),Domestic Goods-Other,ARGOS RETAIL GROUP,30-Jan-2019,34.99
D1200G-RESIDENT SERVICES (GF),Travel/Subsistence,OYSTER AUTO-TOP UP,30-Jan-2019,40.00
D1800G-RESIDENT SERVICES (HRA),Domestic Goods-Other,PRICE BUSTERS - EC,30-Jan-2019,43.88
D1200G-RESIDENT SERVICES (GF),Stationery,AMZN Mktp UK,30-Jan-2019,33.72
D1200G-RESIDENT SERVICES (GF),Consultancy-Business,EB *MENTAL HEALTH IN S,30-Jan-2019,329.99
D1400G-CHILDREN'S SERVICES,Catering Food & Drink,TESCO STORES-2143,31-Jan-2019,31.39
D1200G-RESIDENT SERVICES (GF),Travel/Subsistence,OYSTER AUTO-TOP UP,31-Jan-2019,120.00
D1200G-RESIDENT SERVICES (GF),Travel/Subsistence,TRAINLINE,31-Jan-2019,-42.60
D1200G-RESIDENT SERVICES (GF),Travel/Subsistence,DOVETAIL FOKS,31-Jan-2019,"1,568.85"
D1200G-RESIDENT SERVICES (GF),Education-Other,WWW.FUNNEL.KNIGHT.TRAI,31-Jan-2019,360.00
D1100G-ADULTS & HEALTH,Legal Services-Other,HMCOURTS-SERVICE.G,31-Jan-2019,150.00
D1400G-CHILDREN'S SERVICES,Travel/Subsistence,OYSTER AUTO-TOP UP,31-Jan-2019,60.00
D1200G-RESIDENT SERVICES (GF),Travel/Subsistence,OYSTER AUTO-TOP UP,31-Jan-2019,20.00
D1200G-RESIDENT SERVICES (GF),Catering Food & Drink,TESCO STORES-2143,31-Jan-2019,9.39
D1400G-CHILDREN'S SERVICES,Catering Food & Drink,NANDOS ELEPHANT & CAST,31-Jan-2019,44.60
D1200G-RESIDENT SERVICES (GF),Building-Timber,SCREWFIX DIRECT,31-Jan-2019,187.95
D1100G-ADULTS & HEALTH,Financial Services,NATWEST BANK  /,31-Jan-2019,50.00
D1200G-RESIDENT SERVICES (GF),Education-Arts/Crafts,AMZN Mktp UK,31-Jan-2019,37.74
D1800G-RESIDENT SERVICES (HRA),Travel/Subsistence,LUL TICKET MACHINE,31-Jan-2019,285.00
D1200G-RESIDENT SERVICES (GF),Travel/Subsistence,OYSTER ONLINE,31-Jan-2019,10.00
D1200G-RESIDENT SERVICES (GF),Travel/Subsistence,DOVETAIL FOKS,31-Jan-2019,40.79
D1200G-RESIDENT SERVICES (GF),Education-Library Books,AMZN Mktp UK,31-Jan-2019,5.79
D1100G-ADULTS & HEALTH,Financial Services,NATWEST BANK  /,31-Jan-2019,200.00
D1100G-ADULTS & HEALTH,Education-Other,AMZN MKTP UK,31-Jan-2019,329.80
D1200G-RESIDENT SERVICES (GF),Travel/Subsistence,OYSTER AUTO-TOP UP,31-Jan-2019,40.00
D1200G-RESIDENT SERVICES (GF),Legal Services-Other,HMCOURTS-SERVICE.G,31-Jan-2019,963.50
D1200G-RESIDENT SERVICES (GF),Travel/Subsistence,OYSTER AUTO-TOP UP,31-Jan-2019,80.00
D1200G-RESIDENT SERVICES (GF),Travel/Subsistence,OYSTER AUTO-TOP UP,31-Jan-2019,20.00
D1100G-ADULTS & HEALTH,Building-Others,AMZN MKTP UK,31-Jan-2019,90.00
D1200G-RESIDENT SERVICES (GF),Travel/Subsistence,OYSTER AUTO-TOP UP,31-Jan-2019,60.00
D1200G-RESIDENT SERVICES (GF),Travel/Subsistence,OYSTER ONLINE,31-Jan-2019,-20.00
D1350G-CHIEF EXECUTIVE DIRECTORATE,Travel/Subsistence,VIRGIN TRAINS,31-Jan-2019,-20.50
D1200G-RESIDENT SERVICES (GF),Travel/Subsistence,OYSTER AUTO-TOP UP,31-Jan-2019,20.00
D1200G-RESIDENT SERVICES (GF),Furniture-Domestic Furniture,B & Q 1237,01-Feb-2019,119.00
D1100G-ADULTS & HEALTH,Financial Services,CASH ADVANCE FEE,01-Feb-2019,2.95
D1100G-ADULTS & HEALTH,Healthcare Services,MEDIWORLD LIMITED,01-Feb-2019,55.20
D1200G-RESIDENT SERVICES (GF),Travel/Subsistence,OYSTER AUTO-TOP UP,01-Feb-2019,60.00
D1200G-RESIDENT SERVICES (GF),Facilities-Advertising,EXPRESS NEWS,01-Feb-2019,30.00
D1300G-FINANCE & INVESTMENT,IT Services,NATIONBUILDER,01-Feb-2019,172.87
D1400G-CHILDREN'S SERVICES,Travel/Subsistence,OYSTER AUTO-TOP UP,01-Feb-2019,40.00
D1200G-RESIDENT SERVICES (GF),Education-Library Books,AMZN Mktp UK,01-Feb-2019,6.57
D1100G-ADULTS & HEALTH,Education-Other,AMZN MKTP UK,01-Feb-2019,69.45
D1200G-RESIDENT SERVICES (GF),Travel/Subsistence,EUROSTAR INTERNET,01-Feb-2019,423.00
D1200G-RESIDENT SERVICES (GF),Travel/Subsistence,EUROSTAR INT ECC,01-Feb-2019,-211.50
D1200G-RESIDENT SERVICES (GF),Travel/Subsistence,OYSTER AUTO-TOP UP,01-Feb-2019,80.00
D1350G-CHIEF EXECUTIVE DIRECTORATE,Healthcare Services,SOUTH EAST EMPLOYERS,01-Feb-2019,834.00
D1200G-RESIDENT SERVICES (GF),Travel/Subsistence,ZIPCAR,01-Feb-2019,-7.74
D1200G-RESIDENT SERVICES (GF),Arts & Leisure Services,THE TICKET SELLERS,01-Feb-2019,120.00
D1200G-RESIDENT SERVICES (GF),Travel/Subsistence,OYSTER AUTO-TOP UP,01-Feb-2019,20.00
D1200G-RESIDENT SERVICES (GF),Consultancy-Business,CANVAS EVENTS LTD,01-Feb-2019,108.00
D1100G-ADULTS & HEALTH,Financial Services,CASH ADVANCE FEE,01-Feb-2019,5.90
D1200G-RESIDENT SERVICES (GF),Books/Publications/Resources,ETHICAL CONSUMER R,01-Feb-2019,29.95
D1300G-FINANCE & INVESTMENT,IT Services,GOOGLE,01-Feb-2019,13.20
D1200G-RESIDENT SERVICES (GF),Travel/Subsistence,OYSTER AUTO-TOP UP,01-Feb-2019,20.00
D1300G-FINANCE & INVESTMENT,Financial Services,LAND REGISTRY,01-Feb-2019,6.00
D1200G-RESIDENT SERVICES (GF),Financial Services,HM PASSPORT OFFICE,01-Feb-2019,58.50
D1200G-RESIDENT SERVICES (GF),Travel/Subsistence,OYSTER ONLINE,01-Feb-2019,-20.00
D1100G-ADULTS & HEALTH,Accommodation,ASTRA PALACE HOTEL,01-Feb-2019,"1,260.00"
D1200G-RESIDENT SERVICES (GF),Education-Library Books,AMZN MKTP UK,01-Feb-2019,9.99
D1200G-RESIDENT SERVICES (GF),Catering Food & Drink,BAGEL WORLD,01-Feb-2019,39.33
D1200G-RESIDENT SERVICES (GF),Education-Other,AMZN MKTP UK,01-Feb-2019,2.99
D1200G-RESIDENT SERVICES (GF),Consultancy-Business,FORTRESS MASTER LOCKSMITH,01-Feb-2019,-36.00
D1200G-RESIDENT SERVICES (GF),Education-Library Books,AMZN Mktp UK,02-Feb-2019,14.73
D1200G-RESIDENT SERVICES (GF),Travel/Subsistence,OYSTER AUTO-TOP UP,02-Feb-2019,80.00
D1200G-RESIDENT SERVICES (GF),Education-Library Books,Amazon.co.uk,02-Feb-2019,19.50
D1300G-FINANCE & INVESTMENT,IT Services,AWS EMEA,02-Feb-2019,141.65
D1200G-RESIDENT SERVICES (GF),Travel/Subsistence,OYSTER AUTO-TOP UP,02-Feb-2019,20.00
D1200G-RESIDENT SERVICES (GF),IT Software,ADOBE  CREATIVE CLOUD,02-Feb-2019,41.62
D1200G-RESIDENT SERVICES (GF),Financial Services,HM PASSPORT OFFICE,02-Feb-2019,85.00
D1200G-RESIDENT SERVICES (GF),Travel/Subsistence,OYSTER AUTO-TOP UP,03-Feb-2019,20.00
D1300G-FINANCE & INVESTMENT,IT Services,NATIONBUILDER,03-Feb-2019,93.93
D1200G-RESIDENT SERVICES (GF),Financial Services-Grants,PAYPAL,03-Feb-2019,3.50
D1200G-RESIDENT SERVICES (GF),IT Software,ADOBE  CREATIVE CLOUD,03-Feb-2019,41.62
D1200G-RESIDENT SERVICES (GF),Travel/Subsistence,OYSTER AUTO-TOP UP,03-Feb-2019,60.00
D1200G-RESIDENT SERVICES (GF),Domestic Goods-Other,AMAZON.CO.UK,03-Feb-2019,15.83
D1200G-RESIDENT SERVICES (GF),Travel/Subsistence,OYSTER AUTO-TOP UP,03-Feb-2019,20.00
D1200G-RESIDENT SERVICES (GF),Facilities-Market Research,AMAZON PRIME,03-Feb-2019,7.99
D1200G-RESIDENT SERVICES (GF),Travel/Subsistence,OYSTER AUTO-TOP UP,03-Feb-2019,20.00
D1200G-RESIDENT SERVICES (GF),Education-Library Books,Amazon.co.uk,03-Feb-2019,5.69
D1400G-CHILDREN'S SERVICES,Travel/Subsistence,OYSTER AUTO-TOP UP,03-Feb-2019,40.00
D1100G-ADULTS & HEALTH,Catering Food & Drink,WWW.ICELAND.CO.UK,04-Feb-2019,133.50
D1200G-RESIDENT SERVICES (GF),Domestic Goods-Other,AMAZON.CO.UK,04-Feb-2019,8.15
D1200G-RESIDENT SERVICES (GF),Education-Library Books,AMZN Mktp UK,04-Feb-2019,13.40
D1200G-RESIDENT SERVICES (GF),Stationery,AMZN MKTP UK,04-Feb-2019,16.99
D1200G-RESIDENT SERVICES (GF),Education-Library Books,AMAZON.CO.UK,04-Feb-2019,67.17
D1300G-FINANCE & INVESTMENT,IT Services,PANTHEON SYSTEMS INC,04-Feb-2019,27.65
D1200G-RESIDENT SERVICES (GF),Financial Services-Grants,WWW.CORAM.ORG.UK,04-Feb-2019,170.00
D1200G-RESIDENT SERVICES (GF),Travel/Subsistence,OYSTER ONLINE,04-Feb-2019,30.00
D1200G-RESIDENT SERVICES (GF),Education-Library Books,AMZN MKTP UK,04-Feb-2019,20.40
D1350G-CHIEF EXECUTIVE DIRECTORATE,Catering Food & Drink,TESCO STORES 6427,04-Feb-2019,3.94
D1200G-RESIDENT SERVICES (GF),Domestic Goods-Other,AMAZON.CO.UK,04-Feb-2019,9.00
D1200G-RESIDENT SERVICES (GF),Education-Library Books,AMAZON.CO.UK,04-Feb-2019,46.75
D1200G-RESIDENT SERVICES (GF),Travel/Subsistence,TFL AUTOSETTLEMENT,04-Feb-2019,20.00
D1200G-RESIDENT SERVICES (GF),Travel/Subsistence,OYSTER ONLINE,04-Feb-2019,10.00
D1200G-RESIDENT SERVICES (GF),Travel/Subsistence,TRAINLINE,04-Feb-2019,110.85
D1200G-RESIDENT SERVICES (GF),Domestic Goods-Other,MORLEYS,04-Feb-2019,2.95
D1200G-RESIDENT SERVICES (GF),Travel/Subsistence,OYSTER ONLINE,04-Feb-2019,60.00
D1200G-RESIDENT SERVICES (GF),Travel/Subsistence,AUTO TOP-UP ARREARS,04-Feb-2019,20.00
D1200G-RESIDENT SERVICES (GF),Clothing-Children/Adults,ORCHARD FARM LTD,05-Feb-2019,239.00
D1200G-RESIDENT SERVICES (GF),Legal Services-Other,HMCOURTS-SERVICE.G,05-Feb-2019,20.00
D1200G-RESIDENT SERVICES (GF),Facilities-Advertising,EXPRESS NEWS,05-Feb-2019,70.00
D1200G-RESIDENT SERVICES (GF),Facilities-Advertising,WOODSIDE STORES,05-Feb-2019,100.00
D1200G-RESIDENT SERVICES (GF),Education-Library Books,AMZN Mktp UK,05-Feb-2019,16.06
D1200G-RESIDENT SERVICES (GF),Education-Library Books,AMZN MKTP UK,05-Feb-2019,12.79
D1800G-RESIDENT SERVICES (HRA),Facilities-Market Research,Amazon Prime,05-Feb-2019,7.99
D1200G-RESIDENT SERVICES (GF),Building-Timber,SCREWFIX DIRECT,05-Feb-2019,25.27
D1200G-RESIDENT SERVICES (GF),Travel/Subsistence,BRIXTONHILL EXPRESS,05-Feb-2019,86.00
D1200G-RESIDENT SERVICES (GF),Catering Food & Drink,LOW COST SUPERMARKET,05-Feb-2019,30.00
D1200G-RESIDENT SERVICES (GF),Education-Other,Amazon Prime,05-Feb-2019,7.99
D1350G-CHIEF EXECUTIVE DIRECTORATE,Legal Services-Other,WWW.HCEGROUP.CO.UK,05-Feb-2019,"4,238.91"
D1100G-ADULTS & HEALTH,Education-Arts/Crafts,COWLING & WILCOX LTD,05-Feb-2019,143.82
D1400G-CHILDREN'S SERVICES,Catering Food & Drink,TESCO STORE 2143,05-Feb-2019,17.15
D1200G-RESIDENT SERVICES (GF),Building-Timber,SCREWFIX DIRECT,05-Feb-2019,64.75
D1200G-RESIDENT SERVICES (GF),Building-Electrical,CRS ELECTRICAL SUPPLIE,05-Feb-2019,20.21
D1100G-ADULTS & HEALTH,Catering Food & Drink,MARKS&SPENCER PLC,05-Feb-2019,0.00
D1200G-RESIDENT SERVICES (GF),Catering Food & Drink,MARKS&SPENCER PLC SACA,05-Feb-2019,25.00
D1200G-RESIDENT SERVICES (GF),Travel/Subsistence,TFL ROAD CHG-PENALTY WEB,05-Feb-2019,240.00
D1200G-RESIDENT SERVICES (GF),Building-Tools,5960 VAUXHALL,05-Feb-2019,-74.42
D1200G-RESIDENT SERVICES (GF),Taxi Fares,TW14 NW1 WAITING,05-Feb-2019,150.00
D1200G-RESIDENT SERVICES (GF),Travel/Subsistence,OYSTER AUTO-TOP UP,05-Feb-2019,20.00
D1200G-RESIDENT SERVICES (GF),Education-Library Books,AMZN MKTP UK,05-Feb-2019,13.10
D1300G-FINANCE & INVESTMENT,Financial Services,LAND REGISTRY,05-Feb-2019,3.00
D1800G-RESIDENT SERVICES (HRA),Travel/Subsistence,NEW SOUTHERN RAILW,05-Feb-2019,50.00
D1200G-RESIDENT SERVICES (GF),Building-Plumbing,WWW.BES.CO.UK,05-Feb-2019,49.80
D1200G-RESIDENT SERVICES (GF),Domestic Goods-Other,AMAZON.CO.UK,05-Feb-2019,1.78
D1200G-RESIDENT SERVICES (GF),Travel/Subsistence,OYSTER ONLINE,05-Feb-2019,40.00
D1200G-RESIDENT SERVICES (GF),Education-Library Books,AMAZON.CO.UK,05-Feb-2019,7.99
D1200G-RESIDENT SERVICES (GF),Building-Roofing,TARA FABRICATIONS,05-Feb-2019,175.00
D1100G-ADULTS & HEALTH,Catering Food & Drink,TESCO STORE 2764,05-Feb-2019,114.24
D1100G-ADULTS & HEALTH,Financial Services,ROYAL BANK UK /,05-Feb-2019,400.00
D1200G-RESIDENT SERVICES (GF),Taxi Fares,KORTIEZ BRTILL 3FEB,05-Feb-2019,700.00
D1200G-RESIDENT SERVICES (GF),Taxi Fares,KORTIEZ TILL 3RD FEB,05-Feb-2019,700.00
D1200G-RESIDENT SERVICES (GF),Domestic Goods-Other,WWW.LEARNINGMATERIALS.,05-Feb-2019,156.48
D1200G-RESIDENT SERVICES (GF),Education-Library Books,AMZN MKTP UK,05-Feb-2019,118.26
D1200G-RESIDENT SERVICES (GF),Education-Library Books,AMAZON.CO.UK,05-Feb-2019,6.84
D1200G-RESIDENT SERVICES (GF),Travel/Subsistence,OYSTER AUTO-TOP UP,06-Feb-2019,20.00
D1400G-CHILDREN'S SERVICES,Travel/Subsistence,OYSTER AUTO-TOP UP,06-Feb-2019,40.00
D1200G-RESIDENT SERVICES (GF),Travel/Subsistence,DART-CHARGE,06-Feb-2019,6.00
D1200G-RESIDENT SERVICES (GF),Haulage,PAYPAL,06-Feb-2019,70.00
D1200G-RESIDENT SERVICES (GF),Travel/Subsistence,OYSTER ONLINE,06-Feb-2019,10.00
D1400G-CHILDREN'S SERVICES,Catering Food & Drink,JAMAICA SPICE BAKERY L,06-Feb-2019,21.60
D1200G-RESIDENT SERVICES (GF),Stationery,PAPERCHASE,06-Feb-2019,12.99
D1200G-RESIDENT SERVICES (GF),Catering Food & Drink,SAINSBURYS S/MKTS,06-Feb-2019,6.00
D1200G-RESIDENT SERVICES (GF),Domestic Goods-Other,AMAZON.CO.UK,06-Feb-2019,52.00
D1200G-RESIDENT SERVICES (GF),Travel/Subsistence,OYSTER AUTO-TOP UP,06-Feb-2019,60.00
D1200G-RESIDENT SERVICES (GF),Education-Library Books,AMZN MKTP UK,06-Feb-2019,36.00
D1400G-CHILDREN'S SERVICES,Catering Food & Drink,MARKS&SPENCER PLC SACA,06-Feb-2019,41.10
D1100G-ADULTS & HEALTH,Catering Food & Drink,ICELAND,06-Feb-2019,115.39
D1200G-RESIDENT SERVICES (GF),Education-Library Books,AMAZON.CO.UK,06-Feb-2019,7.99
D1100G-ADULTS & HEALTH,Catering Food & Drink,TESCO STORE 2764,06-Feb-2019,82.76
D1200G-RESIDENT SERVICES (GF),Education-Library Books,AMZN MKTP UK,06-Feb-2019,5.89
D1100G-ADULTS & HEALTH,Catering Food & Drink,M N NORWOOD HALAL BUTCHER,06-Feb-2019,121.93
D1100G-ADULTS & HEALTH,Financial Services,CASH ADVANCE FEE,06-Feb-2019,11.80
D1200G-RESIDENT SERVICES (GF),Travel/Subsistence,OYSTER AUTO-TOP UP,06-Feb-2019,20.00
D1200G-RESIDENT SERVICES (GF),Travel/Subsistence,OYSTER ONLINE,06-Feb-2019,60.00
D1200G-RESIDENT SERVICES (GF),Travel/Subsistence,OYSTER AUTO-TOP UP,06-Feb-2019,40.00
D1200G-RESIDENT SERVICES (GF),Facilities-Market Research,Amazon Prime,06-Feb-2019,7.99
D1800G-RESIDENT SERVICES (HRA),Vehicle Fuel,APPLEGREEN STREATHAM,06-Feb-2019,51.07
D1300G-FINANCE & INVESTMENT,Travel/Subsistence,OYSTER AUTO-TOP UP,06-Feb-2019,40.00
D1100G-ADULTS & HEALTH,Building-Others,TESCO STORE 2764,06-Feb-2019,56.75
D1200G-RESIDENT SERVICES (GF),Arts & Leisure Services,LEGOLAND DISCOVERY CEN,06-Feb-2019,162.00
D1200G-RESIDENT SERVICES (GF),Travel/Subsistence,OYSTER AUTO-TOP UP,06-Feb-2019,60.00
D1100G-ADULTS & HEALTH,Catering Food & Drink,LIDL UK LONDON,07-Feb-2019,24.45
D1200G-RESIDENT SERVICES (GF),Travel/Subsistence,OYSTER AUTO-TOP UP,07-Feb-2019,80.00
D1200G-RESIDENT SERVICES (GF),Stationery,WWW.SPEAKIT.INFO,07-Feb-2019,405.60
D1400G-CHILDREN'S SERVICES,Travel/Subsistence,OYSTER AUTO-TOP UP,07-Feb-2019,20.00
D1200G-RESIDENT SERVICES (GF),Travel/Subsistence,OYSTER AUTO-TOP UP,07-Feb-2019,20.00
D1200G-RESIDENT SERVICES (GF),Travel/Subsistence,OYSTER ONLINE,07-Feb-2019,40.00
D1200G-RESIDENT SERVICES (GF),Travel/Subsistence,TRAINLINE,07-Feb-2019,-21.00
D1350G-CHIEF EXECUTIVE DIRECTORATE,Domestic Goods-Other,ARGOS,07-Feb-2019,141.98
D1100G-ADULTS & HEALTH,Organised Activities,HAVEN HOLIDAYS,07-Feb-2019,480.00
D1200G-RESIDENT SERVICES (GF),Facilities-Advertising,WOODSIDE STORES,07-Feb-2019,50.00
D1200G-RESIDENT SERVICES (GF),Accommodation,WWW.CLEVERBRIDGE.NET,07-Feb-2019,334.80
D1200G-RESIDENT SERVICES (GF),Travel/Subsistence,OYSTER ONLINE,07-Feb-2019,60.00
D1100G-ADULTS & HEALTH,Legal Services-Other,HMCOURTS-SERVICE.G,07-Feb-2019,150.00
D1200G-RESIDENT SERVICES (GF),Travel/Subsistence,OYSTER ONLINE,07-Feb-2019,30.00
D1200G-RESIDENT SERVICES (GF),Arts & Leisure Services,OXYGEN FREEJUMPING,07-Feb-2019,75.60
D1200G-RESIDENT SERVICES (GF),Education-Library Books,AMZN MKTP UK,07-Feb-2019,50.25
D1200G-RESIDENT SERVICES (GF),Building-Timber,SCREWFIX BRIXTON,07-Feb-2019,99.90
D1200G-RESIDENT SERVICES (GF),Domestic Goods-Other,WWW.LEARNINGMATERIALS.,07-Feb-2019,195.60
D1200G-RESIDENT SERVICES (GF),Travel/Subsistence,OYSTER AUTO-TOP UP,07-Feb-2019,40.00
D1200G-RESIDENT SERVICES (GF),Education-Library Books,AMZN MKTP UK,07-Feb-2019,15.40
D1200G-RESIDENT SERVICES (GF),Cleaning-Laundry Service,S.I.S.T DRY CLEANERS L,07-Feb-2019,50.00
D1100G-ADULTS & HEALTH,Healthcare Services,CCILEGAL.CO.UK-IVR,07-Feb-2019,"3,112.83"
D1200G-RESIDENT SERVICES (GF),Catering Food & Drink,MARKS&SPENCER PLC,07-Feb-2019,33.50
D1200G-RESIDENT SERVICES (GF),Travel/Subsistence,OYSTER AUTO-TOP UP,07-Feb-2019,20.00
D1200G-RESIDENT SERVICES (GF),Travel/Subsistence,OYSTER AUTO-TOP UP,07-Feb-2019,60.00
D1200G-RESIDENT SERVICES (GF),Facilities-Storage,BIG YELLOW S S NINE EL,07-Feb-2019,176.60
D1200G-RESIDENT SERVICES (GF),IT Software,TEXTHELPLTD,07-Feb-2019,498.00
D1350G-CHIEF EXECUTIVE DIRECTORATE,Travel/Subsistence,LUL TICKET MACHINE,07-Feb-2019,50.00
D1100G-ADULTS & HEALTH,Domestic Goods-Other,CURRYS SUPERSTORE,07-Feb-2019,115.00
D1200G-RESIDENT SERVICES (GF),Travel/Subsistence,OYSTER ONLINE,07-Feb-2019,70.00
D1200G-RESIDENT SERVICES (GF),Catering Food & Drink,LOW COST SUPERMARKET,07-Feb-2019,40.00
D1200G-RESIDENT SERVICES (GF),Education-Library Books,Amazon.co.uk,07-Feb-2019,59.81
D1200G-RESIDENT SERVICES (GF),Education-Library Books,AMZN Mktp UK,07-Feb-2019,17.55
D1200G-RESIDENT SERVICES (GF),Building-Timber,WWW.SELCOBW.COM,08-Feb-2019,448.56
D1200G-RESIDENT SERVICES (GF),Cleaning-Chemical,PCS*Autosmart Internat,08-Feb-2019,100.68
D1200G-RESIDENT SERVICES (GF),Travel/Subsistence,ZIPCAR,08-Feb-2019,-10.11
D1200G-RESIDENT SERVICES (GF),Catering Food & Drink,MARKS&SPENCER PLC,08-Feb-2019,73.80
D1200G-RESIDENT SERVICES (GF),Travel/Subsistence,OYSTER AUTO-TOP UP,08-Feb-2019,20.00
D1200G-RESIDENT SERVICES (GF),Education-Library Books,AMAZON.CO.UK,08-Feb-2019,22.95
D1350G-CHIEF EXECUTIVE DIRECTORATE,Travel/Subsistence,LUL TICKET MACHINE,08-Feb-2019,50.00
D1400G-CHILDREN'S SERVICES,Travel/Subsistence,OYSTER AUTO-TOP UP,08-Feb-2019,20.00
D1200G-RESIDENT SERVICES (GF),Taxi Fares,WWW.ADDISONLEE.COM,08-Feb-2019,36.50
D1200G-RESIDENT SERVICES (GF),Travel/Subsistence,OYSTER AUTO-TOP UP,08-Feb-2019,40.00
D1200G-RESIDENT SERVICES (GF),Domestic Goods-Other,WWW.LEARNINGMATERIALS.,08-Feb-2019,192.24
D1200G-RESIDENT SERVICES (GF),Books/Publications/Resources,Sainsburys Bank CASH,08-Feb-2019,170.00
D1100G-ADULTS & HEALTH,Banquet & Catering,WWW.EVENTSUPPLIES.CO.U,08-Feb-2019,164.16
D1200G-RESIDENT SERVICES (GF),Books/Publications/Resources,WHICH,08-Feb-2019,10.75
D1200G-RESIDENT SERVICES (GF),Taxi Fares,SW2 TW5 RETURN,08-Feb-2019,140.00
D1200G-RESIDENT SERVICES (GF),IT Software-Customised,HOTJAR,08-Feb-2019,96.40
D1100G-ADULTS & HEALTH,Domestic Goods-Other,MORLEYS,08-Feb-2019,132.05
D1200G-RESIDENT SERVICES (GF),Taxi Fares,SW2 TO SW18 RETURN,08-Feb-2019,60.00
D1200G-RESIDENT SERVICES (GF),Travel/Subsistence,OYSTER AUTO-TOP UP,08-Feb-2019,20.00
D1200G-RESIDENT SERVICES (GF),Travel/Subsistence,OYSTER AUTO-TOP UP,08-Feb-2019,80.00
D1200G-RESIDENT SERVICES (GF),Travel/Subsistence,OYSTER AUTO-TOP UP,08-Feb-2019,80.00
D1200G-RESIDENT SERVICES (GF),Travel/Subsistence,OYSTER AUTO-TOP UP,08-Feb-2019,40.00
D1200G-RESIDENT SERVICES (GF),Catering Food & Drink,TESCO STORE 2143,08-Feb-2019,30.00
D1800G-RESIDENT SERVICES (HRA),Building-Timber,B & Q 1009,08-Feb-2019,35.37
D1200G-RESIDENT SERVICES (GF),Books/Publications/Resources,LONDIS,09-Feb-2019,73.30
D1200G-RESIDENT SERVICES (GF),Education-Library Books,AMZN MKTP UK,09-Feb-2019,4.50
D1400G-CHILDREN'S SERVICES,Travel/Subsistence,OYSTER AUTO-TOP UP,09-Feb-2019,20.00
D1100G-ADULTS & HEALTH,Domestic Goods-Other,POUNDLAND LTD,09-Feb-2019,27.00
D1200G-RESIDENT SERVICES (GF),Travel/Subsistence,OYSTER AUTO-TOP UP,09-Feb-2019,20.00
D1200G-RESIDENT SERVICES (GF),Travel/Subsistence,OYSTER AUTO-TOP UP,09-Feb-2019,20.00
D1200G-RESIDENT SERVICES (GF),Travel/Subsistence,OYSTER AUTO-TOP UP,09-Feb-2019,20.00
D1200G-RESIDENT SERVICES (GF),Travel/Subsistence,OYSTER AUTO-TOP UP,09-Feb-2019,60.00
D1200G-RESIDENT SERVICES (GF),Travel/Subsistence,OYSTER AUTO-TOP UP,09-Feb-2019,40.00
D1200G-RESIDENT SERVICES (GF),Books/Publications/Resources,HERNE HILL LONDIS,09-Feb-2019,200.50
D1200G-RESIDENT SERVICES (GF),Travel/Subsistence,OYSTER AUTO-TOP UP,10-Feb-2019,20.00
D1200G-RESIDENT SERVICES (GF),Travel/Subsistence,OYSTER AUTO-TOP UP,10-Feb-2019,40.00
D1200G-RESIDENT SERVICES (GF),Travel/Subsistence,OYSTER AUTO-TOP UP,10-Feb-2019,80.00
D1200G-RESIDENT SERVICES (GF),Education-Library Books,Amazon.co.uk,10-Feb-2019,36.53
D1400G-CHILDREN'S SERVICES,Travel/Subsistence,OYSTER AUTO-TOP UP,10-Feb-2019,20.00
D1200G-RESIDENT SERVICES (GF),Travel/Subsistence,OYSTER AUTO-TOP UP,10-Feb-2019,20.00
D1200G-RESIDENT SERVICES (GF),Building-Electrical,AMZN MKTP UK,10-Feb-2019,20.19
D1200G-RESIDENT SERVICES (GF),Domestic Goods-Other,ARGOS LTD,10-Feb-2019,24.00
D1200G-RESIDENT SERVICES (GF),Education-Library Books,AMZN Mktp UK,10-Feb-2019,42.28
D1200G-RESIDENT SERVICES (GF),Education-Library Books,AMAZON.CO.UK,10-Feb-2019,14.29
D1100G-ADULTS & HEALTH,Accommodation,ASTRA PALACE HOTEL,11-Feb-2019,-810.00
D1400G-CHILDREN'S SERVICES,Catering Food & Drink,TESCO STORES-2143,11-Feb-2019,27.40
D1200G-RESIDENT SERVICES (GF),IT Software-Customised,WWW.ASSISTIVEIT.CO.UK,11-Feb-2019,"2,880.00"
D1200G-RESIDENT SERVICES (GF),Travel/Subsistence,TRAINLINE,11-Feb-2019,30.46
D1200G-RESIDENT SERVICES (GF),Travel/Subsistence,OYSTER ONLINE,11-Feb-2019,90.00
D1200G-RESIDENT SERVICES (GF),Education-Library Books,AMZN MKTP UK,11-Feb-2019,14.74
D1200G-RESIDENT SERVICES (GF),Cemetery & Crematorium,AMZN Mktp UK,11-Feb-2019,12.97
D1100G-ADULTS & HEALTH,Catering Food & Drink,ICELAND,11-Feb-2019,5.00
D1200G-RESIDENT SERVICES (GF),Travel/Subsistence,OYSTER AUTO-TOP UP,11-Feb-2019,20.00
D1200G-RESIDENT SERVICES (GF),Taxi Fares,KORTIEZ TILL 03FEB,11-Feb-2019,700.00
D1200G-RESIDENT SERVICES (GF),Taxi Fares,WWW.ADDISONLEE.COM,11-Feb-2019,15.00
D1800G-RESIDENT SERVICES (HRA),Financial Services,LONDON BRGH OF LAMBETH,11-Feb-2019,30.00
D1800G-RESIDENT SERVICES (HRA),Travel/Subsistence,LUL TICKET MACHINE,11-Feb-2019,60.00
D1200G-RESIDENT SERVICES (GF),Travel/Subsistence,VIRGIN TRAINS,11-Feb-2019,42.00
D1200G-RESIDENT SERVICES (GF),Domestic Goods-Other,WWW.JOHNLEWIS.COM,11-Feb-2019,144.00
D1800G-RESIDENT SERVICES (HRA),Travel/Subsistence,TRAINLINE,11-Feb-2019,325.85
D1200G-RESIDENT SERVICES (GF),Catering Food & Drink,TESCO STORE 2143,11-Feb-2019,32.93
D1200G-RESIDENT SERVICES (GF),Books/Publications/Resources,CASH ADVANCE FEE,11-Feb-2019,5.02
D1300G-FINANCE & INVESTMENT,Financial Services,LAND REGISTRY,11-Feb-2019,3.00
D1200G-RESIDENT SERVICES (GF),Stationery,WWW.SPEAKIT.INFO,11-Feb-2019,297.60
D1200G-RESIDENT SERVICES (GF),Facilities-Advertising,EXPRESS NEWS,11-Feb-2019,30.00
D1200G-RESIDENT SERVICES (GF),Travel/Subsistence,OYSTER ONLINE,11-Feb-2019,30.00
D1100G-ADULTS & HEALTH,Catering Food & Drink,TESCO STORES 5999,11-Feb-2019,93.65
D1200G-RESIDENT SERVICES (GF),Building-Timber,SCREWFIX BRIXTON,11-Feb-2019,68.94
D1100G-ADULTS & HEALTH,Catering Food & Drink,TESCO STORE 2143,11-Feb-2019,9.88
D1200G-RESIDENT SERVICES (GF),IT Software,BUYITDIRECT CO UK,11-Feb-2019,121.17
D1200G-RESIDENT SERVICES (GF),Building-Timber,WWW.SELCOBW.COM,12-Feb-2019,160.73
D1200G-RESIDENT SERVICES (GF),Taxi Fares,WWW.ADDISONLEE.COM,12-Feb-2019,13.10
D1200G-RESIDENT SERVICES (GF),Travel/Subsistence,TRAINLINE,12-Feb-2019,29.34
D1200G-RESIDENT SERVICES (GF),Mail Services-Postage,THE POST OFFICE,12-Feb-2019,6.50
D1300G-FINANCE & INVESTMENT,Financial Services,GEN REGISTER OFFICE,12-Feb-2019,9.25
D1200G-RESIDENT SERVICES (GF),Travel/Subsistence,OYSTER AUTO-TOP UP,12-Feb-2019,20.00
D1200G-RESIDENT SERVICES (GF),Travel/Subsistence,OYSTER ONLINE,12-Feb-2019,30.00
D1200G-RESIDENT SERVICES (GF),Domestic Goods-Other,APPLE ONLINE STORE GBP,12-Feb-2019,449.00
D1200G-RESIDENT SERVICES (GF),Consultancy-Business,BLS*MONDAY.COM,12-Feb-2019,148.80
D1200G-RESIDENT SERVICES (GF),Accommodation,Hotel on Booking.com B.co,12-Feb-2019,119.84
D1200G-RESIDENT SERVICES (GF),Education-Library Books,AMAZON.CO.UK,12-Feb-2019,36.05
D1800G-RESIDENT SERVICES (HRA),Travel/Subsistence,TRAINLINE,12-Feb-2019,420.43
D1200G-RESIDENT SERVICES (GF),Consultancy-Business,EB *HOPES SUCCESSES AM,12-Feb-2019,475.00
D1100G-ADULTS & HEALTH,Travel/Subsistence,TRAINLINE,12-Feb-2019,19.63
D1400G-CHILDREN'S SERVICES,Catering Food & Drink,TESCO STORES-2143,12-Feb-2019,12.70
D1100G-ADULTS & HEALTH,Catering Food & Drink,LIDL UK LONDON,12-Feb-2019,13.67
D1200G-RESIDENT SERVICES (GF),Education-Library Books,AMAZON.CO.UK,12-Feb-2019,19.34
D1200G-RESIDENT SERVICES (GF),Works-Construction,SQ *COMPARE THE MAN AND V,12-Feb-2019,174.97
D1200G-RESIDENT SERVICES (GF),Travel/Subsistence,OYSTER ONLINE,12-Feb-2019,-40.00
D1200G-RESIDENT SERVICES (GF),Facilities-Advertising,WH SMITH,12-Feb-2019,31.53
D1200G-RESIDENT SERVICES (GF),Domestic Goods-Other,WWW.ARGOS.CO.UK,12-Feb-2019,123.94
D1400G-CHILDREN'S SERVICES,Travel/Subsistence,OYSTER AUTO-TOP UP,13-Feb-2019,20.00
D1350G-CHIEF EXECUTIVE DIRECTORATE,Catering Food & Drink,TESCO STORES-2143,13-Feb-2019,25.00
D1200G-RESIDENT SERVICES (GF),Travel/Subsistence,OYSTER ONLINE,13-Feb-2019,30.00
D1200G-RESIDENT SERVICES (GF),Travel/Subsistence,OYSTER AUTO-TOP UP,13-Feb-2019,40.00
D1200G-RESIDENT SERVICES (GF),Financial Services,HM PASSPORT OFFICE,13-Feb-2019,85.00
D1200G-RESIDENT SERVICES (GF),Travel/Subsistence,OYSTER AUTO-TOP UP,13-Feb-2019,20.00
D1200G-RESIDENT SERVICES (GF),Travel/Subsistence,OYSTER AUTO-TOP UP,13-Feb-2019,40.00
D1200G-RESIDENT SERVICES (GF),Education-Library Books,AMAZON.CO.UK,13-Feb-2019,15.85
D1100G-ADULTS & HEALTH,Legal Services-Other,HMCOURTS-SERVICE.G,13-Feb-2019,300.00
D1200G-RESIDENT SERVICES (GF),Travel/Subsistence,OYSTER AUTO-TOP UP,13-Feb-2019,20.00
D1200G-RESIDENT SERVICES (GF),Travel/Subsistence,OYSTER AUTO-TOP UP,13-Feb-2019,20.00
D1200G-RESIDENT SERVICES (GF),Taxi Fares,CHARMANE MULTIBALE,13-Feb-2019,370.00
D1200G-RESIDENT SERVICES (GF),Travel/Subsistence,OYSTER ONLINE,13-Feb-2019,0.00
D1100G-ADULTS & HEALTH,Catering Food & Drink,SAINSBURYS S/MKTS,13-Feb-2019,2.70
D1100G-ADULTS & HEALTH,Catering Food & Drink,ICELAND,13-Feb-2019,3.75
D1200G-RESIDENT SERVICES (GF),Domestic Goods-Other,WWW.ARGOS.CO.UK,13-Feb-2019,175.95
D1200G-RESIDENT SERVICES (GF),Facilities-Advertising,EXPRESS NEWS,13-Feb-2019,20.00
D1200G-RESIDENT SERVICES (GF),Catering Food & Drink,SAINSBURYS S/MKTS,14-Feb-2019,25.00
D1200G-RESIDENT SERVICES (GF),Travel/Subsistence,OYSTER AUTO-TOP UP,14-Feb-2019,20.00
D1350G-CHIEF EXECUTIVE DIRECTORATE,Travel/Subsistence,LUL TICKET MACHINE,14-Feb-2019,50.00
D1200G-RESIDENT SERVICES (GF),Furniture-Domestic Furniture,WWW.IKEA.COM,14-Feb-2019,46.70
D1200G-RESIDENT SERVICES (GF),Travel/Subsistence,OYSTER ONLINE,14-Feb-2019,10.00
D1200G-RESIDENT SERVICES (GF),Taxi Fares,CIVIC SE13 RETURN,14-Feb-2019,140.00
D1200G-RESIDENT SERVICES (GF),Travel/Subsistence,OYSTER ONLINE,14-Feb-2019,20.00
D1200G-RESIDENT SERVICES (GF),Travel/Subsistence,OYSTER AUTO-TOP UP,14-Feb-2019,20.00
D1200G-RESIDENT SERVICES (GF),Travel/Subsistence,OYSTER ONLINE,14-Feb-2019,30.00
D1200G-RESIDENT SERVICES (GF),Travel/Subsistence,OYSTER AUTO-TOP UP,14-Feb-2019,40.00
D1100G-ADULTS & HEALTH,Conference Expenses,PARTICIPANT UK LTD,14-Feb-2019,474.00
D1200G-RESIDENT SERVICES (GF),Catering Food & Drink,TESCO STORES 4342,14-Feb-2019,30.00
D1200G-RESIDENT SERVICES (GF),Travel/Subsistence,OYSTER ONLINE,14-Feb-2019,-10.00
D1200G-RESIDENT SERVICES (GF),Travel/Subsistence,OYSTER AUTO-TOP UP,14-Feb-2019,40.00
D1400G-CHILDREN'S SERVICES,Travel/Subsistence,OYSTER AUTO-TOP UP,14-Feb-2019,20.00
D1200G-RESIDENT SERVICES (GF),Consultancy-Business,FORTRESS MASTER LOCKSMITH,14-Feb-2019,30.45
D1100G-ADULTS & HEALTH,Catering Food & Drink,ICELAND,14-Feb-2019,5.00
D1100G-ADULTS & HEALTH,Catering Food & Drink,WWW.ICELAND.CO.UK,14-Feb-2019,222.57
D1200G-RESIDENT SERVICES (GF),Taxi Fares,MULTIBALE JOURNEY 1402,14-Feb-2019,395.00
D1200G-RESIDENT SERVICES (GF),Facilities-Storage,SAFESTORE LIMITED,14-Feb-2019,556.91
D1200G-RESIDENT SERVICES (GF),Travel/Subsistence,OYSTER ONLINE,14-Feb-2019,-10.00
D1200G-RESIDENT SERVICES (GF),Legal Services-Other,PRFD,14-Feb-2019,170.00
D1200G-RESIDENT SERVICES (GF),Horticultural-Other,FR JONES AND SON LTD,15-Feb-2019,130.81
D1200G-RESIDENT SERVICES (GF),Travel/Subsistence,OYSTER ONLINE,15-Feb-2019,30.00
D1400G-CHILDREN'S SERVICES,Catering Equipment,TESCO STORE 2143,15-Feb-2019,22.08
D1200G-RESIDENT SERVICES (GF),Cemetery & Crematorium,AMZN Mktp UK,15-Feb-2019,19.47
D1300G-FINANCE & INVESTMENT,Facilities-Advertising,EXPRESS NEWS,15-Feb-2019,50.00
D1200G-RESIDENT SERVICES (GF),Catering Food & Drink,TESCO STORES 5999,15-Feb-2019,72.10
D1200G-RESIDENT SERVICES (GF),Travel/Subsistence,OYSTER AUTO-TOP UP,15-Feb-2019,60.00
D1400G-CHILDREN'S SERVICES,Travel/Subsistence,OYSTER AUTO-TOP UP,15-Feb-2019,40.00
D1200G-RESIDENT SERVICES (GF),Travel/Subsistence,OYSTER AUTO-TOP UP,15-Feb-2019,20.00
D1200G-RESIDENT SERVICES (GF),Furniture-Domestic Furniture,WAYFAIR #2640984018,15-Feb-2019,510.98
D1100G-ADULTS & HEALTH,Consultancy-Business,GENERALSODEXO,15-Feb-2019,"5,829.85"
D1200G-RESIDENT SERVICES (GF),Travel/Subsistence,OYSTER AUTO-TOP UP,15-Feb-2019,20.00
D1200G-RESIDENT SERVICES (GF),Taxi Fares,ADDISON LEE EXTRA,15-Feb-2019,7.00
D1200G-RESIDENT SERVICES (GF),Education-Other,WWW.E-PAYCOBALT.COM,15-Feb-2019,65.00
D1200G-RESIDENT SERVICES (GF),Taxi Fares,SE21 KT1 RETURN,15-Feb-2019,120.00
D1200G-RESIDENT SERVICES (GF),Taxi Fares,DA7 TO CIVIC,15-Feb-2019,80.00
D1200G-RESIDENT SERVICES (GF),Furniture-Domestic Furniture,WWW.APLACEFOR,15-Feb-2019,143.95
D1200G-RESIDENT SERVICES (GF),Travel/Subsistence,OYSTER AUTO-TOP UP,15-Feb-2019,40.00
D1200G-RESIDENT SERVICES (GF),Travel/Subsistence,OYSTER ONLINE,15-Feb-2019,60.00
D1200G-RESIDENT SERVICES (GF),Furniture-Domestic Furniture,WWW.IKEA.COM,15-Feb-2019,124.00
D1200G-RESIDENT SERVICES (GF),Domestic Goods-Other,WWW.ARGOS.CO.UK,15-Feb-2019,107.89
D1200G-RESIDENT SERVICES (GF),Travel/Subsistence,OYSTER AUTO-TOP UP,15-Feb-2019,60.00
D1200G-RESIDENT SERVICES (GF),Travel/Subsistence,OYSTER AUTO-TOP UP,16-Feb-2019,20.00
D1200G-RESIDENT SERVICES (GF),Travel/Subsistence,OYSTER AUTO-TOP UP,16-Feb-2019,80.00
D1200G-RESIDENT SERVICES (GF),Travel/Subsistence,OYSTER AUTO-TOP UP,16-Feb-2019,20.00
D1200G-RESIDENT SERVICES (GF),Facilities-Market Research,MAILCHIMP,16-Feb-2019,77.56
D1200G-RESIDENT SERVICES (GF),Travel/Subsistence,OYSTER AUTO-TOP UP,16-Feb-2019,20.00
D1200G-RESIDENT SERVICES (GF),Travel/Subsistence,OYSTER AUTO-TOP UP,16-Feb-2019,20.00
D1200G-RESIDENT SERVICES (GF),Travel/Subsistence,OYSTER AUTO-TOP UP,17-Feb-2019,100.00
D1200G-RESIDENT SERVICES (GF),Travel/Subsistence,OYSTER AUTO-TOP UP,17-Feb-2019,20.00
D1400G-CHILDREN'S SERVICES,Travel/Subsistence,OYSTER AUTO-TOP UP,17-Feb-2019,20.00
D1200G-RESIDENT SERVICES (GF),Travel/Subsistence,OYSTER AUTO-TOP UP,17-Feb-2019,40.00
D1200G-RESIDENT SERVICES (GF),Facilities-Advertising,FACEBK EY83HKWCE2,17-Feb-2019,29.62
D1200G-RESIDENT SERVICES (GF),Travel/Subsistence,OYSTER AUTO-TOP UP,17-Feb-2019,40.00
D1200G-RESIDENT SERVICES (GF),Travel/Subsistence,OYSTER AUTO-TOP UP,17-Feb-2019,80.00
D1400G-CHILDREN'S SERVICES,Travel/Subsistence,OYSTER AUTO-TOP UP,17-Feb-2019,20.00
D1200G-RESIDENT SERVICES (GF),Travel/Subsistence,OYSTER AUTO-TOP UP,17-Feb-2019,80.00
D1200G-RESIDENT SERVICES (GF),IT Services,PAYPAL,17-Feb-2019,152.21
D1200G-RESIDENT SERVICES (GF),Education-Library Books,Amazon.co.uk,17-Feb-2019,37.68
D1200G-RESIDENT SERVICES (GF),Travel/Subsistence,TRAINLINE,18-Feb-2019,137.20
D1200G-RESIDENT SERVICES (GF),Catering Food & Drink,TESCO STORE 2143,18-Feb-2019,50.00
D1200G-RESIDENT SERVICES (GF),Financial Services,HM PASSPORT OFFICE,18-Feb-2019,58.50
D1200G-RESIDENT SERVICES (GF),Travel/Subsistence,OYSTER AUTO-TOP UP,18-Feb-2019,20.00
D1200G-RESIDENT SERVICES (GF),Education-Library Books,AMZN Mktp UK,18-Feb-2019,4.72
D1200G-RESIDENT SERVICES (GF),Travel/Subsistence,OYSTER ONLINE,18-Feb-2019,50.00
D1200G-RESIDENT SERVICES (GF),Facilities-Advertising,EXPRESS NEWS,18-Feb-2019,30.00
D1200G-RESIDENT SERVICES (GF),Furniture-Domestic Furniture,WWW.IKEA.COM,18-Feb-2019,49.95
D1200G-RESIDENT SERVICES (GF),Travel/Subsistence,TRAINLINE,18-Feb-2019,35.85
D1200G-RESIDENT SERVICES (GF),Travel/Subsistence,OYSTER ONLINE,18-Feb-2019,20.00
D1200G-RESIDENT SERVICES (GF),Accommodation,BRITISH A,18-Feb-2019,616.76
D1100G-ADULTS & HEALTH,Catering Food & Drink,TESCO STORE 2143,18-Feb-2019,11.30
D1200G-RESIDENT SERVICES (GF),Catering Food & Drink,SAINSBURYS S/MKTS,18-Feb-2019,17.24
D1200G-RESIDENT SERVICES (GF),Education-Library Books,AMZN Mktp UK,18-Feb-2019,89.98
D1200G-RESIDENT SERVICES (GF),IT Software,EXCEL TAXIS NETWORK,19-Feb-2019,56.00
D1200G-RESIDENT SERVICES (GF),Education-Library Books,Amazon.co.uk,19-Feb-2019,53.81
D1300G-FINANCE & INVESTMENT,IT Services,UK HOSTING #608689,19-Feb-2019,71.93
D1200G-RESIDENT SERVICES (GF),Consultancy-Business,FORTRESS MASTER LOCKSMITH,19-Feb-2019,17.50
D1200G-RESIDENT SERVICES (GF),Accommodation,TRAVELODGE GB0000,19-Feb-2019,82.50
D1200G-RESIDENT SERVICES (GF),Financial Services,LONDON BRGH OF LAMBETH,19-Feb-2019,57.00
D1200G-RESIDENT SERVICES (GF),Travel/Subsistence,OYSTER ONLINE,19-Feb-2019,30.00
D1200G-RESIDENT SERVICES (GF),Mail Services-Postage,POST OFFICE COUNTER,19-Feb-2019,7.30
D1200G-RESIDENT SERVICES (GF),Building-Timber,ACRE LANE BUILDERS,19-Feb-2019,249.48
D1100G-ADULTS & HEALTH,Stationery,AMAZON.CO.UK,19-Feb-2019,33.34
D1200G-RESIDENT SERVICES (GF),Financial Services-Grants,ALLPAY *PEABODY,19-Feb-2019,300.00
D1350G-CHIEF EXECUTIVE DIRECTORATE,Conference Expenses,EB *NLGN ANNUAL CONFER,19-Feb-2019,226.97
D1300G-FINANCE & INVESTMENT,Travel/Subsistence,LNER WEB SALES,19-Feb-2019,102.30
D1200G-RESIDENT SERVICES (GF),Travel/Subsistence,OYSTER ONLINE,19-Feb-2019,30.00
D1200G-RESIDENT SERVICES (GF),Cycles Purchase,HALFORDS 0716,19-Feb-2019,4.00
D1200G-RESIDENT SERVICES (GF),Domestic Goods-Other,HERNE HILL ELECTRICALS,19-Feb-2019,-120.00
D1200G-RESIDENT SERVICES (GF),Building-Timber,WWW.SELCOBW.COM,19-Feb-2019,78.40
D1200G-RESIDENT SERVICES (GF),Building-General,AMZN Mktp UK,19-Feb-2019,11.95
D1200G-RESIDENT SERVICES (GF),Education-Other,MORLEYS,19-Feb-2019,5.95
D1100G-ADULTS & HEALTH,Legal Services-Other,HMCOURTS-SERVICE.G,19-Feb-2019,150.00
D1200G-RESIDENT SERVICES (GF),Travel/Subsistence,OYSTER ONLINE,19-Feb-2019,20.00
D1200G-RESIDENT SERVICES (GF),Building-Timber,SELCO TRADING CTR,20-Feb-2019,245.53
D1200G-RESIDENT SERVICES (GF),Travel/Subsistence,OYSTER ONLINE,20-Feb-2019,5.00
D1200G-RESIDENT SERVICES (GF),Healthcare Services,ASSOCIATED OPTICAL,20-Feb-2019,64.20
D1200G-RESIDENT SERVICES (GF),IT Services,RipeNCCCom,20-Feb-2019,774.90
D1400G-CHILDREN'S SERVICES,Travel/Subsistence,OYSTER AUTO-TOP UP,20-Feb-2019,20.00
D1200G-RESIDENT SERVICES (GF),Cycles Purchase,HALFORDS 0716,20-Feb-2019,53.50
D1200G-RESIDENT SERVICES (GF),Clothing-Children/Adults,PAYPAL,20-Feb-2019,249.95
D1200G-RESIDENT SERVICES (GF),Facilities-Advertising,EXPRESS NEWS,20-Feb-2019,60.00
D1200G-RESIDENT SERVICES (GF),Travel/Subsistence,OYSTER AUTO-TOP UP,20-Feb-2019,40.00
D1200G-RESIDENT SERVICES (GF),Education-Library Books,Amazon.co.uk,20-Feb-2019,13.00
D1400G-CHILDREN'S SERVICES,Catering Food & Drink,TESCO STORE 2143,20-Feb-2019,140.00
D1200G-RESIDENT SERVICES (GF),Taxi Fares,CHARMANE THE 480,20-Feb-2019,200.00
D1350G-CHIEF EXECUTIVE DIRECTORATE,IT Software,ADOBE  ACROPRO SUBS,20-Feb-2019,25.28
D1800G-RESIDENT SERVICES (HRA),Financial Services,LONDON BRGH OF LAMBETH,20-Feb-2019,31.00
D1200G-RESIDENT SERVICES (GF),Travel/Subsistence,OYSTER AUTO-TOP UP,20-Feb-2019,20.00
D1350G-CHIEF EXECUTIVE DIRECTORATE,IT Software,ADOBE  ACROPRO SUBS,20-Feb-2019,101.12
D1100G-ADULTS & HEALTH,Accommodation,CHELSEA GUEST HOUSE,20-Feb-2019,455.00
D1200G-RESIDENT SERVICES (GF),Travel/Subsistence,OYSTER ONLINE,20-Feb-2019,20.00
D1200G-RESIDENT SERVICES (GF),Education-Library Books,AMZN Mktp UK,20-Feb-2019,14.93
D1200G-RESIDENT SERVICES (GF),Taxi Fares,SW16 TO CR0 CENDI,20-Feb-2019,40.00
D1200G-RESIDENT SERVICES (GF),Facilities-Market Research,MAGSUBCRIPTIONS COM,20-Feb-2019,142.80
D1200G-RESIDENT SERVICES (GF),Travel/Subsistence,OYSTER AUTO-TOP UP,20-Feb-2019,80.00
D1200G-RESIDENT SERVICES (GF),Education-Library Books,AMZN MKTP UK,20-Feb-2019,37.19
D1200G-RESIDENT SERVICES (GF),Building-Timber,SCREWFIX DIRECT,20-Feb-2019,20.99
D1200G-RESIDENT SERVICES (GF),Travel/Subsistence,AMZN MKTP UK,20-Feb-2019,5.99
D1200G-RESIDENT SERVICES (GF),Taxi Fares,CIVIC TO SW16,20-Feb-2019,15.00
D1300G-FINANCE & INVESTMENT,IT Software,ADOBE  CREATIVE CLOUD,20-Feb-2019,141.60
D1100G-ADULTS & HEALTH,Financial Services,MORLEY COLLEGE LTD,20-Feb-2019,130.00
D1300G-FINANCE & INVESTMENT,Financial Services,DENTAL CHARGE,21-Feb-2019,121.60
D1200G-RESIDENT SERVICES (GF),Building-Plumbing,WOLSELEY UK,21-Feb-2019,57.55
D1200G-RESIDENT SERVICES (GF),Building-Timber,SCREWFIX BRIXTON,21-Feb-2019,91.56
D1200G-RESIDENT SERVICES (GF),Travel/Subsistence,OYSTER AUTO-TOP UP,21-Feb-2019,60.00
D1200G-RESIDENT SERVICES (GF),Travel/Subsistence,OYSTER ONLINE,21-Feb-2019,10.00
D1200G-RESIDENT SERVICES (GF),Consultancy-Business,FORTRESS MASTER LOCKSMITH,21-Feb-2019,83.40
D1200G-RESIDENT SERVICES (GF),Travel/Subsistence,OYSTER AUTO-TOP UP,21-Feb-2019,20.00
D1350G-CHIEF EXECUTIVE DIRECTORATE,IT Software,ADOBE  ACROPRO SUBS,21-Feb-2019,126.40
D1100G-ADULTS & HEALTH,Legal Services-Other,HMCOURTS-SERVICE.G,21-Feb-2019,150.00
D1200G-RESIDENT SERVICES (GF),Travel/Subsistence,OYSTER AUTO-TOP UP,21-Feb-2019,20.00
D1350G-CHIEF EXECUTIVE DIRECTORATE,Travel/Subsistence,TRAINLINE,21-Feb-2019,63.97
D1200G-RESIDENT SERVICES (GF),Building-General,TOOLSTATION LTD,21-Feb-2019,18.98
D1800G-RESIDENT SERVICES (HRA),Facilities-Market Research,Amazon Prime,21-Feb-2019,7.99
D1200G-RESIDENT SERVICES (GF),Building-Timber,SCREWFIX BRIXTON,21-Feb-2019,12.99
D1200G-RESIDENT SERVICES (GF),Clothing-Children/Adults,PAYPAL,21-Feb-2019,49.99
D1100G-ADULTS & HEALTH,Education-Library Books,AMZN Mktp UK,21-Feb-2019,38.97
D1200G-RESIDENT SERVICES (GF),Travel/Subsistence,OYSTER ONLINE,21-Feb-2019,-10.00
D1200G-RESIDENT SERVICES (GF),Consultancy-Business,FORTRESS MASTER LOCKSMITH,21-Feb-2019,11.00
D1200G-RESIDENT SERVICES (GF),Financial Services,LONDON BRGH OF LAMBETH,21-Feb-2019,11.00
D1200G-RESIDENT SERVICES (GF),Education-Library Books,AMZN Mktp UK,21-Feb-2019,4.51
D1200G-RESIDENT SERVICES (GF),IT Hardware,AMZN Mktp UK,21-Feb-2019,"1,442.59"
D1100G-ADULTS & HEALTH,Catering Food & Drink,ICELAND,22-Feb-2019,37.76
D1200G-RESIDENT SERVICES (GF),Education-Other,THE UNIVERSITY OF READ,22-Feb-2019,60.00
D1200G-RESIDENT SERVICES (GF),Travel/Subsistence,OYSTER AUTO-TOP UP,22-Feb-2019,40.00
D1200G-RESIDENT SERVICES (GF),Travel/Subsistence,OYSTER AUTO-TOP UP,22-Feb-2019,20.00
D1300G-FINANCE & INVESTMENT,Financial Services,LAND REGISTRY,22-Feb-2019,6.00
D1400G-CHILDREN'S SERVICES,Travel/Subsistence,OYSTER AUTO-TOP UP,22-Feb-2019,40.00
D1200G-RESIDENT SERVICES (GF),Travel/Subsistence,OYSTER AUTO-TOP UP,22-Feb-2019,20.00
D1100G-ADULTS & HEALTH,Education-Other,WE BRAND IT,22-Feb-2019,"1,128.60"
D1200G-RESIDENT SERVICES (GF),Building-Floors,TOPPS TILES BRIXTO,22-Feb-2019,19.01
D1200G-RESIDENT SERVICES (GF),Travel/Subsistence,OYSTER AUTO-TOP UP,22-Feb-2019,60.00
D1200G-RESIDENT SERVICES (GF),Catering Food & Drink,SAINSBURYS S/MKTS,22-Feb-2019,23.66
D1200G-RESIDENT SERVICES (GF),Travel/Subsistence,OYSTER AUTO-TOP UP,22-Feb-2019,40.00
D1200G-RESIDENT SERVICES (GF),Education-Library Books,CLAPHAM BOOKS,22-Feb-2019,159.90
D1200G-RESIDENT SERVICES (GF),Travel/Subsistence,OYSTER AUTO-TOP UP,23-Feb-2019,20.00
D1200G-RESIDENT SERVICES (GF),Travel/Subsistence,OYSTER AUTO-TOP UP,23-Feb-2019,40.00
D1200G-RESIDENT SERVICES (GF),IT Hardware,AMZN Mktp UK,23-Feb-2019,22.92
D1200G-RESIDENT SERVICES (GF),Travel/Subsistence,OYSTER AUTO-TOP UP,23-Feb-2019,60.00
D1200G-RESIDENT SERVICES (GF),Travel/Subsistence,OYSTER AUTO-TOP UP,23-Feb-2019,60.00
D1400G-CHILDREN'S SERVICES,Travel/Subsistence,OYSTER AUTO-TOP UP,23-Feb-2019,40.00
D1200G-RESIDENT SERVICES (GF),Travel/Subsistence,OYSTER AUTO-TOP UP,23-Feb-2019,40.00
D1300G-FINANCE & INVESTMENT,IT Services,123 REG R/T,24-Feb-2019,23.99
D1200G-RESIDENT SERVICES (GF),Travel/Subsistence,OYSTER AUTO-TOP UP,24-Feb-2019,20.00
D1200G-RESIDENT SERVICES (GF),Travel/Subsistence,OYSTER AUTO-TOP UP,24-Feb-2019,60.00
D1200G-RESIDENT SERVICES (GF),Travel/Subsistence,OYSTER AUTO-TOP UP,24-Feb-2019,40.00
D1200G-RESIDENT SERVICES (GF),Travel/Subsistence,OYSTER AUTO-TOP UP,24-Feb-2019,40.00
D1100G-ADULTS & HEALTH,Catering Food & Drink,ICELAND,25-Feb-2019,90.89
D1100G-ADULTS & HEALTH,Catering Food & Drink,M N NORWOOD HALAL BUTCHER,25-Feb-2019,77.31
D1800G-RESIDENT SERVICES (HRA),Travel/Subsistence,LUL TICKET MACHINE,25-Feb-2019,60.00
D1200G-RESIDENT SERVICES (GF),Education-Library Books,Amazon.co.uk,25-Feb-2019,16.53
D1200G-RESIDENT SERVICES (GF),Education-Library Books,AMZN Mktp UK,25-Feb-2019,6.08
D1100G-ADULTS & HEALTH,Catering Food & Drink,SEABREEZE FISH MONGERS,25-Feb-2019,60.00
D1200G-RESIDENT SERVICES (GF),Financial Services,HM PASSPORT OFFICE,25-Feb-2019,63.50
D1350G-CHIEF EXECUTIVE DIRECTORATE,Education-Library Books,AMZN Mktp UK,25-Feb-2019,30.75
D1200G-RESIDENT SERVICES (GF),Travel/Subsistence,TRAINLINE,25-Feb-2019,81.46
D1100G-ADULTS & HEALTH,Catering Food & Drink,TESCO STORES 5999,25-Feb-2019,76.29
D1200G-RESIDENT SERVICES (GF),Travel/Subsistence,OYSTER ONLINE,25-Feb-2019,-20.00
D1100G-ADULTS & HEALTH,Catering Food & Drink,ICELAND,25-Feb-2019,-3.00
D1200G-RESIDENT SERVICES (GF),Travel/Subsistence,OYSTER ONLINE,25-Feb-2019,5.00
D1300G-FINANCE & INVESTMENT,Couriers,Amazon Prime,26-Feb-2019,0.99
D1200G-RESIDENT SERVICES (GF),Furniture-Domestic Furniture,WWW.APLACEFOR,26-Feb-2019,46.68
D1200G-RESIDENT SERVICES (GF),Domestic Goods-Other,WWW.ARGOS.CO.UK,26-Feb-2019,206.88
D1300G-FINANCE & INVESTMENT,Healthcare Services,WWW.CIPS.ORG,26-Feb-2019,260.00
D1200G-RESIDENT SERVICES (GF),Catering Food & Drink,LOW COST SUPERMARKET,26-Feb-2019,95.00
D1350G-CHIEF EXECUTIVE DIRECTORATE,Education-Library Books,AMZN Mktp UK,26-Feb-2019,2.43
D1200G-RESIDENT SERVICES (GF),Travel/Subsistence,OYSTER AUTO-TOP UP,26-Feb-2019,20.00
D1200G-RESIDENT SERVICES (GF),Travel/Subsistence,OYSTER ONLINE,26-Feb-2019,30.00
D1200G-RESIDENT SERVICES (GF),Building-Others,WICKES BUILDING,26-Feb-2019,37.45
D1200G-RESIDENT SERVICES (GF),Travel/Subsistence,OYSTER ONLINE,26-Feb-2019,20.00
D1200G-RESIDENT SERVICES (GF),Financial Services,HM PASSPORT OFFICE,26-Feb-2019,190.50
D1200G-RESIDENT SERVICES (GF),Travel/Subsistence,OYSTER AUTO-TOP UP,26-Feb-2019,20.00
D1300G-FINANCE & INVESTMENT,Travel/Subsistence,LUL TICKET MACHINE,26-Feb-2019,50.00
D1100G-ADULTS & HEALTH,Facilities-Advertising,ON AIR MEDIA GROUP,26-Feb-2019,"3,000.00"
D1300G-FINANCE & INVESTMENT,Financial Services,LAND REGISTRY,26-Feb-2019,3.00
D1800G-RESIDENT SERVICES (HRA),Building-Timber,C BREWER & SONS,26-Feb-2019,181.82
D1200G-RESIDENT SERVICES (GF),Building-Others,B&Q DIRECT,26-Feb-2019,37.00
D1100G-ADULTS & HEALTH,Building-Others,TESCO STORE 2764,26-Feb-2019,102.00
D1300G-FINANCE & INVESTMENT,IT Office Equipment,AMZNMktplace,26-Feb-2019,299.94
D1100G-ADULTS & HEALTH,Healthcare Equipment,WWW.OXFORDMEDICAL.CO.U,26-Feb-2019,96.36
D1100G-ADULTS & HEALTH,Accommodation,CHELSEA GUEST HOUSE,26-Feb-2019,455.00
D1200G-RESIDENT SERVICES (GF),Travel/Subsistence,LUL TICKET MACHINE,27-Feb-2019,30.00
D1200G-RESIDENT SERVICES (GF),Catering Food & Drink,LOW COST SUPERMARKET,27-Feb-2019,30.00
D1200G-RESIDENT SERVICES (GF),Education-Library Books,AMZN MKTP UK AMAZON.CO.UK,27-Feb-2019,-15.40
D1350G-CHIEF EXECUTIVE DIRECTORATE,Catering Food & Drink,TESCO STORE 2143,27-Feb-2019,39.92
D1200G-RESIDENT SERVICES (GF),Travel/Subsistence,OYSTER AUTO-TOP UP,27-Feb-2019,20.00
D1200G-RESIDENT SERVICES (GF),Travel/Subsistence,OYSTER AUTO-TOP UP,27-Feb-2019,80.00
D1200G-RESIDENT SERVICES (GF),Education-Library Books,AMAZON.CO.UK,27-Feb-2019,39.43
D1200G-RESIDENT SERVICES (GF),Travel/Subsistence,OYSTER AUTO-TOP UP,27-Feb-2019,20.00
D1200G-RESIDENT SERVICES (GF),Domestic Goods-Other,ARGOS RETAIL GROUP,27-Feb-2019,159.99
D1200G-RESIDENT SERVICES (GF),Travel/Subsistence,OYSTER AUTO-TOP UP,27-Feb-2019,20.00
D1200G-RESIDENT SERVICES (GF),Education-Library Books,AMZN Mktp UK,27-Feb-2019,13.21
D1200G-RESIDENT SERVICES (GF),Books/Publications/Resources,Sainsburys Bank CASH,27-Feb-2019,160.00
D1200G-RESIDENT SERVICES (GF),Travel/Subsistence,OYSTER AUTO-TOP UP,27-Feb-2019,120.00
D1300G-FINANCE & INVESTMENT,Taxi Fares,UBER TRIP MCZ5F HELP.UBER,27-Feb-2019,28.21
D1800G-RESIDENT SERVICES (HRA),Travel/Subsistence,LUL TICKET MACHINE,27-Feb-2019,30.00
D1100G-ADULTS & HEALTH,Legal Services-Other,HMCOURTS-SERVICE.G,27-Feb-2019,150.00
D1100G-ADULTS & HEALTH,Taxi Fares,WWW.ADDISONLEE.COM,27-Feb-2019,49.36
D1400G-CHILDREN'S SERVICES,Travel/Subsistence,OYSTER AUTO-TOP UP,27-Feb-2019,20.00
D1400G-CHILDREN'S SERVICES,Catering Food & Drink,TESCO STORE 2143,27-Feb-2019,100.00
D1200G-RESIDENT SERVICES (GF),Education-Library Books,Amazon.co.uk,27-Feb-2019,11.70
D1200G-RESIDENT SERVICES (GF),Education-Library Books,AMAZON.CO.UK,27-Feb-2019,130.10
D1350G-CHIEF EXECUTIVE DIRECTORATE,Domestic Goods-Other,POUNDLAND LTD 1203,27-Feb-2019,7.00
D1200G-RESIDENT SERVICES (GF),Horticultural-Other,MAJOR EQUIPMENT LTD,27-Feb-2019,34.97
D1200G-RESIDENT SERVICES (GF),Consultancy-Business,PERKS AT WORK,27-Feb-2019,67.22
D1200G-RESIDENT SERVICES (GF),Travel/Subsistence,OYSTER AUTO-TOP UP,27-Feb-2019,20.00
D1200G-RESIDENT SERVICES (GF),Education-Library Books,AMAZON.CO.UK,27-Feb-2019,54.44
D1100G-ADULTS & HEALTH,Catering Food & Drink,COST COFFEE - SOUTHWAR,27-Feb-2019,3.65
D1200G-RESIDENT SERVICES (GF),Cleaning-Chemical,PAYPAL,27-Feb-2019,40.82
D1350G-CHIEF EXECUTIVE DIRECTORATE,Catering Food & Drink,VERA CRUZ,27-Feb-2019,100.00
D1100G-ADULTS & HEALTH,Catering Food & Drink,TESCO STORES 5999,28-Feb-2019,100.59
D1200G-RESIDENT SERVICES (GF),Financial Services,DVLA DRIVER ONLINE,28-Feb-2019,34.00
D1200G-RESIDENT SERVICES (GF),Travel/Subsistence,OYSTER AUTO-TOP UP,28-Feb-2019,40.00
D1200G-RESIDENT SERVICES (GF),Building-General,THE TRADE HUB,28-Feb-2019,938.90
D1200G-RESIDENT SERVICES (GF),Financial Services,HM PASSPORT OFFICE,28-Feb-2019,108.00
D1200G-RESIDENT SERVICES (GF),Furniture-Domestic Furniture,INTERNET RETAIL,28-Feb-2019,275.00
D1200G-RESIDENT SERVICES (GF),Furniture-Office Furniture,WWW.OFFICECHAIRSUK.COM,28-Feb-2019,609.84
D1200G-RESIDENT SERVICES (GF),Travel/Subsistence,OYSTER AUTO-TOP UP,28-Feb-2019,20.00
D1800G-RESIDENT SERVICES (HRA),Furniture-Other,WWW.ARGOS.CO.UK,28-Feb-2019,332.95
D1100G-ADULTS & HEALTH,Professional & Advisory Services,OXFORD BROOKES UNI,28-Feb-2019,790.00
D1200G-RESIDENT SERVICES (GF),Travel/Subsistence,OYSTER AUTO-TOP UP,28-Feb-2019,20.00
D1200G-RESIDENT SERVICES (GF),Travel/Subsistence,OYSTER AUTO-TOP UP,28-Feb-2019,80.00
D1200G-RESIDENT SERVICES (GF),Education-Library Books,AMZN Mktp UK,28-Feb-2019,22.06
D1400G-CHILDREN'S SERVICES,Travel/Subsistence,OYSTER AUTO-TOP UP,28-Feb-2019,40.00
D1200G-RESIDENT SERVICES (GF),Building-Floors,FAB FLOORS & CARPE,28-Feb-2019,684.50
D1200G-RESIDENT SERVICES (GF),Domestic Goods-Other,WWW.ARGOS.CO.UK,28-Feb-2019,"1,192.90"
D1200G-RESIDENT SERVICES (GF),Accommodation,Village Hotel Walsall,28-Feb-2019,218.00
D1200G-RESIDENT SERVICES (GF),Travel/Subsistence,OYSTER ONLINE,28-Feb-2019,120.00
D1200G-RESIDENT SERVICES (GF),Travel/Subsistence,OYSTER AUTO-TOP UP,28-Feb-2019,60.00
D1200G-RESIDENT SERVICES (GF),Education-Library Books,AMAZON.CO.UK,28-Feb-2019,6.67
D1200G-RESIDENT SERVICES (GF),Books/Publications/Resources,CASH ADVANCE FEE,28-Feb-2019,4.72
D1350G-CHIEF EXECUTIVE DIRECTORATE,Works-Construction,P C ENGRAVERS,28-Feb-2019,57.40
D1100G-ADULTS & HEALTH,Legal Services-Other,HMCOURTS-SERVICE.G,28-Feb-2019,150.00
D1200G-RESIDENT SERVICES (GF),Building-Plumbing,WOLSELEY UK,28-Feb-2019,47.96
D1200G-RESIDENT SERVICES (GF),Building-Floors,FLEMMING FLOORING,28-Feb-2019,370.00
D1200G-RESIDENT SERVICES (GF),Financial Services,LONDON BRGH OF LAMBETH,28-Feb-2019,63.00
D1200G-RESIDENT SERVICES (GF),Domestic Goods-Other,ARGOS RETAIL GROUP,28-Feb-2019,80.00
D1200G-RESIDENT SERVICES (GF),Facilities-Advertising,FACEBK X78R7LSAV2,28-Feb-2019,50.00
D1200G-RESIDENT SERVICES (GF),Legal Services-Other,HMCOURTS-SERVICE.G,28-Feb-2019,429.00
D1100G-ADULTS & HEALTH,Catering Food & Drink,TESCO STORE 2764,01-Mar-2019,99.88
D1200G-RESIDENT SERVICES (GF),Travel/Subsistence,OYSTER AUTO-TOP UP,01-Mar-2019,60.00
D1350G-CHIEF EXECUTIVE DIRECTORATE,Catering Food & Drink,TESCO STORE 2143,01-Mar-2019,99.14
D1200G-RESIDENT SERVICES (GF),Consultancy-Business,CANVAS EVENTS LTD,01-Mar-2019,108.00
D1350G-CHIEF EXECUTIVE DIRECTORATE,IT Software,ADOBE  ACROPRO SUBS,01-Mar-2019,-252.80
D1100G-ADULTS & HEALTH,Education-Library Books,AMZN Mktp UK,01-Mar-2019,23.40
D1200G-RESIDENT SERVICES (GF),Furniture-Domestic Furniture,F4H HOLDINGS LTD,01-Mar-2019,309.99
D1200G-RESIDENT SERVICES (GF),Travel/Subsistence,OYSTER AUTO-TOP UP,01-Mar-2019,60.00
D1200G-RESIDENT SERVICES (GF),Travel/Subsistence,OYSTER ONLINE,01-Mar-2019,30.00
D1400G-CHILDREN'S SERVICES,Travel/Subsistence,OYSTER AUTO-TOP UP,01-Mar-2019,20.00
D1200G-RESIDENT SERVICES (GF),Travel/Subsistence,OYSTER ONLINE,01-Mar-2019,30.00
D1300G-FINANCE & INVESTMENT,IT Services,NATIONBUILDER,01-Mar-2019,171.17
D1400G-CHILDREN'S SERVICES,Travel/Subsistence,OYSTER AUTO-TOP UP,01-Mar-2019,40.00
D1200G-RESIDENT SERVICES (GF),Travel/Subsistence,OYSTER AUTO-TOP UP,01-Mar-2019,80.00
D1300G-FINANCE & INVESTMENT,IT Services,GOOGLE,01-Mar-2019,13.20
D1200G-RESIDENT SERVICES (GF),Education-Library Books,AMZN MKTP UK,01-Mar-2019,12.61
D1200G-RESIDENT SERVICES (GF),Travel/Subsistence,OYSTER AUTO-TOP UP,01-Mar-2019,20.00
D1350G-CHIEF EXECUTIVE DIRECTORATE,Travel/Subsistence,TRAINLINE,01-Mar-2019,135.46
D1100G-ADULTS & HEALTH,Domestic Goods-Other,COMPLETE CARE SHOP,01-Mar-2019,94.95
D1200G-RESIDENT SERVICES (GF),Travel/Subsistence,OYSTER AUTO-TOP UP,01-Mar-2019,80.00
D1200G-RESIDENT SERVICES (GF),Travel/Subsistence,OYSTER ONLINE,01-Mar-2019,20.00
D1200G-RESIDENT SERVICES (GF),Consultancy-Business,DOCUSIGN INC. GBP,02-Mar-2019,240.00
D1200G-RESIDENT SERVICES (GF),Travel/Subsistence,OYSTER AUTO-TOP UP,02-Mar-2019,60.00
D1200G-RESIDENT SERVICES (GF),Travel/Subsistence,OYSTER AUTO-TOP UP,02-Mar-2019,60.00
D1400G-CHILDREN'S SERVICES,Travel/Subsistence,OYSTER AUTO-TOP UP,02-Mar-2019,20.00
D1200G-RESIDENT SERVICES (GF),IT Software,ADOBE  CREATIVE CLOUD,02-Mar-2019,83.24
D1200G-RESIDENT SERVICES (GF),Travel/Subsistence,OYSTER AUTO-TOP UP,02-Mar-2019,20.00
D1100G-ADULTS & HEALTH,Education-Musical Instruments,AMAZON.CO.UK,02-Mar-2019,293.89
D1200G-RESIDENT SERVICES (GF),Travel/Subsistence,OYSTER AUTO-TOP UP,02-Mar-2019,20.00
D1200G-RESIDENT SERVICES (GF),Travel/Subsistence,OYSTER AUTO-TOP UP,02-Mar-2019,120.00
D1300G-FINANCE & INVESTMENT,Facilities-Advertising,FACEBK ZZ332LE5M2,02-Mar-2019,40.00
D1200G-RESIDENT SERVICES (GF),Furniture-Domestic Furniture,PAYPAL,03-Mar-2019,44.45
D1200G-RESIDENT SERVICES (GF),Travel/Subsistence,OYSTER AUTO-TOP UP,03-Mar-2019,40.00
D1300G-FINANCE & INVESTMENT,IT Services,AWS EMEA,03-Mar-2019,128.35
D1200G-RESIDENT SERVICES (GF),Travel/Subsistence,OYSTER AUTO-TOP UP,03-Mar-2019,20.00
D1200G-RESIDENT SERVICES (GF),Education-Library Books,AMZN Mktp UK,03-Mar-2019,54.85
D1200G-RESIDENT SERVICES (GF),Facilities-Market Research,Amazon Prime,03-Mar-2019,7.99
D1200G-RESIDENT SERVICES (GF),Travel/Subsistence,OYSTER AUTO-TOP UP,03-Mar-2019,60.00
D1200G-RESIDENT SERVICES (GF),Education-Library Books,Amazon.co.uk,03-Mar-2019,11.99
D1300G-FINANCE & INVESTMENT,Facilities-Advertising,FACEBK F8KUCKS5M2,03-Mar-2019,40.00
D1300G-FINANCE & INVESTMENT,IT Services,NATIONBUILDER,03-Mar-2019,93.02
D1200G-RESIDENT SERVICES (GF),Travel/Subsistence,OYSTER AUTO-TOP UP,03-Mar-2019,40.00
D1200G-RESIDENT SERVICES (GF),Facilities-Market Research,GOOGLE,03-Mar-2019,139.84
D1200G-RESIDENT SERVICES (GF),Building-Timber,WWW.SELCOBW.COM,04-Mar-2019,409.90
D1800G-RESIDENT SERVICES (HRA),Public Transport,EXPRESS NEWS,04-Mar-2019,50.00
D1100G-ADULTS & HEALTH,Catering Food & Drink,ICELAND,04-Mar-2019,7.60
D1200G-RESIDENT SERVICES (GF),Financial Services,HM PASSPORT OFFICE,04-Mar-2019,112.50
D1200G-RESIDENT SERVICES (GF),Travel/Subsistence,OYSTER ONLINE,04-Mar-2019,5.00
D1200G-RESIDENT SERVICES (GF),Travel/Subsistence,OYSTER AUTO-TOP UP,04-Mar-2019,40.00
D1200G-RESIDENT SERVICES (GF),Catering Food & Drink,TESCO STORES 2572,04-Mar-2019,20.07
D1200G-RESIDENT SERVICES (GF),IT Software,IVAR JACOBSON,04-Mar-2019,834.00
D1200G-RESIDENT SERVICES (GF),Financial Services,GEN REGISTER OFFICE,04-Mar-2019,45.25
D1200G-RESIDENT SERVICES (GF),Education-Library Books,DXNS CREDIT CONTROL,04-Mar-2019,19.76
D1350G-CHIEF EXECUTIVE DIRECTORATE,Travel/Subsistence,VIRGIN TRAINS,04-Mar-2019,72.00
D1200G-RESIDENT SERVICES (GF),Taxi Fares,WESTERN CARS,04-Mar-2019,190.00
D1200G-RESIDENT SERVICES (GF),Travel/Subsistence,TRAINLINE,04-Mar-2019,45.05
D1300G-FINANCE & INVESTMENT,Travel/Subsistence,LNER WEB SALES,04-Mar-2019,-46.30
D1300G-FINANCE & INVESTMENT,IT Services,PANTHEON SYSTEMS INC,04-Mar-2019,27.37
D1200G-RESIDENT SERVICES (GF),Financial Services,HACKNEY LEARNING TRUST,04-Mar-2019,84.00
D1300G-FINANCE & INVESTMENT,Couriers,AMAZON PRIME,05-Mar-2019,7.99
D1100G-ADULTS & HEALTH,Building-Others,AMZN Mktp UK,05-Mar-2019,18.48
D1200G-RESIDENT SERVICES (GF),Travel/Subsistence,OYSTER ONLINE,05-Mar-2019,30.00
D1200G-RESIDENT SERVICES (GF),Taxi Fares,SE5 TO SE25,05-Mar-2019,35.00
D1800G-RESIDENT SERVICES (HRA),Facilities-Market Research,Amazon Prime,05-Mar-2019,7.99
D1200G-RESIDENT SERVICES (GF),Building-Timber,WWW.SELCOBW.COM,05-Mar-2019,92.02
D1200G-RESIDENT SERVICES (GF),Taxi Fares,CHARMANE 815 MINUS,05-Mar-2019,500.00
D1200G-RESIDENT SERVICES (GF),Taxi Fares,JULIET TILL 3 MARCH,05-Mar-2019,560.00
D1200G-RESIDENT SERVICES (GF),Travel/Subsistence,LUL TICKET MACHINE,05-Mar-2019,50.00
D1300G-FINANCE & INVESTMENT,Catering Food & Drink,MARKS&SPENCER PLC,05-Mar-2019,49.00
D1200G-RESIDENT SERVICES (GF),Furniture-Domestic Furniture,WWW.IKEA.COM,05-Mar-2019,224.00
D1200G-RESIDENT SERVICES (GF),Taxi Fares,SW2 TO HOUNSLOW,05-Mar-2019,70.00
D1200G-RESIDENT SERVICES (GF),Taxi Fares,SW12 TO CIVIC RETURN,05-Mar-2019,40.00
D1200G-RESIDENT SERVICES (GF),Facilities-Advertising,EXPRESS NEWS,05-Mar-2019,30.00
D1200G-RESIDENT SERVICES (GF),Education-Library Books,Amazon.co.uk,05-Mar-2019,8.99
D1200G-RESIDENT SERVICES (GF),Education-Arts/Crafts,Amazon Prime,05-Mar-2019,7.99
D1800G-RESIDENT SERVICES (HRA),Building-Timber,BLISSETTS BUILDERS SUPPLI,05-Mar-2019,45.20
D1200G-RESIDENT SERVICES (GF),Domestic Goods-Other,MOTHERCARE DIRECT-E-CO,05-Mar-2019,35.00
D1200G-RESIDENT SERVICES (GF),Financial Services,HM PASSPORT OFFICE,05-Mar-2019,58.50
D1200G-RESIDENT SERVICES (GF),Furniture-Domestic Furniture,WAYFAIR #2652204078,05-Mar-2019,0.00
D1200G-RESIDENT SERVICES (GF),Furniture-Domestic Furniture,WAYFAIR #2664035808,05-Mar-2019,58.98
D1200G-RESIDENT SERVICES (GF),Travel/Subsistence,OYSTER ONLINE,05-Mar-2019,-20.00
D1200G-RESIDENT SERVICES (GF),Travel/Subsistence,TRAINLINE,05-Mar-2019,98.75
D1200G-RESIDENT SERVICES (GF),Professional & Advisory Services,UNITE STUDENTS,05-Mar-2019,"2,588.57"
D1200G-RESIDENT SERVICES (GF),Building-General,SCREWFIX DIRECT,05-Mar-2019,7.98
D1100G-ADULTS & HEALTH,Building-Others,AMZN Mktp UK,05-Mar-2019,57.61
D1200G-RESIDENT SERVICES (GF),Travel/Subsistence,OYSTER ONLINE,05-Mar-2019,150.00
D1200G-RESIDENT SERVICES (GF),Mail Services-Postage,THE POST OFFICE,05-Mar-2019,6.50
D1200G-RESIDENT SERVICES (GF),Building-Timber,PREMIER SHEDS,05-Mar-2019,60.00
D1200G-RESIDENT SERVICES (GF),Domestic Goods-Other,WWW.ARGOS.CO.UK,05-Mar-2019,177.95
D1200G-RESIDENT SERVICES (GF),Travel/Subsistence,OYSTER ONLINE,06-Mar-2019,20.00
D1200G-RESIDENT SERVICES (GF),Travel/Subsistence,OYSTER AUTO-TOP UP,06-Mar-2019,20.00
D1200G-RESIDENT SERVICES (GF),Accommodation,Village Hotel Walsall,06-Mar-2019,49.05
D1100G-ADULTS & HEALTH,Accommodation,CEDARS HOUSE LTD,06-Mar-2019,"1,365.00"
D1200G-RESIDENT SERVICES (GF),Catering Food & Drink,TESCO STORE 2143,06-Mar-2019,25.00
D1200G-RESIDENT SERVICES (GF),Travel/Subsistence,OYSTER ONLINE,06-Mar-2019,50.00
D1200G-RESIDENT SERVICES (GF),Travel/Subsistence,TRAINLINE,06-Mar-2019,34.35
D1200G-RESIDENT SERVICES (GF),Travel/Subsistence,LNER WEB SALES,06-Mar-2019,123.00
D1200G-RESIDENT SERVICES (GF),Arts & Leisure Services,BETTER/SPORTS CO - RT,06-Mar-2019,60.00
D1200G-RESIDENT SERVICES (GF),Education-Library Books,AMAZON.CO.UK,06-Mar-2019,14.00
D1100G-ADULTS & HEALTH,Catering Food & Drink,TESCO-STORES 6567,06-Mar-2019,37.86
D1200G-RESIDENT SERVICES (GF),Building-General,SCREWFIX DIRECT,06-Mar-2019,48.67
D1200G-RESIDENT SERVICES (GF),Travel/Subsistence,OYSTER AUTO-TOP UP,06-Mar-2019,40.00
D1350G-CHIEF EXECUTIVE DIRECTORATE,Travel/Subsistence,LUL TICKET MACHINE,06-Mar-2019,50.00
D1100G-ADULTS & HEALTH,Taxi Fares,WWW.ADDISONLEE.COM,06-Mar-2019,84.25
D1100G-ADULTS & HEALTH,Travel/Subsistence,HOTELS.COM156550094982,06-Mar-2019,327.00
D1200G-RESIDENT SERVICES (GF),Travel/Subsistence,OYSTER AUTO-TOP UP,06-Mar-2019,40.00
D1200G-RESIDENT SERVICES (GF),Horticultural-Other,WWW.PRESTIGEFLOWERS.CO.U,06-Mar-2019,29.29
D1400G-CHILDREN'S SERVICES,Travel/Subsistence,OYSTER AUTO-TOP UP,06-Mar-2019,20.00
D1100G-ADULTS & HEALTH,Healthcare Services,CEN MAN UNIV HOSP NHS,06-Mar-2019,144.65
D1100G-ADULTS & HEALTH,Travel/Subsistence,VIRGIN TRAINS,06-Mar-2019,37.00
D1200G-RESIDENT SERVICES (GF),Travel/Subsistence,OYSTER ONLINE,06-Mar-2019,60.00
D1200G-RESIDENT SERVICES (GF),Travel/Subsistence,OYSTER AUTO-TOP UP,06-Mar-2019,40.00
D1200G-RESIDENT SERVICES (GF),Education-Library Books,Amazon.co.uk,06-Mar-2019,62.10
D1200G-RESIDENT SERVICES (GF),Facilities-Market Research,Amazon Prime,06-Mar-2019,7.99
D1300G-FINANCE & INVESTMENT,Facilities-Advertising,FACEBK AUUXCKS5M2,06-Mar-2019,21.78
D1100G-ADULTS & HEALTH,Legal Services-Other,HMCOURTS-SERVICE.G,06-Mar-2019,150.00
D1100G-ADULTS & HEALTH,Financial Services,ROYAL BANK UK /,06-Mar-2019,400.00
D1200G-RESIDENT SERVICES (GF),Travel/Subsistence,OYSTER AUTO-TOP UP,06-Mar-2019,20.00
D1200G-RESIDENT SERVICES (GF),Domestic Goods-Other,MOTHERCARE DIRECT-E-CO,06-Mar-2019,299.00
D1100G-ADULTS & HEALTH,Travel/Subsistence,OYSTER ONLINE,06-Mar-2019,20.00
D1100G-ADULTS & HEALTH,Healthcare Services,DORSET COUNTY HOSPITAL,06-Mar-2019,137.00
D1100G-ADULTS & HEALTH,Conference Expenses,BHIVA WORLDPAY,06-Mar-2019,40.00
D1100G-ADULTS & HEALTH,Education-Other,AMZN MKTP UK,06-Mar-2019,13.60
D1200G-RESIDENT SERVICES (GF),Travel/Subsistence,OYSTER ONLINE,06-Mar-2019,10.00
D1200G-RESIDENT SERVICES (GF),Catering Food & Drink,TESCO STORE 2143,06-Mar-2019,48.66
D1200G-RESIDENT SERVICES (GF),Travel/Subsistence,OYSTER AUTO-TOP UP,06-Mar-2019,120.00
D1200G-RESIDENT SERVICES (GF),Mail Services-Postage,POST OFFICE COUNTER,07-Mar-2019,8.30
D1200G-RESIDENT SERVICES (GF),Travel/Subsistence,OYSTER AUTO-TOP UP,07-Mar-2019,60.00
D1200G-RESIDENT SERVICES (GF),Travel/Subsistence,OYSTER AUTO-TOP UP,07-Mar-2019,20.00
D1400G-CHILDREN'S SERVICES,Travel/Subsistence,OYSTER AUTO-TOP UP,07-Mar-2019,60.00
D1200G-RESIDENT SERVICES (GF),Travel/Subsistence,OYSTER AUTO-TOP UP,07-Mar-2019,60.00
D1200G-RESIDENT SERVICES (GF),Travel/Subsistence,OYSTER AUTO-TOP UP,07-Mar-2019,40.00
D1300G-FINANCE & INVESTMENT,Travel/Subsistence,TRAINLINE,07-Mar-2019,102.72
D1200G-RESIDENT SERVICES (GF),Building-Timber,WWW.SELCOBW.COM,07-Mar-2019,169.88
D1200G-RESIDENT SERVICES (GF),Haulage,www.anyvan.com,07-Mar-2019,138.00
D1100G-ADULTS & HEALTH,Facilities-Printing,GRAFENIA PLC,07-Mar-2019,190.80
D1200G-RESIDENT SERVICES (GF),Catering Food & Drink,TESCO STORE 2143,07-Mar-2019,50.00
D1200G-RESIDENT SERVICES (GF),Accommodation,Village Hotel Walsall,07-Mar-2019,-37.05
D1300G-FINANCE & INVESTMENT,Travel/Subsistence,OYSTER AUTO-TOP UP,07-Mar-2019,40.00
D1100G-ADULTS & HEALTH,Education-Other,AMZN MKTP UK,07-Mar-2019,5.30
D1200G-RESIDENT SERVICES (GF),Education-Library Books,AMAZON.CO.UK,07-Mar-2019,67.92
D1200G-RESIDENT SERVICES (GF),Travel/Subsistence,OYSTER AUTO-TOP UP,07-Mar-2019,80.00
D1350G-CHIEF EXECUTIVE DIRECTORATE,Domestic Goods-Other,WWW.FLYINGCOLOURS.ORG,07-Mar-2019,75.54
D1100G-ADULTS & HEALTH,Financial Services,CASH ADVANCE FEE,07-Mar-2019,11.80
D1200G-RESIDENT SERVICES (GF),Travel/Subsistence,TRAINLINE,07-Mar-2019,38.14
D1200G-RESIDENT SERVICES (GF),Travel/Subsistence,OYSTER AUTO-TOP UP,07-Mar-2019,40.00
D1200G-RESIDENT SERVICES (GF),Travel/Subsistence,OYSTER ONLINE,07-Mar-2019,60.00
D1200G-RESIDENT SERVICES (GF),Education-Other,PHOTO ME INTERNATIONAL PL,07-Mar-2019,12.00
D1200G-RESIDENT SERVICES (GF),Facilities-Market Research,WHICH,08-Mar-2019,10.75
D1200G-RESIDENT SERVICES (GF),Travel/Subsistence,OYSTER AUTO-TOP UP,08-Mar-2019,20.00
D1200G-RESIDENT SERVICES (GF),Catering Food & Drink,LOW COST SUPERMARKET,08-Mar-2019,30.00
D1200G-RESIDENT SERVICES (GF),Books/Publications/Resources,Sainsburys Bank CASH,08-Mar-2019,170.00
D1400G-CHILDREN'S SERVICES,Travel/Subsistence,OYSTER AUTO-TOP UP,08-Mar-2019,40.00
D1200G-RESIDENT SERVICES (GF),Education-Library Books,Amazon.co.uk,08-Mar-2019,27.92
D1200G-RESIDENT SERVICES (GF),Furniture-Domestic Furniture,WWW.IKEA.COM,08-Mar-2019,870.00
D1200G-RESIDENT SERVICES (GF),Travel/Subsistence,LUL TICKET MACHINE,08-Mar-2019,330.00
D1200G-RESIDENT SERVICES (GF),Travel/Subsistence,OYSTER AUTO-TOP UP,08-Mar-2019,40.00
D1200G-RESIDENT SERVICES (GF),Travel/Subsistence,OYSTER AUTO-TOP UP,08-Mar-2019,20.00
D1200G-RESIDENT SERVICES (GF),Travel/Subsistence,OYSTER AUTO-TOP UP,08-Mar-2019,20.00
D1200G-RESIDENT SERVICES (GF),Domestic Goods-Other,WWW.ARGOS.CO.UK,08-Mar-2019,818.91
D1100G-ADULTS & HEALTH,Catering Food & Drink,TESCO STORE 2821,08-Mar-2019,12.50
D1200G-RESIDENT SERVICES (GF),Education-Library Books,AMZN Mktp UK,08-Mar-2019,7.55
D1200G-RESIDENT SERVICES (GF),Education-Library Books,AMZN Mktp UK,08-Mar-2019,23.75
D1200G-RESIDENT SERVICES (GF),Domestic Goods-Other,ARGOS RETAIL GROUP,08-Mar-2019,40.00
D1200G-RESIDENT SERVICES (GF),Education-Library Books,AMAZON.CO.UK AMAZON.CO.UK,08-Mar-2019,-0.02
D1200G-RESIDENT SERVICES (GF),Travel/Subsistence,OYSTER AUTO-TOP UP,08-Mar-2019,60.00
D1200G-RESIDENT SERVICES (GF),Travel/Subsistence,OYSTER AUTO-TOP UP,08-Mar-2019,60.00
D1400G-CHILDREN'S SERVICES,Travel/Subsistence,OYSTER AUTO-TOP UP,09-Mar-2019,20.00
D1200G-RESIDENT SERVICES (GF),Travel/Subsistence,OYSTER AUTO-TOP UP,09-Mar-2019,40.00
D1200G-RESIDENT SERVICES (GF),Travel/Subsistence,OYSTER AUTO-TOP UP,09-Mar-2019,40.00
D1400G-CHILDREN'S SERVICES,Travel/Subsistence,OYSTER AUTO-TOP UP,09-Mar-2019,20.00
D1200G-RESIDENT SERVICES (GF),Travel/Subsistence,OYSTER AUTO-TOP UP,09-Mar-2019,60.00
D1200G-RESIDENT SERVICES (GF),Taxi Fares,UBER TRIP KSTZS HELP.UBER,09-Mar-2019,7.55
D1200G-RESIDENT SERVICES (GF),Travel/Subsistence,OYSTER AUTO-TOP UP,09-Mar-2019,20.00
D1200G-RESIDENT SERVICES (GF),Travel/Subsistence,OYSTER AUTO-TOP UP,09-Mar-2019,20.00
D1200G-RESIDENT SERVICES (GF),Travel/Subsistence,OYSTER AUTO-TOP UP,09-Mar-2019,40.00
D1200G-RESIDENT SERVICES (GF),Education-Library Books,AMZN Mktp UK,09-Mar-2019,5.90
D1200G-RESIDENT SERVICES (GF),Travel/Subsistence,OYSTER AUTO-TOP UP,10-Mar-2019,20.00
D1200G-RESIDENT SERVICES (GF),Facilities-Advertising,FACEBK QU46DKNCE2,10-Mar-2019,40.00
D1400G-CHILDREN'S SERVICES,Travel/Subsistence,OYSTER AUTO-TOP UP,10-Mar-2019,20.00
D1200G-RESIDENT SERVICES (GF),Travel/Subsistence,OYSTER AUTO-TOP UP,10-Mar-2019,40.00
D1200G-RESIDENT SERVICES (GF),Travel/Subsistence,OYSTER AUTO-TOP UP,10-Mar-2019,40.00
D1200G-RESIDENT SERVICES (GF),Travel/Subsistence,OYSTER AUTO-TOP UP,10-Mar-2019,40.00
D1200G-RESIDENT SERVICES (GF),Travel/Subsistence,OYSTER AUTO-TOP UP,10-Mar-2019,40.00
D1200G-RESIDENT SERVICES (GF),Travel/Subsistence,OYSTER AUTO-TOP UP,10-Mar-2019,40.00
D1200G-RESIDENT SERVICES (GF),Healthcare Equipment,AMZN MKTP UK,10-Mar-2019,44.99
D1200G-RESIDENT SERVICES (GF),Travel/Subsistence,OYSTER AUTO-TOP UP,10-Mar-2019,20.00
D1200G-RESIDENT SERVICES (GF),Building-Timber,SCREWFIX BRIXTON,11-Mar-2019,89.75
D1200G-RESIDENT SERVICES (GF),Building-Timber,SCREWFIX BRIXTON,11-Mar-2019,43.73
D1200G-RESIDENT SERVICES (GF),Education-Library Books,Amazon.co.uk,11-Mar-2019,17.98
D1400G-CHILDREN'S SERVICES,Travel/Subsistence,OYSTER ONLINE,11-Mar-2019,30.00
D1100G-ADULTS & HEALTH,Healthcare Services,FINANCE MAIDSTONE HOSP,11-Mar-2019,233.00
D1200G-RESIDENT SERVICES (GF),Travel/Subsistence,OYSTER ONLINE,11-Mar-2019,90.00
D1100G-ADULTS & HEALTH,Education-Library Books,AMZN MKTP UK,11-Mar-2019,70.98
D1200G-RESIDENT SERVICES (GF),Utilities,CASTLE WATER,11-Mar-2019,44.50
D1100G-ADULTS & HEALTH,Healthcare Services,FINANCE DEPT RUH,11-Mar-2019,720.70
D1100G-ADULTS & HEALTH,Healthcare Services,BSUH NHS TRUST,11-Mar-2019,"3,607.29"
D1200G-RESIDENT SERVICES (GF),Travel/Subsistence,OYSTER AUTO-TOP UP,11-Mar-2019,20.00
D1200G-RESIDENT SERVICES (GF),Facilities-Advertising,FACEBK VKQC3KSCE2,11-Mar-2019,40.00
D1200G-RESIDENT SERVICES (GF),Catering Food & Drink,MARKS&SPENCER PLC,11-Mar-2019,33.50
D1200G-RESIDENT SERVICES (GF),Travel/Subsistence,TRAINLINE,11-Mar-2019,11.34
D1200G-RESIDENT SERVICES (GF),Education-Library Books,AMZN Mktp UK,11-Mar-2019,18.58
D1400G-CHILDREN'S SERVICES,Education-Library Books,AMZN MKTP UK,11-Mar-2019,8.60
D1200G-RESIDENT SERVICES (GF),Catering Food & Drink,SAINSBURYS S/MKTS,11-Mar-2019,8.75
D1100G-ADULTS & HEALTH,Catering Food & Drink,WWW.ICELAND.CO.UK,11-Mar-2019,134.56
D1200G-RESIDENT SERVICES (GF),Domestic Goods-Other,ARGOS RETAIL GROUP,11-Mar-2019,24.99
D1100G-ADULTS & HEALTH,Catering Food & Drink,TESCO STORES 5999,11-Mar-2019,127.01
D1100G-ADULTS & HEALTH,Taxi Fares,MAN AND VAN TODAY,11-Mar-2019,116.50
D1200G-RESIDENT SERVICES (GF),Books/Publications/Resources,CASH ADVANCE FEE,11-Mar-2019,5.02
D1200G-RESIDENT SERVICES (GF),Furniture-Domestic Furniture,WWW.IKEA.COM,12-Mar-2019,"1,363.75"
D1200G-RESIDENT SERVICES (GF),Travel/Subsistence,OYSTER ONLINE,12-Mar-2019,-30.00
D1200G-RESIDENT SERVICES (GF),Professional & Advisory Services,SQ *COMPLETELY KENT LIMIT,12-Mar-2019,60.00
D1100G-ADULTS & HEALTH,Legal Services-Other,HMCOURTS-SERVICE.G,12-Mar-2019,225.00
D1200G-RESIDENT SERVICES (GF),Utilities,CASTLE WATER,12-Mar-2019,40.27
D1300G-FINANCE & INVESTMENT,Arts & Leisure Services,HIGHSTREETVOUCHERS,12-Mar-2019,407.10
D1100G-ADULTS & HEALTH,Accommodation,ASTRA PALACE HOTEL,12-Mar-2019,330.00
D1200G-RESIDENT SERVICES (GF),Building-Timber,SELCO BUILDERS WAR,12-Mar-2019,79.06
D1200G-RESIDENT SERVICES (GF),Cleaning-Laundry Service,S.I.S.T DRY CLEANERS L,12-Mar-2019,50.00
D1200G-RESIDENT SERVICES (GF),Catering Food & Drink,LOW COST SUPERMARKET,12-Mar-2019,30.00
D1200G-RESIDENT SERVICES (GF),Financial Services,LONDON BRGH OF LAMBETH,12-Mar-2019,52.00
D1200G-RESIDENT SERVICES (GF),Building-Timber,SELCO TRADING CTR,12-Mar-2019,5.75
D1200G-RESIDENT SERVICES (GF),Travel/Subsistence,OYSTER AUTO-TOP UP,12-Mar-2019,20.00
D1200G-RESIDENT SERVICES (GF),Travel/Subsistence,OYSTER ONLINE,12-Mar-2019,40.00
D1200G-RESIDENT SERVICES (GF),Education-Library Books,AMAZON.CO.UK,12-Mar-2019,16.30
D1200G-RESIDENT SERVICES (GF),Building-General,TP NORWOOD 9014,12-Mar-2019,117.62
D1200G-RESIDENT SERVICES (GF),Travel/Subsistence,TFL AUTOSETTLEMENT,12-Mar-2019,60.00
D1100G-ADULTS & HEALTH,Domestic Goods-Other,WWW.ARGOS.CO.UK,12-Mar-2019,106.94
D1200G-RESIDENT SERVICES (GF),Professional & Advisory Services,TRAMPOLINE PARTS & ACC,12-Mar-2019,51.24
D1100G-ADULTS & HEALTH,Catering Food & Drink,TESCO STORE 2143,12-Mar-2019,54.00
D1200G-RESIDENT SERVICES (GF),Travel/Subsistence,OYSTER ONLINE,12-Mar-2019,20.00
D1200G-RESIDENT SERVICES (GF),Building-Timber,SELCO TRADING CTR,12-Mar-2019,38.82
D1200G-RESIDENT SERVICES (GF),Consultancy-Business,BLS*MONDAY.COM,12-Mar-2019,148.80
D1200G-RESIDENT SERVICES (GF),Travel/Subsistence,TRAINLINE,12-Mar-2019,45.05
D1200G-RESIDENT SERVICES (GF),Education-Library Books,AMZN Mktp UK,12-Mar-2019,4.71
D1100G-ADULTS & HEALTH,Taxi Fares,WWW.ADDISONLEE.COM,13-Mar-2019,131.14
D1200G-RESIDENT SERVICES (GF),Building-Timber,TP VAUXHALL,13-Mar-2019,225.00
D1100G-ADULTS & HEALTH,Catering Food & Drink,ICELAND,13-Mar-2019,32.00
D1200G-RESIDENT SERVICES (GF),Facilities-Advertising,FACEBK KXZLGKECE2,13-Mar-2019,60.00
D1200G-RESIDENT SERVICES (GF),Catering Food & Drink,TESCO STORE 2143,13-Mar-2019,30.00
D1200G-RESIDENT SERVICES (GF),Facilities-Advertising,EXPRESS NEWS,13-Mar-2019,30.00
D1200G-RESIDENT SERVICES (GF),Travel/Subsistence,OYSTER AUTO-TOP UP,13-Mar-2019,20.00
D1200G-RESIDENT SERVICES (GF),Horticultural-Other,JOSEPH ROCHFORD GARDEN,13-Mar-2019,218.92
D1200G-RESIDENT SERVICES (GF),Travel/Subsistence,OYSTER ONLINE,13-Mar-2019,90.00
D1200G-RESIDENT SERVICES (GF),Taxi Fares,WWW.ADDISONLEE.COM,13-Mar-2019,45.00
D1200G-RESIDENT SERVICES (GF),Accommodation,BRITISH A,13-Mar-2019,239.11
D1200G-RESIDENT SERVICES (GF),Travel/Subsistence,LUL TICKET MACHINE,13-Mar-2019,30.00
D1200G-RESIDENT SERVICES (GF),Horticultural-Other,JOSEPH ROCHFORD GARDEN,13-Mar-2019,250.00
D1200G-RESIDENT SERVICES (GF),Horticultural-Other,JOSEPH ROCHFORD GARDEN,13-Mar-2019,250.00
D1200G-RESIDENT SERVICES (GF),Works-Construction,PP*NULIFEBUILD,13-Mar-2019,200.00
D1200G-RESIDENT SERVICES (GF),Education-Library Books,AMZN Mktp UK,13-Mar-2019,38.25
D1800G-RESIDENT SERVICES (HRA),Financial Services,LONDON BRGH OF LAMBETH,13-Mar-2019,31.00
D1200G-RESIDENT SERVICES (GF),Travel/Subsistence,OYSTER ONLINE,13-Mar-2019,-30.00
D1200G-RESIDENT SERVICES (GF),Arts & Leisure Services,HTTPS://WWW.RUSHUK.COM,13-Mar-2019,52.00
D1300G-FINANCE & INVESTMENT,Travel/Subsistence,TFL ROAD CHG - STD WEB,13-Mar-2019,11.50
D1200G-RESIDENT SERVICES (GF),Education-Other,BROMLEY ADULT EDUC,13-Mar-2019,46.00
D1200G-RESIDENT SERVICES (GF),Travel/Subsistence,OYSTER AUTO-TOP UP,13-Mar-2019,100.00
D1200G-RESIDENT SERVICES (GF),Travel/Subsistence,OYSTER AUTO-TOP UP,13-Mar-2019,20.00
D1200G-RESIDENT SERVICES (GF),Education-Library Books,Amazon.co.uk,13-Mar-2019,14.75
D1200G-RESIDENT SERVICES (GF),Travel/Subsistence,LUL TICKET MACHINE,13-Mar-2019,35.00
D1200G-RESIDENT SERVICES (GF),Travel/Subsistence,OYSTER ONLINE,13-Mar-2019,32.95
D1350G-CHIEF EXECUTIVE DIRECTORATE,Facilities-Advertising,STREET RUNNERS LIMITED,13-Mar-2019,96.00
D1200G-RESIDENT SERVICES (GF),Domestic Goods-Other,AMZN MKTP UK,13-Mar-2019,62.23
D1200G-RESIDENT SERVICES (GF),Catering Food & Drink,LOW COST SUPERMARKET,13-Mar-2019,30.00
D1200G-RESIDENT SERVICES (GF),Education-Library Books,AMAZON.CO.UK,13-Mar-2019,22.34
D1200G-RESIDENT SERVICES (GF),Education-Library Books,AMZN MKTP UK,13-Mar-2019,17.59
D1200G-RESIDENT SERVICES (GF),Consultancy-Business,DOCUSIGN INC. GBP,13-Mar-2019,192.00
D1200G-RESIDENT SERVICES (GF),Stationery,AMZN MKTP UK,13-Mar-2019,63.49
D1200G-RESIDENT SERVICES (GF),Travel/Subsistence,OYSTER AUTO-TOP UP,13-Mar-2019,40.00
D1200G-RESIDENT SERVICES (GF),Travel/Subsistence,OYSTER ONLINE,13-Mar-2019,20.00
D1200G-RESIDENT SERVICES (GF),Travel/Subsistence,OYSTER ONLINE,13-Mar-2019,30.00
D1200G-RESIDENT SERVICES (GF),Travel/Subsistence,OYSTER ONLINE,13-Mar-2019,20.00
D1200G-RESIDENT SERVICES (GF),Education-Library Books,Amazon.co.uk,13-Mar-2019,9.99
D1200G-RESIDENT SERVICES (GF),Education-Library Books,AMZN Mktp UK,14-Mar-2019,20.99
D1100G-ADULTS & HEALTH,Healthcare Services,GCS NHS TRUST,14-Mar-2019,116.16
D1200G-RESIDENT SERVICES (GF),Travel/Subsistence,OYSTER AUTO-TOP UP,14-Mar-2019,40.00
D1800G-RESIDENT SERVICES (HRA),Consultancy-Business,FORTRESS MASTER LOCKSMITH,14-Mar-2019,21.00
D1100G-ADULTS & HEALTH,Travel/Subsistence,GREATER ANGLIA TRAINS,14-Mar-2019,45.00
D1400G-CHILDREN'S SERVICES,Travel/Subsistence,OYSTER AUTO-TOP UP,14-Mar-2019,40.00
D1200G-RESIDENT SERVICES (GF),Travel/Subsistence,OYSTER AUTO-TOP UP,14-Mar-2019,20.00
D1200G-RESIDENT SERVICES (GF),Domestic Goods-Other,EBUYER (UK) LTD,14-Mar-2019,177.97
D1200G-RESIDENT SERVICES (GF),Travel/Subsistence,OYSTER ONLINE,14-Mar-2019,20.00
D1200G-RESIDENT SERVICES (GF),Travel/Subsistence,OYSTER AUTO-TOP UP,14-Mar-2019,20.00
D1200G-RESIDENT SERVICES (GF),Travel/Subsistence,OYSTER AUTO-TOP UP,14-Mar-2019,40.00
D1800G-RESIDENT SERVICES (HRA),Catering Food & Drink,NISA LOCAL,14-Mar-2019,7.98
D1200G-RESIDENT SERVICES (GF),Furniture-Domestic Furniture,AMZN MKTP UK,14-Mar-2019,146.80
D1200G-RESIDENT SERVICES (GF),Utilities,CASTLE WATER,14-Mar-2019,71.17
D1200G-RESIDENT SERVICES (GF),Education-Library Books,AMZN Mktp UK,14-Mar-2019,10.32
D1200G-RESIDENT SERVICES (GF),Building-Timber,SELCO BUILDERS WAR,14-Mar-2019,160.89
D1100G-ADULTS & HEALTH,Catering Food & Drink,SAINSBURY'S,14-Mar-2019,15.30
D1200G-RESIDENT SERVICES (GF),Travel/Subsistence,OYSTER AUTO-TOP UP,14-Mar-2019,40.00
D1200G-RESIDENT SERVICES (GF),Education-Library Books,AMZN Mktp UK,14-Mar-2019,57.45
D1200G-RESIDENT SERVICES (GF),Travel/Subsistence,OYSTER AUTO-TOP UP,14-Mar-2019,100.00
D1400G-CHILDREN'S SERVICES,Catering Food & Drink,MARKS&SPENCER PLC,14-Mar-2019,28.50
D1100G-ADULTS & HEALTH,Catering Food & Drink,WWW.ICELAND.CO.UK,14-Mar-2019,149.83
D1200G-RESIDENT SERVICES (GF),Education-Library Books,Amazon.co.uk,14-Mar-2019,12.99
D1200G-RESIDENT SERVICES (GF),Facilities-Market Research,Amazon Prime,14-Mar-2019,-47.94
D1200G-RESIDENT SERVICES (GF),Works-Construction,KK WINDOWS,15-Mar-2019,30.00
D1100G-ADULTS & HEALTH,Catering Food & Drink,ICELAND,15-Mar-2019,15.66
D1200G-RESIDENT SERVICES (GF),Cemetery & Crematorium,AMZN Mktp UK,15-Mar-2019,25.88
D1200G-RESIDENT SERVICES (GF),Financial Services,GEN REGISTER OFFICE,15-Mar-2019,45.25
D1200G-RESIDENT SERVICES (GF),Travel/Subsistence,OYSTER AUTO-TOP UP,15-Mar-2019,20.00
D1200G-RESIDENT SERVICES (GF),Financial Services,HM PASSPORT OFFICE,15-Mar-2019,85.00
D1350G-CHIEF EXECUTIVE DIRECTORATE,Legal Services-General Support,LOCGOVLAWTV,15-Mar-2019,540.00
D1200G-RESIDENT SERVICES (GF),Travel/Subsistence,OYSTER ONLINE,15-Mar-2019,60.00
D1200G-RESIDENT SERVICES (GF),Travel/Subsistence,OYSTER AUTO-TOP UP,15-Mar-2019,20.00
D1200G-RESIDENT SERVICES (GF),Education-Library Books,AMZN Mktp UK,15-Mar-2019,65.21
D1200G-RESIDENT SERVICES (GF),Travel/Subsistence,OYSTER AUTO-TOP UP,15-Mar-2019,20.00
D1200G-RESIDENT SERVICES (GF),Financial Services,DVLA VEHICLE TAX,15-Mar-2019,757.50
D1100G-ADULTS & HEALTH,Education-Other,HAPPY COMPUTERS LTD,15-Mar-2019,"3,552.00"
D1100G-ADULTS & HEALTH,Education-Other,LDN SCH HYGIENE & TROP,15-Mar-2019,"3,450.00"
D1200G-RESIDENT SERVICES (GF),Domestic Goods-Other,WWW.ARGOS.CO.UK,15-Mar-2019,63.94
D1200G-RESIDENT SERVICES (GF),Travel/Subsistence,OYSTER AUTO-TOP UP,15-Mar-2019,20.00
D1100G-ADULTS & HEALTH,Legal Services-Other,HMCOURTS-SERVICE.G,15-Mar-2019,75.00
D1100G-ADULTS & HEALTH,Vehicle Hire,MAN AND VAN TODAY,15-Mar-2019,742.50
D1200G-RESIDENT SERVICES (GF),Taxi Fares,KT3 TO SE19,15-Mar-2019,70.00
D1200G-RESIDENT SERVICES (GF),Travel/Subsistence,OYSTER AUTO-TOP UP,15-Mar-2019,40.00
D1200G-RESIDENT SERVICES (GF),Travel/Subsistence,OYSTER AUTO-TOP UP,15-Mar-2019,40.00
D1200G-RESIDENT SERVICES (GF),Catering Food & Drink,LOW COST SUPERMARKET,15-Mar-2019,225.00
D1400G-CHILDREN'S SERVICES,Travel/Subsistence,OYSTER AUTO-TOP UP,15-Mar-2019,20.00
D1200G-RESIDENT SERVICES (GF),Travel/Subsistence,OYSTER ONLINE,15-Mar-2019,20.00
D1200G-RESIDENT SERVICES (GF),Education-Library Books,AMZN Mktp UK,15-Mar-2019,10.58
D1200G-RESIDENT SERVICES (GF),Financial Services,LONDON BRGH OF LAMBETH,15-Mar-2019,41.00
D1200G-RESIDENT SERVICES (GF),Cycles Purchase,HALFORDS 0716,15-Mar-2019,19.20
D1200G-RESIDENT SERVICES (GF),Catering Food & Drink,TESCO STORE 2143,15-Mar-2019,8.04
D1200G-RESIDENT SERVICES (GF),Education-Library Books,Amazon.co.uk,15-Mar-2019,5.98
D1350G-CHIEF EXECUTIVE DIRECTORATE,Conference Expenses,CPTEVENTS.CO.UK,15-Mar-2019,237.60
D1200G-RESIDENT SERVICES (GF),Travel/Subsistence,OYSTER AUTO-TOP UP,16-Mar-2019,20.00
D1200G-RESIDENT SERVICES (GF),Travel/Subsistence,OYSTER AUTO-TOP UP,16-Mar-2019,20.00
D1200G-RESIDENT SERVICES (GF),Travel/Subsistence,OYSTER AUTO-TOP UP,16-Mar-2019,40.00
D1200G-RESIDENT SERVICES (GF),Financial Services,HM PASSPORT OFFICE,16-Mar-2019,85.00
D1200G-RESIDENT SERVICES (GF),Travel/Subsistence,OYSTER AUTO-TOP UP,16-Mar-2019,40.00
D1200G-RESIDENT SERVICES (GF),Facilities-Market Research,MAILCHIMP,16-Mar-2019,68.69
D1200G-RESIDENT SERVICES (GF),Building-General,HOWARD BROS. (CAMBERWE,16-Mar-2019,45.99
D1200G-RESIDENT SERVICES (GF),Travel/Subsistence,OYSTER AUTO-TOP UP,16-Mar-2019,60.00
D1200G-RESIDENT SERVICES (GF),Travel/Subsistence,OYSTER AUTO-TOP UP,16-Mar-2019,80.00
D1200G-RESIDENT SERVICES (GF),Travel/Subsistence,OYSTER AUTO-TOP UP,17-Mar-2019,60.00
D1400G-CHILDREN'S SERVICES,Travel/Subsistence,OYSTER AUTO-TOP UP,17-Mar-2019,20.00
D1200G-RESIDENT SERVICES (GF),Travel/Subsistence,OYSTER AUTO-TOP UP,17-Mar-2019,20.00
D1200G-RESIDENT SERVICES (GF),Travel/Subsistence,OYSTER AUTO-TOP UP,17-Mar-2019,20.00
D1200G-RESIDENT SERVICES (GF),Facilities-Advertising,FACEBK F3YW4L2DE2,17-Mar-2019,90.00
D1200G-RESIDENT SERVICES (GF),Facilities-Advertising,FACEBK 26U4KK2CE2,17-Mar-2019,35.37
D1200G-RESIDENT SERVICES (GF),Travel/Subsistence,OYSTER AUTO-TOP UP,17-Mar-2019,60.00
D1200G-RESIDENT SERVICES (GF),Travel/Subsistence,OYSTER AUTO-TOP UP,17-Mar-2019,60.00
D1200G-RESIDENT SERVICES (GF),Education-Library Books,Amazon.co.uk,17-Mar-2019,8.62
D1200G-RESIDENT SERVICES (GF),Education-Supplies,WWW.ARGOS.CO.UK,18-Mar-2019,119.40
D1100G-ADULTS & HEALTH,Education-Other,AMZN Mktp UK,18-Mar-2019,22.47
D1200G-RESIDENT SERVICES (GF),Taxi Fares,FINAL FOR CHARMANE,18-Mar-2019,315.00
D1300G-FINANCE & INVESTMENT,Travel/Subsistence,TSGN,18-Mar-2019,50.00
D1100G-ADULTS & HEALTH,Accommodation,CANDLELIGHT B&B,18-Mar-2019,60.00
D1100G-ADULTS & HEALTH,Legal Services-Other,HMCOURTS-SERVICE.G,18-Mar-2019,75.00
D1100G-ADULTS & HEALTH,Travel/Subsistence,SE BRIXTON TO,18-Mar-2019,72.80
D1200G-RESIDENT SERVICES (GF),Financial Services,LONDON BRGH OF LAMBETH,18-Mar-2019,42.00
D1200G-RESIDENT SERVICES (GF),Travel/Subsistence,OYSTER ONLINE,18-Mar-2019,10.00
D1300G-FINANCE & INVESTMENT,Travel/Subsistence,TRAINLINE,18-Mar-2019,62.39
D1200G-RESIDENT SERVICES (GF),Facilities-Advertising,FACEBK PCQ7GKNCE2,18-Mar-2019,125.00
D1200G-RESIDENT SERVICES (GF),Banquet & Catering,ALLIANCE DISPOSABLES,18-Mar-2019,21.41
D1200G-RESIDENT SERVICES (GF),Taxi Fares,SW2 TO SW2,18-Mar-2019,10.00
D1200G-RESIDENT SERVICES (GF),Taxi Fares,KINGS KABS,18-Mar-2019,60.00
D1200G-RESIDENT SERVICES (GF),Travel/Subsistence,OYSTER ONLINE,18-Mar-2019,20.00
D1200G-RESIDENT SERVICES (GF),Catering Food & Drink,LOW COST SUPERMARKET,18-Mar-2019,25.00
D1100G-ADULTS & HEALTH,Catering Food & Drink,TESCO STORES 5999,18-Mar-2019,47.89
D1200G-RESIDENT SERVICES (GF),Building-General,SCREWFIX DIRECT,18-Mar-2019,282.90
D1200G-RESIDENT SERVICES (GF),Taxi Fares,SW2 TO NW9,18-Mar-2019,70.00
D1200G-RESIDENT SERVICES (GF),Travel/Subsistence,OYSTER ONLINE,18-Mar-2019,30.00
D1200G-RESIDENT SERVICES (GF),Financial Services,LEGALSERVICES.GOV.,18-Mar-2019,35.07
D1200G-RESIDENT SERVICES (GF),Domestic Goods-Other,WWW.JOHNLEWIS.COM,18-Mar-2019,229.00
D1200G-RESIDENT SERVICES (GF),Travel/Subsistence,TRAINLINE,18-Mar-2019,69.05
D1200G-RESIDENT SERVICES (GF),Travel/Subsistence,OYSTER AUTO-TOP UP,18-Mar-2019,40.00
D1200G-RESIDENT SERVICES (GF),Education-Library Books,AMZN MKTP UK,18-Mar-2019,10.43
D1200G-RESIDENT SERVICES (GF),Travel/Subsistence,OYSTER ONLINE,18-Mar-2019,0.00
D1200G-RESIDENT SERVICES (GF),IT Software,DMN/THEEXHIBIT,18-Mar-2019,200.00
D1350G-CHIEF EXECUTIVE DIRECTORATE,Legal Services-General Support,EB *WHATS NEW IN THE C,18-Mar-2019,48.00
D1100G-ADULTS & HEALTH,Banquet & Catering,WWW.EDENCATERERS.LONDO,19-Mar-2019,795.96
D1300G-FINANCE & INVESTMENT,Financial Services,LAND REGISTRY,19-Mar-2019,3.00
D1200G-RESIDENT SERVICES (GF),Catering Food & Drink,TESCO STORE 2143,19-Mar-2019,65.00
D1100G-ADULTS & HEALTH,Healthcare Equipment,NRS HEALTHCARE,19-Mar-2019,12.89
D1200G-RESIDENT SERVICES (GF),Travel/Subsistence,OYSTER ONLINE,19-Mar-2019,30.00
D1200G-RESIDENT SERVICES (GF),Travel/Subsistence,OYSTER AUTO-TOP UP,19-Mar-2019,40.00
D1200G-RESIDENT SERVICES (GF),Education-Library Books,AMAZON.CO.UK,19-Mar-2019,22.97
D1100G-ADULTS & HEALTH,Education-Other,AMZN Mktp UK,19-Mar-2019,18.00
D1200G-RESIDENT SERVICES (GF),Domestic Goods-Other,ARGOS RETAIL GROUP,19-Mar-2019,52.98
D1800G-RESIDENT SERVICES (HRA),Travel/Subsistence,LUL TICKET MACHINE,19-Mar-2019,30.00
D1400G-CHILDREN'S SERVICES,Catering Food & Drink,MARKS&SPENCER PLC,19-Mar-2019,41.00
D1200G-RESIDENT SERVICES (GF),Facilities-Storage,WWW.SAFESTORE.CO.UK,19-Mar-2019,576.41
D1350G-CHIEF EXECUTIVE DIRECTORATE,Mail Services-Postage,THE POST OFFICE,19-Mar-2019,168.00
D1200G-RESIDENT SERVICES (GF),Education-Library Books,Amazon.co.uk,19-Mar-2019,22.00
D1200G-RESIDENT SERVICES (GF),Education-Library Books,AMZN MKTP UK,19-Mar-2019,20.68
D1100G-ADULTS & HEALTH,Consultancy-Business,EB *TOWARDS POPULATION,19-Mar-2019,240.00
D1200G-RESIDENT SERVICES (GF),Mail Services-Postage,POST OFFICE SELF SERVI,19-Mar-2019,6.50
D1200G-RESIDENT SERVICES (GF),Taxi Fares,KINGS TO SW9 WAITING,19-Mar-2019,25.00
D1200G-RESIDENT SERVICES (GF),Travel/Subsistence,TRAINLINE,19-Mar-2019,22.73
D1400G-CHILDREN'S SERVICES,Travel/Subsistence,BRIXTONHILL EXPRESS,19-Mar-2019,150.00
D1200G-RESIDENT SERVICES (GF),Education-Other,WWW.FUNNEL.KNIGHT.TRAI,19-Mar-2019,320.00
D1200G-RESIDENT SERVICES (GF),Travel/Subsistence,OYSTER AUTO-TOP UP,20-Mar-2019,20.00
D1100G-ADULTS & HEALTH,Catering Food & Drink,SAINSBURYS,20-Mar-2019,45.90
D1200G-RESIDENT SERVICES (GF),Travel/Subsistence,OYSTER ONLINE,20-Mar-2019,-30.00
D1200G-RESIDENT SERVICES (GF),Taxi Fares,SE19 TO CR7,20-Mar-2019,30.00
D1200G-RESIDENT SERVICES (GF),Catering Food & Drink,LOW COST SUPERMARKET,20-Mar-2019,30.00
D1200G-RESIDENT SERVICES (GF),Horticultural-Other,MAJOR EQUIPMENT LTD,20-Mar-2019,-16.14
D1200G-RESIDENT SERVICES (GF),Facilities-Advertising,EXPRESS NEWS,20-Mar-2019,24.00
D1300G-FINANCE & INVESTMENT,Travel/Subsistence,OYSTER AUTO-TOP UP,20-Mar-2019,40.00
D1100G-ADULTS & HEALTH,Professional & Advisory Services,SQ *AUTUMN LIVE,20-Mar-2019,264.00
D1200G-RESIDENT SERVICES (GF),Travel/Subsistence,OYSTER AUTO-TOP UP,20-Mar-2019,40.00
D1400G-CHILDREN'S SERVICES,Travel/Subsistence,OYSTER ONLINE,20-Mar-2019,30.00
D1100G-ADULTS & HEALTH,Domestic Goods-Other,THE SECRET GARDEN,20-Mar-2019,13.98
D1100G-ADULTS & HEALTH,Education-Other,Amazon.co.uk,20-Mar-2019,11.33
D1200G-RESIDENT SERVICES (GF),Travel/Subsistence,OYSTER AUTO-TOP UP,20-Mar-2019,60.00
D1300G-FINANCE & INVESTMENT,IT Software,ADOBE  CREATIVE CLOUD,20-Mar-2019,141.60
D1800G-RESIDENT SERVICES (HRA),Education-Library Books,WWW.JCTLTD.CO.UK,20-Mar-2019,83.60
D1200G-RESIDENT SERVICES (GF),Travel/Subsistence,OYSTER ONLINE,20-Mar-2019,-20.00
D1200G-RESIDENT SERVICES (GF),Accommodation,HILTON GARDEN INN,20-Mar-2019,149.00
D1200G-RESIDENT SERVICES (GF),Travel/Subsistence,OYSTER AUTO-TOP UP,20-Mar-2019,60.00
D1200G-RESIDENT SERVICES (GF),Financial Services-Grants,ALLPAY *WATMOS COMMUNITY,20-Mar-2019,248.70
D1200G-RESIDENT SERVICES (GF),Travel/Subsistence,OYSTER AUTO-TOP UP,20-Mar-2019,20.00
D1100G-ADULTS & HEALTH,Legal Services-Other,HMCOURTS-SERVICE.G,20-Mar-2019,150.00
D1400G-CHILDREN'S SERVICES,Travel/Subsistence,OYSTER AUTO-TOP UP,20-Mar-2019,40.00
D1800G-RESIDENT SERVICES (HRA),Travel/Subsistence,OYSTER TELESALES,21-Mar-2019,50.00
D1100G-ADULTS & HEALTH,Taxi Fares,GRAB A CAB,21-Mar-2019,55.00
D1200G-RESIDENT SERVICES (GF),Travel/Subsistence,OYSTER ONLINE,21-Mar-2019,35.00
D1200G-RESIDENT SERVICES (GF),Travel/Subsistence,OYSTER AUTO-TOP UP,21-Mar-2019,40.00
D1400G-CHILDREN'S SERVICES,Travel/Subsistence,OYSTER AUTO-TOP UP,21-Mar-2019,20.00
D1100G-ADULTS & HEALTH,Education-Other,AMZN MKTP UK,21-Mar-2019,23.60
D1200G-RESIDENT SERVICES (GF),Facilities-Advertising,FACEBK VD2ZLK2CE2,21-Mar-2019,200.00
D1200G-RESIDENT SERVICES (GF),Travel/Subsistence,OYSTER ONLINE,21-Mar-2019,20.00
D1100G-ADULTS & HEALTH,Legal Services-Other,HMCOURTS-SERVICE.G,21-Mar-2019,150.00
D1100G-ADULTS & HEALTH,Financial Services,ROYAL BANK UK /,21-Mar-2019,400.00
D1200G-RESIDENT SERVICES (GF),Travel/Subsistence,LUL TICKET MACHINE,21-Mar-2019,15.00
D1800G-RESIDENT SERVICES (HRA),Facilities-Market Research,Amazon Prime,21-Mar-2019,7.99
D1400G-CHILDREN'S SERVICES,Catering Food & Drink,SAINSBURYS S/MKTS,21-Mar-2019,15.30
D1100G-ADULTS & HEALTH,Consultancy-Business,FORTRESS MASTER LOCKSMITH,21-Mar-2019,92.98
D1200G-RESIDENT SERVICES (GF),Travel/Subsistence,OYSTER AUTO-TOP UP,21-Mar-2019,40.00
D1400G-CHILDREN'S SERVICES,Travel/Subsistence,OYSTER AUTO-TOP UP,21-Mar-2019,20.00
D1200G-RESIDENT SERVICES (GF),Facilities-Advertising,STREET RUNNERS LIMITED,21-Mar-2019,204.00
D1200G-RESIDENT SERVICES (GF),Travel/Subsistence,OYSTER ONLINE,21-Mar-2019,30.00
D1200G-RESIDENT SERVICES (GF),Travel/Subsistence,OYSTER AUTO-TOP UP,21-Mar-2019,20.00
D1200G-RESIDENT SERVICES (GF),Travel/Subsistence,OYSTER AUTO-TOP UP,21-Mar-2019,20.00
D1100G-ADULTS & HEALTH,Taxi Fares,WWW.ADDISONLEE.COM,21-Mar-2019,10.20
D1100G-ADULTS & HEALTH,Financial Services,CASH ADVANCE FEE,22-Mar-2019,11.80
D1200G-RESIDENT SERVICES (GF),Utilities,CASTLE WATER,22-Mar-2019,110.00
D1200G-RESIDENT SERVICES (GF),Travel/Subsistence,OYSTER AUTO-TOP UP,22-Mar-2019,40.00
D1200G-RESIDENT SERVICES (GF),Building-Timber,TP VAUXHALL,22-Mar-2019,249.00
D1200G-RESIDENT SERVICES (GF),Travel/Subsistence,OYSTER AUTO-TOP UP,22-Mar-2019,20.00
D1400G-CHILDREN'S SERVICES,Travel/Subsistence,OYSTER AUTO-TOP UP,22-Mar-2019,40.00
D1400G-CHILDREN'S SERVICES,Stationery,Amazon.co.uk,22-Mar-2019,21.12
D1200G-RESIDENT SERVICES (GF),Utilities,CASTLE WATER,22-Mar-2019,66.08
D1200G-RESIDENT SERVICES (GF),Catering Food & Drink,SAINSBURY'S SMKT,22-Mar-2019,25.00
D1200G-RESIDENT SERVICES (GF),Travel/Subsistence,OYSTER AUTO-TOP UP,22-Mar-2019,40.00
D1200G-RESIDENT SERVICES (GF),Education-Library Books,AMZN Mktp UK,22-Mar-2019,17.93
D1200G-RESIDENT SERVICES (GF),Travel/Subsistence,OYSTER ONLINE,22-Mar-2019,30.00
D1200G-RESIDENT SERVICES (GF),Travel/Subsistence,OYSTER AUTO-TOP UP,22-Mar-2019,60.00
D1200G-RESIDENT SERVICES (GF),Catering Food & Drink,TESCO STORE 2572,22-Mar-2019,200.00
D1100G-ADULTS & HEALTH,Financial Services,M&S BRIXTON,22-Mar-2019,120.00
D1200G-RESIDENT SERVICES (GF),Utilities,CASTLE WATER,22-Mar-2019,250.00
D1200G-RESIDENT SERVICES (GF),Financial Services,HM PASSPORT OFFICE,22-Mar-2019,58.50
D1200G-RESIDENT SERVICES (GF),Travel/Subsistence,OYSTER ONLINE,22-Mar-2019,30.00
D1200G-RESIDENT SERVICES (GF),Travel/Subsistence,OYSTER AUTO-TOP UP,22-Mar-2019,20.00
D1200G-RESIDENT SERVICES (GF),Travel/Subsistence,OYSTER AUTO-TOP UP,22-Mar-2019,80.00
D1200G-RESIDENT SERVICES (GF),Catering Food & Drink,ASDA GEORGE COM LEEDS,22-Mar-2019,43.00
D1350G-CHIEF EXECUTIVE DIRECTORATE,Catering Food & Drink,TESCO STORE 2143,22-Mar-2019,45.59
D1200G-RESIDENT SERVICES (GF),Domestic Goods-Other,AMAZON.CO.UK,23-Mar-2019,6.95
D1200G-RESIDENT SERVICES (GF),Travel/Subsistence,OYSTER AUTO-TOP UP,23-Mar-2019,20.00
D1400G-CHILDREN'S SERVICES,Travel/Subsistence,OYSTER AUTO-TOP UP,23-Mar-2019,40.00
D1200G-RESIDENT SERVICES (GF),Education-Library Books,Amazon.co.uk,23-Mar-2019,25.60
D1200G-RESIDENT SERVICES (GF),Travel/Subsistence,OYSTER AUTO-TOP UP,23-Mar-2019,40.00
D1200G-RESIDENT SERVICES (GF),Travel/Subsistence,OYSTER AUTO-TOP UP,23-Mar-2019,60.00
D1200G-RESIDENT SERVICES (GF),Travel/Subsistence,OYSTER AUTO-TOP UP,23-Mar-2019,40.00
D1200G-RESIDENT SERVICES (GF),Travel/Subsistence,OYSTER AUTO-TOP UP,23-Mar-2019,40.00
D1200G-RESIDENT SERVICES (GF),Travel/Subsistence,OYSTER AUTO-TOP UP,24-Mar-2019,20.00
D1200G-RESIDENT SERVICES (GF),Travel/Subsistence,OYSTER AUTO-TOP UP,24-Mar-2019,60.00
D1200G-RESIDENT SERVICES (GF),Travel/Subsistence,OYSTER AUTO-TOP UP,24-Mar-2019,20.00
D1400G-CHILDREN'S SERVICES,Travel/Subsistence,OYSTER AUTO-TOP UP,24-Mar-2019,20.00
D1200G-RESIDENT SERVICES (GF),Travel/Subsistence,OYSTER AUTO-TOP UP,24-Mar-2019,80.00
D1200G-RESIDENT SERVICES (GF),Travel/Subsistence,OYSTER AUTO-TOP UP,24-Mar-2019,20.00
D1200G-RESIDENT SERVICES (GF),Travel/Subsistence,OYSTER AUTO-TOP UP,24-Mar-2019,120.00
D1200G-RESIDENT SERVICES (GF),Travel/Subsistence,OYSTER AUTO-TOP UP,25-Mar-2019,20.00
D1200G-RESIDENT SERVICES (GF),Financial Services,GEN REGISTER OFFICE,25-Mar-2019,45.25
D1200G-RESIDENT SERVICES (GF),Travel/Subsistence,TRAINLINE,25-Mar-2019,207.57
D1300G-FINANCE & INVESTMENT,Catering Food & Drink,TESCO STORES 5999,25-Mar-2019,144.00
D1100G-ADULTS & HEALTH,Consultancy-Business,EB *ARTS HEALTH AND WE,25-Mar-2019,20.00
D1100G-ADULTS & HEALTH,Financial Services,CASH ADVANCE FEE,25-Mar-2019,3.54
D1200G-RESIDENT SERVICES (GF),Catering Food & Drink,MARKS&SPENCER PLC SACA,25-Mar-2019,42.05
D1100G-ADULTS & HEALTH,Catering Food & Drink,TESCO STORES 5999,25-Mar-2019,86.22
D1100G-ADULTS & HEALTH,Legal Services-Other,HMCOURTS-SERVICE.G,26-Mar-2019,300.00
D1100G-ADULTS & HEALTH,Catering Food & Drink,SAINSBURYS S/MKTS,26-Mar-2019,7.58
D1200G-RESIDENT SERVICES (GF),Taxi Fares,SE19 TO ST PANCRAS,26-Mar-2019,60.00
D1200G-RESIDENT SERVICES (GF),Travel/Subsistence,TRAINLINE,26-Mar-2019,27.10
D1200G-RESIDENT SERVICES (GF),Facilities-Advertising,EXPRESS NEWS,26-Mar-2019,60.00
D1200G-RESIDENT SERVICES (GF),Domestic Goods-Other,MOTHERCARE DIRECT-E-CO,26-Mar-2019,299.00
D1300G-FINANCE & INVESTMENT,Catering Food & Drink,TESCO STORES 5999,26-Mar-2019,190.40
D1200G-RESIDENT SERVICES (GF),Building-General,SCREWFIX DIRECT,26-Mar-2019,49.98
D1200G-RESIDENT SERVICES (GF),Catering Food & Drink,LIDL GB LONDON,26-Mar-2019,1.98
D1200G-RESIDENT SERVICES (GF),Travel/Subsistence,OYSTER ONLINE,26-Mar-2019,30.00
D1200G-RESIDENT SERVICES (GF),Taxi Fares,CR7 TO SW9 RETURN,26-Mar-2019,60.00
D1200G-RESIDENT SERVICES (GF),Domestic Goods-Other,WWW.ARGOS.CO.UK,26-Mar-2019,98.95
D1200G-RESIDENT SERVICES (GF),Travel/Subsistence,OYSTER AUTO-TOP UP,27-Mar-2019,20.00
D1200G-RESIDENT SERVICES (GF),Financial Services,2XAA100200907 UKVI,27-Mar-2019,0.00
D1200G-RESIDENT SERVICES (GF),Accommodation,LEIGHAM COURT HOTEL,27-Mar-2019,100.00
D1300G-FINANCE & INVESTMENT,Conference Expenses,WWW.NAPF.CO.UK,27-Mar-2019,486.00
D1200G-RESIDENT SERVICES (GF),Travel/Subsistence,OYSTER AUTO-TOP UP,27-Mar-2019,20.00
D1200G-RESIDENT SERVICES (GF),Utilities,CASTLE WATER,27-Mar-2019,15.76
D1100G-ADULTS & HEALTH,Education-Other,AMZN Mktp UK,27-Mar-2019,26.47
D1200G-RESIDENT SERVICES (GF),Travel/Subsistence,OYSTER AUTO-TOP UP,27-Mar-2019,40.00
D1200G-RESIDENT SERVICES (GF),Travel/Subsistence,OYSTER AUTO-TOP UP,27-Mar-2019,20.00
D1200G-RESIDENT SERVICES (GF),Education-Library Books,AMZN Mktp UK,27-Mar-2019,14.24
D1200G-RESIDENT SERVICES (GF),Catering Food & Drink,MARKS&SPENCER PLC,27-Mar-2019,95.50
D1100G-ADULTS & HEALTH,Healthcare Equipment,SERCO ASP,27-Mar-2019,762.54
D1200G-RESIDENT SERVICES (GF),Travel/Subsistence,TRAINLINE,27-Mar-2019,84.21
D1400G-CHILDREN'S SERVICES,Travel/Subsistence,OYSTER ONLINE,28-Mar-2019,30.00
D1200G-RESIDENT SERVICES (GF),Travel/Subsistence,OYSTER AUTO-TOP UP,28-Mar-2019,20.00
D1200G-RESIDENT SERVICES (GF),Travel/Subsistence,OYSTER AUTO-TOP UP,28-Mar-2019,40.00
D1200G-RESIDENT SERVICES (GF),Travel/Subsistence,OYSTER AUTO-TOP UP,28-Mar-2019,40.00
D1400G-CHILDREN'S SERVICES,Travel/Subsistence,OYSTER AUTO-TOP UP,28-Mar-2019,40.00
D1200G-RESIDENT SERVICES (GF),Building-Tools,HIRE 4 LOWER  TOOL HIRE,28-Mar-2019,24.68
D1200G-RESIDENT SERVICES (GF),Travel/Subsistence,TFL AUTOSETTLEMENT,28-Mar-2019,20.00
D1250G-SUSTAINABLE GROWTH & OPPORTUNITY,Financial Services,WWW.JERSEYFSC.ORG,28-Mar-2019,16.00
D1100G-ADULTS & HEALTH,Accommodation,NOVOTEL HOTELS,28-Mar-2019,394.80
D1200G-RESIDENT SERVICES (GF),Accommodation,MAJESTIC TREES,28-Mar-2019,459.79
D1200G-RESIDENT SERVICES (GF),Travel/Subsistence,OYSTER AUTO-TOP UP,28-Mar-2019,60.00
D1200G-RESIDENT SERVICES (GF),Travel/Subsistence,OYSTER AUTO-TOP UP,28-Mar-2019,40.00
D1200G-RESIDENT SERVICES (GF),Travel/Subsistence,OYSTER ONLINE,28-Mar-2019,80.00
D1200G-RESIDENT SERVICES (GF),Travel/Subsistence,AUTO TOP-UP ARREARS,28-Mar-2019,80.00
D1200G-RESIDENT SERVICES (GF),Travel/Subsistence,OYSTER AUTO-TOP UP,28-Mar-2019,40.00
D1200G-RESIDENT SERVICES (GF),Travel/Subsistence,OYSTER AUTO-TOP UP,28-Mar-2019,20.00
D1350G-CHIEF EXECUTIVE DIRECTORATE,Catering Food & Drink,TESCO STORE 2143,28-Mar-2019,3.56
